{"text_format":"1","workbook":"xlsx","n_sheets":13,"sheets":["يناير","فبراير","مارس","ابريل","مايو","يونيو","يوليو","أغسطس","سبتمبر","أكتوبر","نوفمبر","ديسمبر","Pattern"],"not_rendered":{"charts":0,"images":0,"macros":1,"external_links":1,"defined_names":16,"comments":0,"pivot_tables":0},"unopened":[],"bounds":{"document_bytes":16777216,"sheet_cells":100000,"rows_first":2000,"rows_last":500,"rows_between":2000,"halvings":0,"cell_chars":16384,"cell_head_chars":4096},"cells_cut":0,"cells_raw":0,"read":"whole","date_system":"1900"}

{"sheet":"يناير","index":0,"n_rows":100,"n_cols":17,"rows_kept":100,"cut":false,"hidden":false,"merged":[[37,4,37,5],[35,1,35,3],[35,4,35,5],[3,7,3,8],[5,7,5,8],[6,7,6,8],[7,7,7,8],[8,0,8,1],[0,0,0,1],[0,4,0,5],[1,7,1,8],[2,7,2,8],[32,0,32,3],[32,4,32,5],[33,0,33,3]]}
[null,null,null,null,null,null,null,"انشاء فاتورة جديدة",{"$f":"SUM(M2:M100)","v":0},"رقم الفاتورة","تاريخ الفاتورة","اسم الشركة","إجمالي المبيعات",0.14000000000000001,0.01,"الصافى","تاريخ الإستلام"]
[null,null,null,null,null,null,null,"إجمالي المبيعات",null,"-",{"$f":"$F$4","v":"00:00:00"},{"$f":"$B$10","v":""},{"$f":"$E$33","v":0},{"$f":"$F$34","v":0},{"$f":"$F$35","v":0},{"$f":"$E$36","v":0}]
[null,null,null,null,"رقم أمر التوريد",null,{"$f":"_xlfn.IFS(K3=0,\" \",K3>=K2,\" \",K3<K2,\"error\")","v":{"$error":"#NAME?"}},{"$f":"I1+#REF!","v":{"$error":"#REF!"}}]
[null,null,null,null,"التاريخ",null,{"$f":"_xlfn.IFS(K4=0,\" \",K4>=K3,\" \",K4<K3,\"error\")","v":{"$error":"#NAME?"}}]
[null,null,null,null,"رقم الفاتورة",1,{"$error":"#NAME?"}]
[null,null,null,null,"كود العميل",null,{"$error":"#NAME?"},"الضريبة"]
[null,null,null,null,null,null,{"$error":"#NAME?"},{"$f":"SUM(N2:N100)","v":0}]
[null,null,null,null,null,null,{"$error":"#NAME?"}]
["بيانات العميل",null,null,null,null,null,{"$error":"#NAME?"},null,{"$f":"_xlfn.IFS(K9=0,\" \",K9>=K8,\" \",K9<K8,\"error\")","v":{"$error":"#NAME?"}}]
["شـركـة /",{"$f":"IF(F6>0,VLOOKUP(F6,client,2,0),\"\")","v":""},null,null,null,null,{"$error":"#NAME?"},null,{"$f":"_xlfn.IFS(K10=0,\" \",K10>=K9,\" \",K10<K9,\"error\")","v":{"$error":"#NAME?"}}]
["ب .ض /",{"$f":"IF(F6>0,VLOOKUP(F6,client,3,0),\"\")","v":""},null,null,null,null,null,null,{"$error":"#NAME?"}]
["المستلم /",null,null,null,null,null,null,null,{"$error":"#NAME?"}]
[null,null,null,null,null,null,null,null,{"$error":"#NAME?"}]
[null,null,null,null,null,null,null,null,{"$error":"#NAME?"}]
[null,null,null,null,null,null,null,null,{"$error":"#NAME?"}]
["كود المنتج","البيان","الكمية","الوحدة","السعر","الأجمالى",null,null,{"$error":"#NAME?"}]
[null,{"$f":"IF(A17>0,VLOOKUP(A17,product,2,0),\"\")","v":""},null,null,null,{"$f":"C17*E17","v":0},null,null,{"$error":"#NAME?"}]
[null,"",null,null,null,0,null,null,{"$error":"#NAME?"}]
[null,"",null,null,null,0,null,null,{"$error":"#NAME?"}]
[null,"",null,null,null,0,null,null,{"$error":"#NAME?"}]
[null,"",null,null,null,0,null,null,{"$error":"#NAME?"}]
[null,"",null,null,null,0,null,null,{"$error":"#NAME?"}]
[null,"",null,null,null,0,null,null,{"$error":"#NAME?"}]
[null,"",null,null,null,0,null,null,{"$error":"#NAME?"}]
[null,"",null,null,null,0,null,null,{"$error":"#NAME?"}]
[null,"",null,null,null,0,null,null,{"$error":"#NAME?"}]
[null,"",null,null,null,0,null,null,{"$error":"#NAME?"}]
[null,"",null,null,null,0,null,null,{"$error":"#NAME?"}]
[null,"",null,null,null,0,null,null,{"$error":"#NAME?"}]
[null,"",null,null,null,0,null,null,{"$error":"#NAME?"}]
[null,"",null,null,null,0,null,null,{"$error":"#NAME?"}]
[null,"",null,null,null,0,null,null,{"$error":"#NAME?"}]
["الاجمالى",null,null,null,{"$f":"SUM(F17:F32)","v":0},null,null,null,{"$error":"#NAME?"}]
["ضريبة القيمة المضافة",null,null,null,0.14000000000000001,{"$f":"E34*E33","v":0},null,null,{"$error":"#NAME?"}]
[null,null,null,null,null,null,null,null,{"$error":"#NAME?"}]
["فقط وقدره",{"$f":"ConvertNumberToWords2(E36,\"جنيه\",\"قرش\")","v":"صفر"},null,null,{"$f":"E33+F34-F35","v":0},null,null,null,{"$error":"#NAME?"}]
[null,null,null,null,null,null,null,null,{"$error":"#NAME?"}]
[null,"الحسابات",null,null,"الإدارة المالية",null,null,null,{"$error":"#NAME?"}]
[null,null,null,null,null,null,null,null,{"$error":"#NAME?"}]
[null,null,null,null,null,null,null,null,{"$error":"#NAME?"}]
[null,null,null,null,null,null,{"$error":"#NAME?"},null,{"$error":"#NAME?"}]
[null,null,null,null,null,null,{"$error":"#NAME?"},null,{"$error":"#NAME?"}]
[null,null,null,null,null,null,{"$error":"#NAME?"},null,{"$error":"#NAME?"}]
[null,null,null,null,null,null,{"$error":"#NAME?"},null,{"$error":"#NAME?"}]
[null,null,null,null,null,null,{"$error":"#NAME?"},null,{"$error":"#NAME?"}]
[null,null,null,null,null,null,{"$error":"#NAME?"},null,{"$error":"#NAME?"}]
[null,null,null,null,null,null,{"$error":"#NAME?"},null,{"$error":"#NAME?"}]
[null,null,null,null,null,null,{"$error":"#NAME?"},null,{"$error":"#NAME?"}]
[null,null,null,null,null,null,{"$error":"#NAME?"},null,{"$error":"#NAME?"}]
[null,null,null,null,null,null,{"$error":"#NAME?"},null,{"$error":"#NAME?"}]
[null,null,null,null,null,null,{"$error":"#NAME?"},null,{"$error":"#NAME?"}]
[null,null,null,null,null,null,{"$error":"#NAME?"},null,{"$error":"#NAME?"}]
[null,null,null,null,null,null,{"$error":"#NAME?"},null,{"$error":"#NAME?"}]
[null,null,null,null,null,null,{"$error":"#NAME?"},null,{"$error":"#NAME?"}]
[null,null,null,null,null,null,{"$error":"#NAME?"},null,{"$error":"#NAME?"}]
[null,null,null,null,null,null,{"$error":"#NAME?"},null,{"$error":"#NAME?"}]
[null,null,null,null,null,null,{"$error":"#NAME?"},null,{"$error":"#NAME?"}]
[null,null,null,null,null,null,{"$error":"#NAME?"},null,{"$error":"#NAME?"}]
[null,null,null,null,null,null,{"$error":"#NAME?"},null,{"$error":"#NAME?"}]
[null,null,null,null,null,null,{"$error":"#NAME?"},null,{"$error":"#NAME?"}]
[null,null,null,null,null,null,{"$error":"#NAME?"},null,{"$error":"#NAME?"}]
[null,null,null,null,null,null,{"$error":"#NAME?"},null,{"$error":"#NAME?"}]
[null,null,null,null,null,null,{"$error":"#NAME?"},null,{"$error":"#NAME?"}]
[null,null,null,null,null,null,{"$error":"#NAME?"},null,{"$error":"#NAME?"}]
[null,null,null,null,null,null,{"$error":"#NAME?"},null,{"$error":"#NAME?"}]
[null,null,null,null,null,null,{"$error":"#NAME?"},null,{"$error":"#NAME?"}]
[null,null,null,null,null,null,{"$error":"#NAME?"},null,{"$error":"#NAME?"}]
[null,null,null,null,null,null,{"$f":"_xlfn.IFS(K68=0,\" \",K68>=K67,\" \",K68<K67,\"error\")","v":{"$error":"#NAME?"}},null,{"$error":"#NAME?"}]
[null,null,null,null,null,null,{"$error":"#NAME?"},null,{"$error":"#NAME?"}]
[null,null,null,null,null,null,{"$error":"#NAME?"},null,{"$error":"#NAME?"}]
[null,null,null,null,null,null,{"$error":"#NAME?"},null,{"$error":"#NAME?"}]
[null,null,null,null,null,null,{"$error":"#NAME?"},null,{"$error":"#NAME?"}]
[null,null,null,null,null,null,{"$error":"#NAME?"},null,{"$error":"#NAME?"}]
[null,null,null,null,null,null,{"$error":"#NAME?"},null,{"$f":"_xlfn.IFS(K74=0,\" \",K74>=K73,\" \",K74<K73,\"error\")","v":{"$error":"#NAME?"}}]
[null,null,null,null,null,null,{"$error":"#NAME?"},null,{"$error":"#NAME?"}]
[null,null,null,null,null,null,{"$error":"#NAME?"},null,{"$error":"#NAME?"}]
[null,null,null,null,null,null,{"$error":"#NAME?"},null,{"$error":"#NAME?"}]
[null,null,null,null,null,null,{"$error":"#NAME?"},null,{"$error":"#NAME?"}]
[null,null,null,null,null,null,{"$error":"#NAME?"},null,{"$error":"#NAME?"}]
[null,null,null,null,null,null,{"$error":"#NAME?"},null,{"$error":"#NAME?"}]
[null,null,null,null,null,null,{"$error":"#NAME?"},null,{"$error":"#NAME?"}]
[null,null,null,null,null,null,{"$error":"#NAME?"},null,{"$error":"#NAME?"}]
[null,null,null,null,null,null,{"$error":"#NAME?"},null,{"$error":"#NAME?"}]
[null,null,null,null,null,null,{"$error":"#NAME?"},null,{"$error":"#NAME?"}]
[null,null,null,null,null,null,{"$error":"#NAME?"},null,{"$error":"#NAME?"}]
[null,null,null,null,null,null,{"$error":"#NAME?"},null,{"$error":"#NAME?"}]
[null,null,null,null,null,null,{"$error":"#NAME?"},null,{"$error":"#NAME?"}]
[null,null,null,null,null,null,{"$error":"#NAME?"},null,{"$error":"#NAME?"}]
[null,null,null,null,null,null,{"$error":"#NAME?"},null,{"$error":"#NAME?"}]
[null,null,null,null,null,null,{"$error":"#NAME?"},null,{"$error":"#NAME?"}]
[null,null,null,null,null,null,{"$error":"#NAME?"},null,{"$error":"#NAME?"}]
[null,null,null,null,null,null,{"$error":"#NAME?"},null,{"$error":"#NAME?"}]
[null,null,null,null,null,null,{"$error":"#NAME?"},null,{"$error":"#NAME?"}]
[null,null,null,null,null,null,{"$error":"#NAME?"},null,{"$error":"#NAME?"}]
[null,null,null,null,null,null,{"$error":"#NAME?"},null,{"$error":"#NAME?"}]
[null,null,null,null,null,null,{"$error":"#NAME?"},null,{"$error":"#NAME?"}]
[null,null,null,null,null,null,{"$error":"#NAME?"},null,{"$error":"#NAME?"}]
[null,null,null,null,null,null,{"$error":"#NAME?"},null,{"$error":"#NAME?"}]
[null,null,null,null,null,null,{"$error":"#NAME?"},null,{"$error":"#NAME?"}]
[null,null,null,null,null,null,{"$error":"#NAME?"},null,{"$error":"#NAME?"}]

{"sheet":"فبراير","index":1,"n_rows":100,"n_cols":17,"rows_kept":100,"cut":false,"hidden":false,"merged":[[37,4,37,5],[35,1,35,3],[35,4,35,5],[3,7,3,8],[5,7,5,8],[6,7,6,8],[7,7,7,8],[8,0,8,1],[0,0,0,1],[0,4,0,5],[1,7,1,8],[2,7,2,8],[32,0,32,3],[32,4,32,5],[33,0,33,3]]}
[null,null,null,null,null,null,null,"انشاء فاتورة جديدة",{"$f":"SUM(M2:M100)","v":0},"رقم الفاتورة","تاريخ الفاتورة","اسم الشركة","إجمالي المبيعات",0.14000000000000001,0.01,"الصافى","تاريخ الإستلام"]
[null,null,null,null,null,null,null,"إجمالي المبيعات",null,"-",{"$f":"$F$4","v":"00:00:00"},{"$f":"$B$10","v":""},{"$f":"$E$33","v":0},{"$f":"$F$34","v":0},{"$f":"$F$35","v":0},{"$f":"$E$36","v":0}]
[null,null,null,null,"رقم أمر التوريد",null,{"$f":"_xlfn.IFS(K3=0,\" \",K3>=K2,\" \",K3<K2,\"error\")","v":{"$error":"#NAME?"}},{"$f":"I1+#REF!","v":{"$error":"#REF!"}}]
[null,null,null,null,"التاريخ",null,{"$f":"_xlfn.IFS(K4=0,\" \",K4>=K3,\" \",K4<K3,\"error\")","v":{"$error":"#NAME?"}}]
[null,null,null,null,"رقم الفاتورة",null,{"$error":"#NAME?"}]
[null,null,null,null,"كود العميل",null,{"$error":"#NAME?"},"الضريبة"]
[null,null,null,null,null,null,{"$error":"#NAME?"},{"$f":"SUM(N2:N100)","v":0}]
[null,null,null,null,null,null,{"$error":"#NAME?"}]
["بيانات العميل",null,null,null,null,null,{"$error":"#NAME?"},{"$f":"يناير!H4","v":0},{"$f":"_xlfn.IFS(K9=0,\" \",K9>=K8,\" \",K9<K8,\"error\")","v":{"$error":"#NAME?"}}]
["شـركـة /",{"$f":"IF(F6>0,VLOOKUP(F6,client,2,0),\"\")","v":""},null,null,null,null,{"$error":"#NAME?"},{"$f":"يناير!H8","v":0},{"$f":"_xlfn.IFS(K10=0,\" \",K10>=K9,\" \",K10<K9,\"error\")","v":{"$error":"#NAME?"}}]
["ب .ض /",{"$f":"IF(F6>0,VLOOKUP(F6,client,3,0),\"\")","v":""},null,null,null,null,null,null,{"$error":"#NAME?"}]
["المستلم /",null,null,null,null,null,null,null,{"$error":"#NAME?"}]
[null,null,null,null,null,null,null,null,{"$error":"#NAME?"}]
[null,null,null,null,null,null,null,null,{"$error":"#NAME?"}]
[null,null,null,null,null,null,null,null,{"$error":"#NAME?"}]
["كود المنتج","البيان","الكمية","الوحدة","السعر","الأجمالى",null,null,{"$error":"#NAME?"}]
[null,{"$f":"IF(A17>0,VLOOKUP(A17,product,2,0),\"\")","v":""},null,null,null,{"$f":"C17*E17","v":0},null,null,{"$error":"#NAME?"}]
[null,"",null,null,null,0,null,null,{"$error":"#NAME?"}]
[null,"",null,null,null,0,null,null,{"$error":"#NAME?"}]
[null,"",null,null,null,0,null,null,{"$error":"#NAME?"}]
[null,"",null,null,null,0,null,null,{"$error":"#NAME?"}]
[null,"",null,null,null,0,null,null,{"$error":"#NAME?"}]
[null,"",null,null,null,0,null,null,{"$error":"#NAME?"}]
[null,"",null,null,null,0,null,null,{"$error":"#NAME?"}]
[null,"",null,null,null,0,null,null,{"$error":"#NAME?"}]
[null,"",null,null,null,0,null,null,{"$error":"#NAME?"}]
[null,"",null,null,null,0,null,null,{"$error":"#NAME?"}]
[null,"",null,null,null,0,null,null,{"$error":"#NAME?"}]
[null,"",null,null,null,0,null,null,{"$error":"#NAME?"}]
[null,"",null,null,null,0,null,null,{"$error":"#NAME?"}]
[null,"",null,null,null,0,null,null,{"$error":"#NAME?"}]
[null,"",null,null,null,0,null,null,{"$error":"#NAME?"}]
["الاجمالى",null,null,null,{"$f":"SUM(F17:F32)","v":0},null,null,null,{"$error":"#NAME?"}]
["ضريبة القيمة المضافة",null,null,null,0.14000000000000001,{"$f":"E34*E33","v":0},null,null,{"$error":"#NAME?"}]
[null,null,null,null,null,null,null,null,{"$error":"#NAME?"}]
["فقط وقدره",{"$f":"ConvertNumberToWords2(E36,\"جنيه\",\"قرش\")","v":"صفر"},null,null,{"$f":"E33+F34-F35","v":0},null,null,null,{"$error":"#NAME?"}]
[null,null,null,null,null,null,null,null,{"$error":"#NAME?"}]
[null,"الحسابات",null,null,"الإدارة المالية",null,null,null,{"$error":"#NAME?"}]
[null,null,null,null,null,null,null,null,{"$error":"#NAME?"}]
[null,null,null,null,null,null,null,null,{"$error":"#NAME?"}]
[null,null,null,null,null,null,{"$error":"#NAME?"},null,{"$error":"#NAME?"}]
[null,null,null,null,null,null,{"$error":"#NAME?"},null,{"$error":"#NAME?"}]
[null,null,null,null,null,null,{"$error":"#NAME?"},null,{"$error":"#NAME?"}]
[null,null,null,null,null,null,{"$error":"#NAME?"},null,{"$error":"#NAME?"}]
[null,null,null,null,null,null,{"$error":"#NAME?"},null,{"$error":"#NAME?"}]
[null,null,null,null,null,null,{"$error":"#NAME?"},null,{"$error":"#NAME?"}]
[null,null,null,null,null,null,{"$error":"#NAME?"},null,{"$error":"#NAME?"}]
[null,null,null,null,null,null,{"$error":"#NAME?"},null,{"$error":"#NAME?"}]
[null,null,null,null,null,null,{"$error":"#NAME?"},null,{"$error":"#NAME?"}]
[null,null,null,null,null,null,{"$error":"#NAME?"},null,{"$error":"#NAME?"}]
[null,null,null,null,null,null,{"$error":"#NAME?"},null,{"$error":"#NAME?"}]
[null,null,null,null,null,null,{"$error":"#NAME?"},null,{"$error":"#NAME?"}]
[null,null,null,null,null,null,{"$error":"#NAME?"},null,{"$error":"#NAME?"}]
[null,null,null,null,null,null,{"$error":"#NAME?"},null,{"$error":"#NAME?"}]
[null,null,null,null,null,null,{"$error":"#NAME?"},null,{"$error":"#NAME?"}]
[null,null,null,null,null,null,{"$error":"#NAME?"},null,{"$error":"#NAME?"}]
[null,null,null,null,null,null,{"$error":"#NAME?"},null,{"$error":"#NAME?"}]
[null,null,null,null,null,null,{"$error":"#NAME?"},null,{"$error":"#NAME?"}]
[null,null,null,null,null,null,{"$error":"#NAME?"},null,{"$error":"#NAME?"}]
[null,null,null,null,null,null,{"$error":"#NAME?"},null,{"$error":"#NAME?"}]
[null,null,null,null,null,null,{"$error":"#NAME?"},null,{"$error":"#NAME?"}]
[null,null,null,null,null,null,{"$error":"#NAME?"},null,{"$error":"#NAME?"}]
[null,null,null,null,null,null,{"$error":"#NAME?"},null,{"$error":"#NAME?"}]
[null,null,null,null,null,null,{"$error":"#NAME?"},null,{"$error":"#NAME?"}]
[null,null,null,null,null,null,{"$error":"#NAME?"},null,{"$error":"#NAME?"}]
[null,null,null,null,null,null,{"$error":"#NAME?"},null,{"$error":"#NAME?"}]
[null,null,null,null,null,null,{"$error":"#NAME?"},null,{"$error":"#NAME?"}]
[null,null,null,null,null,null,{"$f":"_xlfn.IFS(K68=0,\" \",K68>=K67,\" \",K68<K67,\"error\")","v":{"$error":"#NAME?"}},null,{"$error":"#NAME?"}]
[null,null,null,null,null,null,{"$error":"#NAME?"},null,{"$error":"#NAME?"}]
[null,null,null,null,null,null,{"$error":"#NAME?"},null,{"$error":"#NAME?"}]
[null,null,null,null,null,null,{"$error":"#NAME?"},null,{"$error":"#NAME?"}]
[null,null,null,null,null,null,{"$error":"#NAME?"},null,{"$error":"#NAME?"}]
[null,null,null,null,null,null,{"$error":"#NAME?"},null,{"$error":"#NAME?"}]
[null,null,null,null,null,null,{"$error":"#NAME?"},null,{"$f":"_xlfn.IFS(K74=0,\" \",K74>=K73,\" \",K74<K73,\"error\")","v":{"$error":"#NAME?"}}]
[null,null,null,null,null,null,{"$error":"#NAME?"},null,{"$error":"#NAME?"}]
[null,null,null,null,null,null,{"$error":"#NAME?"},null,{"$error":"#NAME?"}]
[null,null,null,null,null,null,{"$error":"#NAME?"},null,{"$error":"#NAME?"}]
[null,null,null,null,null,null,{"$error":"#NAME?"},null,{"$error":"#NAME?"}]
[null,null,null,null,null,null,{"$error":"#NAME?"},null,{"$error":"#NAME?"}]
[null,null,null,null,null,null,{"$error":"#NAME?"},null,{"$error":"#NAME?"}]
[null,null,null,null,null,null,{"$error":"#NAME?"},null,{"$error":"#NAME?"}]
[null,null,null,null,null,null,{"$error":"#NAME?"},null,{"$error":"#NAME?"}]
[null,null,null,null,null,null,{"$error":"#NAME?"},null,{"$error":"#NAME?"}]
[null,null,null,null,null,null,{"$error":"#NAME?"},null,{"$error":"#NAME?"}]
[null,null,null,null,null,null,{"$error":"#NAME?"},null,{"$error":"#NAME?"}]
[null,null,null,null,null,null,{"$error":"#NAME?"},null,{"$error":"#NAME?"}]
[null,null,null,null,null,null,{"$error":"#NAME?"},null,{"$error":"#NAME?"}]
[null,null,null,null,null,null,{"$error":"#NAME?"},null,{"$error":"#NAME?"}]
[null,null,null,null,null,null,{"$error":"#NAME?"},null,{"$error":"#NAME?"}]
[null,null,null,null,null,null,{"$error":"#NAME?"},null,{"$error":"#NAME?"}]
[null,null,null,null,null,null,{"$error":"#NAME?"},null,{"$error":"#NAME?"}]
[null,null,null,null,null,null,{"$error":"#NAME?"},null,{"$error":"#NAME?"}]
[null,null,null,null,null,null,{"$error":"#NAME?"},null,{"$error":"#NAME?"}]
[null,null,null,null,null,null,{"$error":"#NAME?"},null,{"$error":"#NAME?"}]
[null,null,null,null,null,null,{"$error":"#NAME?"},null,{"$error":"#NAME?"}]
[null,null,null,null,null,null,{"$error":"#NAME?"},null,{"$error":"#NAME?"}]
[null,null,null,null,null,null,{"$error":"#NAME?"},null,{"$error":"#NAME?"}]
[null,null,null,null,null,null,{"$error":"#NAME?"},null,{"$error":"#NAME?"}]
[null,null,null,null,null,null,{"$error":"#NAME?"},null,{"$error":"#NAME?"}]
[null,null,null,null,null,null,{"$error":"#NAME?"},null,{"$error":"#NAME?"}]

{"sheet":"مارس","index":2,"n_rows":100,"n_cols":17,"rows_kept":100,"cut":false,"hidden":false,"merged":[[37,4,37,5],[35,1,35,3],[35,4,35,5],[3,7,3,8],[5,7,5,8],[6,7,6,8],[7,7,7,8],[8,0,8,1],[0,0,0,1],[0,4,0,5],[1,7,1,8],[2,7,2,8],[32,0,32,3],[32,4,32,5],[33,0,33,3]]}
[null,null,null,null,null,null,null,"انشاء فاتورة جديدة",{"$f":"SUM(M2:M100)","v":0},"رقم الفاتورة","تاريخ الفاتورة","اسم الشركة","إجمالي المبيعات",0.14000000000000001,0.01,"الصافى","تاريخ الإستلام"]
[null,null,null,null,null,null,null,"إجمالي المبيعات",null,"-",{"$f":"$F$4","v":"00:00:00"},{"$f":"$B$10","v":""},{"$f":"$E$33","v":0},{"$f":"$F$34","v":0},{"$f":"$F$35","v":0},{"$f":"$E$36","v":0}]
[null,null,null,null,"رقم أمر التوريد",null,{"$f":"_xlfn.IFS(K3=0,\" \",K3>=K2,\" \",K3<K2,\"error\")","v":{"$error":"#NAME?"}},{"$f":"I1+#REF!","v":{"$error":"#REF!"}}]
[null,null,null,null,"التاريخ",null,{"$f":"_xlfn.IFS(K4=0,\" \",K4>=K3,\" \",K4<K3,\"error\")","v":{"$error":"#NAME?"}}]
[null,null,null,null,"رقم الفاتورة",null,{"$error":"#NAME?"}]
[null,null,null,null,"كود العميل",null,{"$error":"#NAME?"},"الضريبة"]
[null,null,null,null,null,null,{"$error":"#NAME?"},{"$f":"SUM(N2:N100)","v":0}]
[null,null,null,null,null,null,{"$error":"#NAME?"}]
["بيانات العميل",null,null,null,null,null,{"$error":"#NAME?"},{"$f":"فبراير!H4+فبراير!H9","v":0},{"$f":"_xlfn.IFS(K9=0,\" \",K9>=K8,\" \",K9<K8,\"error\")","v":{"$error":"#NAME?"}}]
["شـركـة /",{"$f":"IF(F6>0,VLOOKUP(F6,client,2,0),\"\")","v":""},null,null,null,null,{"$error":"#NAME?"},{"$f":"فبراير!H8+فبراير!H10","v":0},{"$f":"_xlfn.IFS(K10=0,\" \",K10>=K9,\" \",K10<K9,\"error\")","v":{"$error":"#NAME?"}}]
["ب .ض /",{"$f":"IF(F6>0,VLOOKUP(F6,client,3,0),\"\")","v":""},null,null,null,null,null,null,{"$error":"#NAME?"}]
["المستلم /",null,null,null,null,null,null,null,{"$error":"#NAME?"}]
[null,null,null,null,null,null,null,null,{"$error":"#NAME?"}]
[null,null,null,null,null,null,null,null,{"$error":"#NAME?"}]
[null,null,null,null,null,null,null,null,{"$error":"#NAME?"}]
["كود المنتج","البيان","الكمية","الوحدة","السعر","الأجمالى",null,null,{"$error":"#NAME?"}]
[null,{"$f":"IF(A17>0,VLOOKUP(A17,product,2,0),\"\")","v":""},null,null,null,{"$f":"C17*E17","v":0},null,null,{"$error":"#NAME?"}]
[null,"",null,null,null,0,null,null,{"$error":"#NAME?"}]
[null,"",null,null,null,0,null,null,{"$error":"#NAME?"}]
[null,"",null,null,null,0,null,null,{"$error":"#NAME?"}]
[null,"",null,null,null,0,null,null,{"$error":"#NAME?"}]
[null,"",null,null,null,0,null,null,{"$error":"#NAME?"}]
[null,"",null,null,null,0,null,null,{"$error":"#NAME?"}]
[null,"",null,null,null,0,null,null,{"$error":"#NAME?"}]
[null,"",null,null,null,0,null,null,{"$error":"#NAME?"}]
[null,"",null,null,null,0,null,null,{"$error":"#NAME?"}]
[null,"",null,null,null,0,null,null,{"$error":"#NAME?"}]
[null,"",null,null,null,0,null,null,{"$error":"#NAME?"}]
[null,"",null,null,null,0,null,null,{"$error":"#NAME?"}]
[null,"",null,null,null,0,null,null,{"$error":"#NAME?"}]
[null,"",null,null,null,0,null,null,{"$error":"#NAME?"}]
[null,"",null,null,null,0,null,null,{"$error":"#NAME?"}]
["الاجمالى",null,null,null,{"$f":"SUM(F17:F32)","v":0},null,null,null,{"$error":"#NAME?"}]
["ضريبة القيمة المضافة",null,null,null,0.14000000000000001,{"$f":"E34*E33","v":0},null,null,{"$error":"#NAME?"}]
[null,null,null,null,null,null,null,null,{"$error":"#NAME?"}]
["فقط وقدره",{"$f":"ConvertNumberToWords2(E36,\"جنيه\",\"قرش\")","v":"صفر"},null,null,{"$f":"E33+F34-F35","v":0},null,null,null,{"$error":"#NAME?"}]
[null,null,null,null,null,null,null,null,{"$error":"#NAME?"}]
[null,"الحسابات",null,null,"الإدارة المالية",null,null,null,{"$error":"#NAME?"}]
[null,null,null,null,null,null,null,null,{"$error":"#NAME?"}]
[null,null,null,null,null,null,null,null,{"$error":"#NAME?"}]
[null,null,null,null,null,null,{"$error":"#NAME?"},null,{"$error":"#NAME?"}]
[null,null,null,null,null,null,{"$error":"#NAME?"},null,{"$error":"#NAME?"}]
[null,null,null,null,null,null,{"$error":"#NAME?"},null,{"$error":"#NAME?"}]
[null,null,null,null,null,null,{"$error":"#NAME?"},null,{"$error":"#NAME?"}]
[null,null,null,null,null,null,{"$error":"#NAME?"},null,{"$error":"#NAME?"}]
[null,null,null,null,null,null,{"$error":"#NAME?"},null,{"$error":"#NAME?"}]
[null,null,null,null,null,null,{"$error":"#NAME?"},null,{"$error":"#NAME?"}]
[null,null,null,null,null,null,{"$error":"#NAME?"},null,{"$error":"#NAME?"}]
[null,null,null,null,null,null,{"$error":"#NAME?"},null,{"$error":"#NAME?"}]
[null,null,null,null,null,null,{"$error":"#NAME?"},null,{"$error":"#NAME?"}]
[null,null,null,null,null,null,{"$error":"#NAME?"},null,{"$error":"#NAME?"}]
[null,null,null,null,null,null,{"$error":"#NAME?"},null,{"$error":"#NAME?"}]
[null,null,null,null,null,null,{"$error":"#NAME?"},null,{"$error":"#NAME?"}]
[null,null,null,null,null,null,{"$error":"#NAME?"},null,{"$error":"#NAME?"}]
[null,null,null,null,null,null,{"$error":"#NAME?"},null,{"$error":"#NAME?"}]
[null,null,null,null,null,null,{"$error":"#NAME?"},null,{"$error":"#NAME?"}]
[null,null,null,null,null,null,{"$error":"#NAME?"},null,{"$error":"#NAME?"}]
[null,null,null,null,null,null,{"$error":"#NAME?"},null,{"$error":"#NAME?"}]
[null,null,null,null,null,null,{"$error":"#NAME?"},null,{"$error":"#NAME?"}]
[null,null,null,null,null,null,{"$error":"#NAME?"},null,{"$error":"#NAME?"}]
[null,null,null,null,null,null,{"$error":"#NAME?"},null,{"$error":"#NAME?"}]
[null,null,null,null,null,null,{"$error":"#NAME?"},null,{"$error":"#NAME?"}]
[null,null,null,null,null,null,{"$error":"#NAME?"},null,{"$error":"#NAME?"}]
[null,null,null,null,null,null,{"$error":"#NAME?"},null,{"$error":"#NAME?"}]
[null,null,null,null,null,null,{"$error":"#NAME?"},null,{"$error":"#NAME?"}]
[null,null,null,null,null,null,{"$error":"#NAME?"},null,{"$error":"#NAME?"}]
[null,null,null,null,null,null,{"$error":"#NAME?"},null,{"$error":"#NAME?"}]
[null,null,null,null,null,null,{"$f":"_xlfn.IFS(K68=0,\" \",K68>=K67,\" \",K68<K67,\"error\")","v":{"$error":"#NAME?"}},null,{"$error":"#NAME?"}]
[null,null,null,null,null,null,{"$error":"#NAME?"},null,{"$error":"#NAME?"}]
[null,null,null,null,null,null,{"$error":"#NAME?"},null,{"$error":"#NAME?"}]
[null,null,null,null,null,null,{"$error":"#NAME?"},null,{"$error":"#NAME?"}]
[null,null,null,null,null,null,{"$error":"#NAME?"},null,{"$error":"#NAME?"}]
[null,null,null,null,null,null,{"$error":"#NAME?"},null,{"$error":"#NAME?"}]
[null,null,null,null,null,null,{"$error":"#NAME?"},null,{"$f":"_xlfn.IFS(K74=0,\" \",K74>=K73,\" \",K74<K73,\"error\")","v":{"$error":"#NAME?"}}]
[null,null,null,null,null,null,{"$error":"#NAME?"},null,{"$error":"#NAME?"}]
[null,null,null,null,null,null,{"$error":"#NAME?"},null,{"$error":"#NAME?"}]
[null,null,null,null,null,null,{"$error":"#NAME?"},null,{"$error":"#NAME?"}]
[null,null,null,null,null,null,{"$error":"#NAME?"},null,{"$error":"#NAME?"}]
[null,null,null,null,null,null,{"$error":"#NAME?"},null,{"$error":"#NAME?"}]
[null,null,null,null,null,null,{"$error":"#NAME?"},null,{"$error":"#NAME?"}]
[null,null,null,null,null,null,{"$error":"#NAME?"},null,{"$error":"#NAME?"}]
[null,null,null,null,null,null,{"$error":"#NAME?"},null,{"$error":"#NAME?"}]
[null,null,null,null,null,null,{"$error":"#NAME?"},null,{"$error":"#NAME?"}]
[null,null,null,null,null,null,{"$error":"#NAME?"},null,{"$error":"#NAME?"}]
[null,null,null,null,null,null,{"$error":"#NAME?"},null,{"$error":"#NAME?"}]
[null,null,null,null,null,null,{"$error":"#NAME?"},null,{"$error":"#NAME?"}]
[null,null,null,null,null,null,{"$error":"#NAME?"},null,{"$error":"#NAME?"}]
[null,null,null,null,null,null,{"$error":"#NAME?"},null,{"$error":"#NAME?"}]
[null,null,null,null,null,null,{"$error":"#NAME?"},null,{"$error":"#NAME?"}]
[null,null,null,null,null,null,{"$error":"#NAME?"},null,{"$error":"#NAME?"}]
[null,null,null,null,null,null,{"$error":"#NAME?"},null,{"$error":"#NAME?"}]
[null,null,null,null,null,null,{"$error":"#NAME?"},null,{"$error":"#NAME?"}]
[null,null,null,null,null,null,{"$error":"#NAME?"},null,{"$error":"#NAME?"}]
[null,null,null,null,null,null,{"$error":"#NAME?"},null,{"$error":"#NAME?"}]
[null,null,null,null,null,null,{"$error":"#NAME?"},null,{"$error":"#NAME?"}]
[null,null,null,null,null,null,{"$error":"#NAME?"},null,{"$error":"#NAME?"}]
[null,null,null,null,null,null,{"$error":"#NAME?"},null,{"$error":"#NAME?"}]
[null,null,null,null,null,null,{"$error":"#NAME?"},null,{"$error":"#NAME?"}]
[null,null,null,null,null,null,{"$error":"#NAME?"},null,{"$error":"#NAME?"}]
[null,null,null,null,null,null,{"$error":"#NAME?"},null,{"$error":"#NAME?"}]

{"sheet":"ابريل","index":3,"n_rows":100,"n_cols":17,"rows_kept":100,"cut":false,"hidden":false,"merged":[[37,4,37,5],[35,1,35,3],[35,4,35,5],[3,7,3,8],[5,7,5,8],[6,7,6,8],[7,7,7,8],[8,0,8,1],[0,0,0,1],[0,4,0,5],[1,7,1,8],[2,7,2,8],[32,0,32,3],[32,4,32,5],[33,0,33,3]]}
[null,null,null,null,null,null,null,"انشاء فاتورة جديدة",{"$f":"SUM(M2:M100)","v":0},"رقم الفاتورة","تاريخ الفاتورة","اسم الشركة","إجمالي المبيعات",0.14000000000000001,0.01,"الصافى","تاريخ الإستلام"]
[null,null,null,null,null,null,null,"إجمالي المبيعات",null,"-",{"$f":"$F$4","v":"00:00:00"},{"$f":"$B$10","v":""},{"$f":"$E$33","v":0},{"$f":"$F$34","v":0},{"$f":"$F$35","v":0},{"$f":"$E$36","v":0}]
[null,null,null,null,"رقم أمر التوريد",null,{"$f":"_xlfn.IFS(K3=0,\" \",K3>=K2,\" \",K3<K2,\"error\")","v":{"$error":"#NAME?"}},{"$f":"I1+#REF!","v":{"$error":"#REF!"}}]
[null,null,null,null,"التاريخ",null,{"$f":"_xlfn.IFS(K4=0,\" \",K4>=K3,\" \",K4<K3,\"error\")","v":{"$error":"#NAME?"}}]
[null,null,null,null,"رقم الفاتورة",null,{"$error":"#NAME?"}]
[null,null,null,null,"كود العميل",null,{"$error":"#NAME?"},"الضريبة"]
[null,null,null,null,null,null,{"$error":"#NAME?"},{"$f":"SUM(N2:N100)","v":0}]
[null,null,null,null,null,null,{"$error":"#NAME?"}]
["بيانات العميل",null,null,null,null,null,{"$error":"#NAME?"},{"$f":"مارس!H4+مارس!H9","v":0},{"$f":"_xlfn.IFS(K9=0,\" \",K9>=K8,\" \",K9<K8,\"error\")","v":{"$error":"#NAME?"}}]
["شـركـة /",{"$f":"IF(F6>0,VLOOKUP(F6,client,2,0),\"\")","v":""},null,null,null,null,{"$error":"#NAME?"},{"$f":"مارس!H8+مارس!H10","v":0},{"$f":"_xlfn.IFS(K10=0,\" \",K10>=K9,\" \",K10<K9,\"error\")","v":{"$error":"#NAME?"}}]
["ب .ض /",{"$f":"IF(F6>0,VLOOKUP(F6,client,3,0),\"\")","v":""},null,null,null,null,null,null,{"$error":"#NAME?"}]
["المستلم /",null,null,null,null,null,null,null,{"$error":"#NAME?"}]
[null,null,null,null,null,null,null,null,{"$error":"#NAME?"}]
[null,null,null,null,null,null,null,null,{"$error":"#NAME?"}]
[null,null,null,null,null,null,null,null,{"$error":"#NAME?"}]
["كود المنتج","البيان","الكمية","الوحدة","السعر","الأجمالى",null,null,{"$error":"#NAME?"}]
[null,{"$f":"IF(A17>0,VLOOKUP(A17,product,2,0),\"\")","v":""},null,null,null,{"$f":"C17*E17","v":0},null,null,{"$error":"#NAME?"}]
[null,"",null,null,null,0,null,null,{"$error":"#NAME?"}]
[null,"",null,null,null,0,null,null,{"$error":"#NAME?"}]
[null,"",null,null,null,0,null,null,{"$error":"#NAME?"}]
[null,"",null,null,null,0,null,null,{"$error":"#NAME?"}]
[null,"",null,null,null,0,null,null,{"$error":"#NAME?"}]
[null,"",null,null,null,0,null,null,{"$error":"#NAME?"}]
[null,"",null,null,null,0,null,null,{"$error":"#NAME?"}]
[null,"",null,null,null,0,null,null,{"$error":"#NAME?"}]
[null,"",null,null,null,0,null,null,{"$error":"#NAME?"}]
[null,"",null,null,null,0,null,null,{"$error":"#NAME?"}]
[null,"",null,null,null,0,null,null,{"$error":"#NAME?"}]
[null,"",null,null,null,0,null,null,{"$error":"#NAME?"}]
[null,"",null,null,null,0,null,null,{"$error":"#NAME?"}]
[null,"",null,null,null,0,null,null,{"$error":"#NAME?"}]
[null,"",null,null,null,0,null,null,{"$error":"#NAME?"}]
["الاجمالى",null,null,null,{"$f":"SUM(F17:F32)","v":0},null,null,null,{"$error":"#NAME?"}]
["ضريبة القيمة المضافة",null,null,null,0.14000000000000001,{"$f":"E34*E33","v":0},null,null,{"$error":"#NAME?"}]
[null,null,null,null,null,null,null,null,{"$error":"#NAME?"}]
["فقط وقدره",{"$f":"ConvertNumberToWords2(E36,\"جنيه\",\"قرش\")","v":"صفر"},null,null,{"$f":"E33+F34-F35","v":0},null,null,null,{"$error":"#NAME?"}]
[null,null,null,null,null,null,null,null,{"$error":"#NAME?"}]
[null,"الحسابات",null,null,"الإدارة المالية",null,null,null,{"$error":"#NAME?"}]
[null,null,null,null,null,null,null,null,{"$error":"#NAME?"}]
[null,null,null,null,null,null,null,null,{"$error":"#NAME?"}]
[null,null,null,null,null,null,{"$error":"#NAME?"},null,{"$error":"#NAME?"}]
[null,null,null,null,null,null,{"$error":"#NAME?"},null,{"$error":"#NAME?"}]
[null,null,null,null,null,null,{"$error":"#NAME?"},null,{"$error":"#NAME?"}]
[null,null,null,null,null,null,{"$error":"#NAME?"},null,{"$error":"#NAME?"}]
[null,null,null,null,null,null,{"$error":"#NAME?"},null,{"$error":"#NAME?"}]
[null,null,null,null,null,null,{"$error":"#NAME?"},null,{"$error":"#NAME?"}]
[null,null,null,null,null,null,{"$error":"#NAME?"},null,{"$error":"#NAME?"}]
[null,null,null,null,null,null,{"$error":"#NAME?"},null,{"$error":"#NAME?"}]
[null,null,null,null,null,null,{"$error":"#NAME?"},null,{"$error":"#NAME?"}]
[null,null,null,null,null,null,{"$error":"#NAME?"},null,{"$error":"#NAME?"}]
[null,null,null,null,null,null,{"$error":"#NAME?"},null,{"$error":"#NAME?"}]
[null,null,null,null,null,null,{"$error":"#NAME?"},null,{"$error":"#NAME?"}]
[null,null,null,null,null,null,{"$error":"#NAME?"},null,{"$error":"#NAME?"}]
[null,null,null,null,null,null,{"$error":"#NAME?"},null,{"$error":"#NAME?"}]
[null,null,null,null,null,null,{"$error":"#NAME?"},null,{"$error":"#NAME?"}]
[null,null,null,null,null,null,{"$error":"#NAME?"},null,{"$error":"#NAME?"}]
[null,null,null,null,null,null,{"$error":"#NAME?"},null,{"$error":"#NAME?"}]
[null,null,null,null,null,null,{"$error":"#NAME?"},null,{"$error":"#NAME?"}]
[null,null,null,null,null,null,{"$error":"#NAME?"},null,{"$error":"#NAME?"}]
[null,null,null,null,null,null,{"$error":"#NAME?"},null,{"$error":"#NAME?"}]
[null,null,null,null,null,null,{"$error":"#NAME?"},null,{"$error":"#NAME?"}]
[null,null,null,null,null,null,{"$error":"#NAME?"},null,{"$error":"#NAME?"}]
[null,null,null,null,null,null,{"$error":"#NAME?"},null,{"$error":"#NAME?"}]
[null,null,null,null,null,null,{"$error":"#NAME?"},null,{"$error":"#NAME?"}]
[null,null,null,null,null,null,{"$error":"#NAME?"},null,{"$error":"#NAME?"}]
[null,null,null,null,null,null,{"$error":"#NAME?"},null,{"$error":"#NAME?"}]
[null,null,null,null,null,null,{"$error":"#NAME?"},null,{"$error":"#NAME?"}]
[null,null,null,null,null,null,{"$f":"_xlfn.IFS(K68=0,\" \",K68>=K67,\" \",K68<K67,\"error\")","v":{"$error":"#NAME?"}},null,{"$error":"#NAME?"}]
[null,null,null,null,null,null,{"$error":"#NAME?"},null,{"$error":"#NAME?"}]
[null,null,null,null,null,null,{"$error":"#NAME?"},null,{"$error":"#NAME?"}]
[null,null,null,null,null,null,{"$error":"#NAME?"},null,{"$error":"#NAME?"}]
[null,null,null,null,null,null,{"$error":"#NAME?"},null,{"$error":"#NAME?"}]
[null,null,null,null,null,null,{"$error":"#NAME?"},null,{"$error":"#NAME?"}]
[null,null,null,null,null,null,{"$error":"#NAME?"},null,{"$f":"_xlfn.IFS(K74=0,\" \",K74>=K73,\" \",K74<K73,\"error\")","v":{"$error":"#NAME?"}}]
[null,null,null,null,null,null,{"$error":"#NAME?"},null,{"$error":"#NAME?"}]
[null,null,null,null,null,null,{"$error":"#NAME?"},null,{"$error":"#NAME?"}]
[null,null,null,null,null,null,{"$error":"#NAME?"},null,{"$error":"#NAME?"}]
[null,null,null,null,null,null,{"$error":"#NAME?"},null,{"$error":"#NAME?"}]
[null,null,null,null,null,null,{"$error":"#NAME?"},null,{"$error":"#NAME?"}]
[null,null,null,null,null,null,{"$error":"#NAME?"},null,{"$error":"#NAME?"}]
[null,null,null,null,null,null,{"$error":"#NAME?"},null,{"$error":"#NAME?"}]
[null,null,null,null,null,null,{"$error":"#NAME?"},null,{"$error":"#NAME?"}]
[null,null,null,null,null,null,{"$error":"#NAME?"},null,{"$error":"#NAME?"}]
[null,null,null,null,null,null,{"$error":"#NAME?"},null,{"$error":"#NAME?"}]
[null,null,null,null,null,null,{"$error":"#NAME?"},null,{"$error":"#NAME?"}]
[null,null,null,null,null,null,{"$error":"#NAME?"},null,{"$error":"#NAME?"}]
[null,null,null,null,null,null,{"$error":"#NAME?"},null,{"$error":"#NAME?"}]
[null,null,null,null,null,null,{"$error":"#NAME?"},null,{"$error":"#NAME?"}]
[null,null,null,null,null,null,{"$error":"#NAME?"},null,{"$error":"#NAME?"}]
[null,null,null,null,null,null,{"$error":"#NAME?"},null,{"$error":"#NAME?"}]
[null,null,null,null,null,null,{"$error":"#NAME?"},null,{"$error":"#NAME?"}]
[null,null,null,null,null,null,{"$error":"#NAME?"},null,{"$error":"#NAME?"}]
[null,null,null,null,null,null,{"$error":"#NAME?"},null,{"$error":"#NAME?"}]
[null,null,null,null,null,null,{"$error":"#NAME?"},null,{"$error":"#NAME?"}]
[null,null,null,null,null,null,{"$error":"#NAME?"},null,{"$error":"#NAME?"}]
[null,null,null,null,null,null,{"$error":"#NAME?"},null,{"$error":"#NAME?"}]
[null,null,null,null,null,null,{"$error":"#NAME?"},null,{"$error":"#NAME?"}]
[null,null,null,null,null,null,{"$error":"#NAME?"},null,{"$error":"#NAME?"}]
[null,null,null,null,null,null,{"$error":"#NAME?"},null,{"$error":"#NAME?"}]
[null,null,null,null,null,null,{"$error":"#NAME?"},null,{"$error":"#NAME?"}]

{"sheet":"مايو","index":4,"n_rows":100,"n_cols":17,"rows_kept":100,"cut":false,"hidden":false,"merged":[[37,4,37,5],[35,1,35,3],[35,4,35,5],[3,7,3,8],[5,7,5,8],[6,7,6,8],[7,7,7,8],[8,0,8,1],[0,0,0,1],[0,4,0,5],[1,7,1,8],[2,7,2,8],[32,0,32,3],[32,4,32,5],[33,0,33,3]]}
[null,null,null,null,null,null,null,"انشاء فاتورة جديدة",{"$f":"SUM(M2:M100)","v":0},"رقم الفاتورة","تاريخ الفاتورة","اسم الشركة","إجمالي المبيعات",0.14000000000000001,0.01,"الصافى","تاريخ الإستلام"]
[null,null,null,null,null,null,null,"إجمالي المبيعات",null,"-",{"$f":"$F$4","v":"00:00:00"},{"$f":"$B$10","v":""},{"$f":"$E$33","v":0},{"$f":"$F$34","v":0},{"$f":"$F$35","v":0},{"$f":"$E$36","v":0}]
[null,null,null,null,"رقم أمر التوريد",null,{"$f":"_xlfn.IFS(K3=0,\" \",K3>=K2,\" \",K3<K2,\"error\")","v":{"$error":"#NAME?"}},{"$f":"I1+#REF!","v":{"$error":"#REF!"}}]
[null,null,null,null,"التاريخ",null,{"$f":"_xlfn.IFS(K4=0,\" \",K4>=K3,\" \",K4<K3,\"error\")","v":{"$error":"#NAME?"}}]
[null,null,null,null,"رقم الفاتورة",null,{"$error":"#NAME?"}]
[null,null,null,null,"كود العميل",null,{"$error":"#NAME?"},"الضريبة"]
[null,null,null,null,null,null,{"$error":"#NAME?"},{"$f":"SUM(N2:N100)","v":0}]
[null,null,null,null,null,null,{"$error":"#NAME?"}]
["بيانات العميل",null,null,null,null,null,{"$error":"#NAME?"},{"$f":"ابريل!H4+ابريل!H9","v":0},{"$f":"_xlfn.IFS(K9=0,\" \",K9>=K8,\" \",K9<K8,\"error\")","v":{"$error":"#NAME?"}}]
["شـركـة /",{"$f":"IF(F6>0,VLOOKUP(F6,client,2,0),\"\")","v":""},null,null,null,null,{"$error":"#NAME?"},{"$f":"H8+ابريل!H10","v":0},{"$f":"_xlfn.IFS(K10=0,\" \",K10>=K9,\" \",K10<K9,\"error\")","v":{"$error":"#NAME?"}}]
["ب .ض /",{"$f":"IF(F6>0,VLOOKUP(F6,client,3,0),\"\")","v":""},null,null,null,null,null,null,{"$error":"#NAME?"}]
["المستلم /",null,null,null,null,null,null,null,{"$error":"#NAME?"}]
[null,null,null,null,null,null,null,null,{"$error":"#NAME?"}]
[null,null,null,null,null,null,null,null,{"$error":"#NAME?"}]
[null,null,null,null,null,null,null,null,{"$error":"#NAME?"}]
["كود المنتج","البيان","الكمية","الوحدة","السعر","الأجمالى",null,null,{"$error":"#NAME?"}]
[null,{"$f":"IF(A17>0,VLOOKUP(A17,product,2,0),\"\")","v":""},null,null,null,{"$f":"C17*E17","v":0},null,null,{"$error":"#NAME?"}]
[null,"",null,null,null,0,null,null,{"$error":"#NAME?"}]
[null,"",null,null,null,0,null,null,{"$error":"#NAME?"}]
[null,"",null,null,null,0,null,null,{"$error":"#NAME?"}]
[null,"",null,null,null,0,null,null,{"$error":"#NAME?"}]
[null,"",null,null,null,0,null,null,{"$error":"#NAME?"}]
[null,"",null,null,null,0,null,null,{"$error":"#NAME?"}]
[null,"",null,null,null,0,null,null,{"$error":"#NAME?"}]
[null,"",null,null,null,0,null,null,{"$error":"#NAME?"}]
[null,"",null,null,null,0,null,null,{"$error":"#NAME?"}]
[null,"",null,null,null,0,null,null,{"$error":"#NAME?"}]
[null,"",null,null,null,0,null,null,{"$error":"#NAME?"}]
[null,"",null,null,null,0,null,null,{"$error":"#NAME?"}]
[null,"",null,null,null,0,null,null,{"$error":"#NAME?"}]
[null,"",null,null,null,0,null,null,{"$error":"#NAME?"}]
[null,"",null,null,null,0,null,null,{"$error":"#NAME?"}]
["الاجمالى",null,null,null,{"$f":"SUM(F17:F32)","v":0},null,null,null,{"$error":"#NAME?"}]
["ضريبة القيمة المضافة",null,null,null,0.14000000000000001,{"$f":"E34*E33","v":0},null,null,{"$error":"#NAME?"}]
[null,null,null,null,null,null,null,null,{"$error":"#NAME?"}]
["فقط وقدره",{"$f":"ConvertNumberToWords2(E36,\"جنيه\",\"قرش\")","v":"صفر"},null,null,{"$f":"E33+F34-F35","v":0},null,null,null,{"$error":"#NAME?"}]
[null,null,null,null,null,null,null,null,{"$error":"#NAME?"}]
[null,"الحسابات",null,null,"الإدارة المالية",null,null,null,{"$error":"#NAME?"}]
[null,null,null,null,null,null,null,null,{"$error":"#NAME?"}]
[null,null,null,null,null,null,null,null,{"$error":"#NAME?"}]
[null,null,null,null,null,null,{"$error":"#NAME?"},null,{"$error":"#NAME?"}]
[null,null,null,null,null,null,{"$error":"#NAME?"},null,{"$error":"#NAME?"}]
[null,null,null,null,null,null,{"$error":"#NAME?"},null,{"$error":"#NAME?"}]
[null,null,null,null,null,null,{"$error":"#NAME?"},null,{"$error":"#NAME?"}]
[null,null,null,null,null,null,{"$error":"#NAME?"},null,{"$error":"#NAME?"}]
[null,null,null,null,null,null,{"$error":"#NAME?"},null,{"$error":"#NAME?"}]
[null,null,null,null,null,null,{"$error":"#NAME?"},null,{"$error":"#NAME?"}]
[null,null,null,null,null,null,{"$error":"#NAME?"},null,{"$error":"#NAME?"}]
[null,null,null,null,null,null,{"$error":"#NAME?"},null,{"$error":"#NAME?"}]
[null,null,null,null,null,null,{"$error":"#NAME?"},null,{"$error":"#NAME?"}]
[null,null,null,null,null,null,{"$error":"#NAME?"},null,{"$error":"#NAME?"}]
[null,null,null,null,null,null,{"$error":"#NAME?"},null,{"$error":"#NAME?"}]
[null,null,null,null,null,null,{"$error":"#NAME?"},null,{"$error":"#NAME?"}]
[null,null,null,null,null,null,{"$error":"#NAME?"},null,{"$error":"#NAME?"}]
[null,null,null,null,null,null,{"$error":"#NAME?"},null,{"$error":"#NAME?"}]
[null,null,null,null,null,null,{"$error":"#NAME?"},null,{"$error":"#NAME?"}]
[null,null,null,null,null,null,{"$error":"#NAME?"},null,{"$error":"#NAME?"}]
[null,null,null,null,null,null,{"$error":"#NAME?"},null,{"$error":"#NAME?"}]
[null,null,null,null,null,null,{"$error":"#NAME?"},null,{"$error":"#NAME?"}]
[null,null,null,null,null,null,{"$error":"#NAME?"},null,{"$error":"#NAME?"}]
[null,null,null,null,null,null,{"$error":"#NAME?"},null,{"$error":"#NAME?"}]
[null,null,null,null,null,null,{"$error":"#NAME?"},null,{"$error":"#NAME?"}]
[null,null,null,null,null,null,{"$error":"#NAME?"},null,{"$error":"#NAME?"}]
[null,null,null,null,null,null,{"$error":"#NAME?"},null,{"$error":"#NAME?"}]
[null,null,null,null,null,null,{"$error":"#NAME?"},null,{"$error":"#NAME?"}]
[null,null,null,null,null,null,{"$error":"#NAME?"},null,{"$error":"#NAME?"}]
[null,null,null,null,null,null,{"$error":"#NAME?"},null,{"$error":"#NAME?"}]
[null,null,null,null,null,null,{"$f":"_xlfn.IFS(K68=0,\" \",K68>=K67,\" \",K68<K67,\"error\")","v":{"$error":"#NAME?"}},null,{"$error":"#NAME?"}]
[null,null,null,null,null,null,{"$error":"#NAME?"},null,{"$error":"#NAME?"}]
[null,null,null,null,null,null,{"$error":"#NAME?"},null,{"$error":"#NAME?"}]
[null,null,null,null,null,null,{"$error":"#NAME?"},null,{"$error":"#NAME?"}]
[null,null,null,null,null,null,{"$error":"#NAME?"},null,{"$error":"#NAME?"}]
[null,null,null,null,null,null,{"$error":"#NAME?"},null,{"$error":"#NAME?"}]
[null,null,null,null,null,null,{"$error":"#NAME?"},null,{"$f":"_xlfn.IFS(K74=0,\" \",K74>=K73,\" \",K74<K73,\"error\")","v":{"$error":"#NAME?"}}]
[null,null,null,null,null,null,{"$error":"#NAME?"},null,{"$error":"#NAME?"}]
[null,null,null,null,null,null,{"$error":"#NAME?"},null,{"$error":"#NAME?"}]
[null,null,null,null,null,null,{"$error":"#NAME?"},null,{"$error":"#NAME?"}]
[null,null,null,null,null,null,{"$error":"#NAME?"},null,{"$error":"#NAME?"}]
[null,null,null,null,null,null,{"$error":"#NAME?"},null,{"$error":"#NAME?"}]
[null,null,null,null,null,null,{"$error":"#NAME?"},null,{"$error":"#NAME?"}]
[null,null,null,null,null,null,{"$error":"#NAME?"},null,{"$error":"#NAME?"}]
[null,null,null,null,null,null,{"$error":"#NAME?"},null,{"$error":"#NAME?"}]
[null,null,null,null,null,null,{"$error":"#NAME?"},null,{"$error":"#NAME?"}]
[null,null,null,null,null,null,{"$error":"#NAME?"},null,{"$error":"#NAME?"}]
[null,null,null,null,null,null,{"$error":"#NAME?"},null,{"$error":"#NAME?"}]
[null,null,null,null,null,null,{"$error":"#NAME?"},null,{"$error":"#NAME?"}]
[null,null,null,null,null,null,{"$error":"#NAME?"},null,{"$error":"#NAME?"}]
[null,null,null,null,null,null,{"$error":"#NAME?"},null,{"$error":"#NAME?"}]
[null,null,null,null,null,null,{"$error":"#NAME?"},null,{"$error":"#NAME?"}]
[null,null,null,null,null,null,{"$error":"#NAME?"},null,{"$error":"#NAME?"}]
[null,null,null,null,null,null,{"$error":"#NAME?"},null,{"$error":"#NAME?"}]
[null,null,null,null,null,null,{"$error":"#NAME?"},null,{"$error":"#NAME?"}]
[null,null,null,null,null,null,{"$error":"#NAME?"},null,{"$error":"#NAME?"}]
[null,null,null,null,null,null,{"$error":"#NAME?"},null,{"$error":"#NAME?"}]
[null,null,null,null,null,null,{"$error":"#NAME?"},null,{"$error":"#NAME?"}]
[null,null,null,null,null,null,{"$error":"#NAME?"},null,{"$error":"#NAME?"}]
[null,null,null,null,null,null,{"$error":"#NAME?"},null,{"$error":"#NAME?"}]
[null,null,null,null,null,null,{"$error":"#NAME?"},null,{"$error":"#NAME?"}]
[null,null,null,null,null,null,{"$error":"#NAME?"},null,{"$error":"#NAME?"}]
[null,null,null,null,null,null,{"$error":"#NAME?"},null,{"$error":"#NAME?"}]

{"sheet":"يونيو","index":5,"n_rows":100,"n_cols":17,"rows_kept":100,"cut":false,"hidden":false,"merged":[[37,4,37,5],[35,1,35,3],[35,4,35,5],[3,7,3,8],[5,7,5,8],[6,7,6,8],[7,7,7,8],[8,0,8,1],[0,0,0,1],[0,4,0,5],[1,7,1,8],[2,7,2,8],[32,0,32,3],[32,4,32,5],[33,0,33,3]]}
[null,null,null,null,null,null,null,"انشاء فاتورة جديدة",{"$f":"SUM(M2:M100)","v":0},"رقم الفاتورة","تاريخ الفاتورة","اسم الشركة","إجمالي المبيعات",0.14000000000000001,0.01,"الصافى","تاريخ الإستلام"]
[null,null,null,null,null,null,null,"إجمالي المبيعات",null,"-",{"$f":"$F$4","v":"00:00:00"},{"$f":"$B$10","v":""},{"$f":"$E$33","v":0},{"$f":"$F$34","v":0},{"$f":"$F$35","v":0},{"$f":"$E$36","v":0}]
[null,null,null,null,"رقم أمر التوريد",null,{"$f":"_xlfn.IFS(K3=0,\" \",K3>=K2,\" \",K3<K2,\"error\")","v":{"$error":"#NAME?"}},{"$f":"I1+#REF!","v":{"$error":"#REF!"}}]
[null,null,null,null,"التاريخ",null,{"$f":"_xlfn.IFS(K4=0,\" \",K4>=K3,\" \",K4<K3,\"error\")","v":{"$error":"#NAME?"}}]
[null,null,null,null,"رقم الفاتورة",null,{"$error":"#NAME?"}]
[null,null,null,null,"كود العميل",null,{"$error":"#NAME?"},"الضريبة"]
[null,null,null,null,null,null,{"$error":"#NAME?"},{"$f":"SUM(N2:N100)","v":0}]
[null,null,null,null,null,null,{"$error":"#NAME?"}]
["بيانات العميل",null,null,null,null,null,{"$error":"#NAME?"},{"$f":"مايو!H4+مايو!H9","v":0},{"$f":"_xlfn.IFS(K9=0,\" \",K9>=K8,\" \",K9<K8,\"error\")","v":{"$error":"#NAME?"}}]
["شـركـة /",{"$f":"IF(F6>0,VLOOKUP(F6,client,2,0),\"\")","v":""},null,null,null,null,{"$error":"#NAME?"},{"$f":"مايو!H8+مايو!H10","v":0},{"$f":"_xlfn.IFS(K10=0,\" \",K10>=K9,\" \",K10<K9,\"error\")","v":{"$error":"#NAME?"}}]
["ب .ض /",{"$f":"IF(F6>0,VLOOKUP(F6,client,3,0),\"\")","v":""},null,null,null,null,null,null,{"$error":"#NAME?"}]
["المستلم /",null,null,null,null,null,null,null,{"$error":"#NAME?"}]
[null,null,null,null,null,null,null,null,{"$error":"#NAME?"}]
[null,null,null,null,null,null,null,null,{"$error":"#NAME?"}]
[null,null,null,null,null,null,null,null,{"$error":"#NAME?"}]
["كود المنتج","البيان","الكمية","الوحدة","السعر","الأجمالى",null,null,{"$error":"#NAME?"}]
[null,{"$f":"IF(A17>0,VLOOKUP(A17,product,2,0),\"\")","v":""},null,null,null,{"$f":"C17*E17","v":0},null,null,{"$error":"#NAME?"}]
[null,"",null,null,null,0,null,null,{"$error":"#NAME?"}]
[null,"",null,null,null,0,null,null,{"$error":"#NAME?"}]
[null,"",null,null,null,0,null,null,{"$error":"#NAME?"}]
[null,"",null,null,null,0,null,null,{"$error":"#NAME?"}]
[null,"",null,null,null,0,null,null,{"$error":"#NAME?"}]
[null,"",null,null,null,0,null,null,{"$error":"#NAME?"}]
[null,"",null,null,null,0,null,null,{"$error":"#NAME?"}]
[null,"",null,null,null,0,null,null,{"$error":"#NAME?"}]
[null,"",null,null,null,0,null,null,{"$error":"#NAME?"}]
[null,"",null,null,null,0,null,null,{"$error":"#NAME?"}]
[null,"",null,null,null,0,null,null,{"$error":"#NAME?"}]
[null,"",null,null,null,0,null,null,{"$error":"#NAME?"}]
[null,"",null,null,null,0,null,null,{"$error":"#NAME?"}]
[null,"",null,null,null,0,null,null,{"$error":"#NAME?"}]
[null,"",null,null,null,0,null,null,{"$error":"#NAME?"}]
["الاجمالى",null,null,null,{"$f":"SUM(F17:F32)","v":0},null,null,null,{"$error":"#NAME?"}]
["ضريبة القيمة المضافة",null,null,null,0.14000000000000001,{"$f":"E34*E33","v":0},null,null,{"$error":"#NAME?"}]
[null,null,null,null,null,null,null,null,{"$error":"#NAME?"}]
["فقط وقدره",{"$f":"ConvertNumberToWords2(E36,\"جنيه\",\"قرش\")","v":"صفر"},null,null,{"$f":"E33+F34-F35","v":0},null,null,null,{"$error":"#NAME?"}]
[null,null,null,null,null,null,null,null,{"$error":"#NAME?"}]
[null,"الحسابات",null,null,"الإدارة المالية",null,null,null,{"$error":"#NAME?"}]
[null,null,null,null,null,null,null,null,{"$error":"#NAME?"}]
[null,null,null,null,null,null,null,null,{"$error":"#NAME?"}]
[null,null,null,null,null,null,{"$error":"#NAME?"},null,{"$error":"#NAME?"}]
[null,null,null,null,null,null,{"$error":"#NAME?"},null,{"$error":"#NAME?"}]
[null,null,null,null,null,null,{"$error":"#NAME?"},null,{"$error":"#NAME?"}]
[null,null,null,null,null,null,{"$error":"#NAME?"},null,{"$error":"#NAME?"}]
[null,null,null,null,null,null,{"$error":"#NAME?"},null,{"$error":"#NAME?"}]
[null,null,null,null,null,null,{"$error":"#NAME?"},null,{"$error":"#NAME?"}]
[null,null,null,null,null,null,{"$error":"#NAME?"},null,{"$error":"#NAME?"}]
[null,null,null,null,null,null,{"$error":"#NAME?"},null,{"$error":"#NAME?"}]
[null,null,null,null,null,null,{"$error":"#NAME?"},null,{"$error":"#NAME?"}]
[null,null,null,null,null,null,{"$error":"#NAME?"},null,{"$error":"#NAME?"}]
[null,null,null,null,null,null,{"$error":"#NAME?"},null,{"$error":"#NAME?"}]
[null,null,null,null,null,null,{"$error":"#NAME?"},null,{"$error":"#NAME?"}]
[null,null,null,null,null,null,{"$error":"#NAME?"},null,{"$error":"#NAME?"}]
[null,null,null,null,null,null,{"$error":"#NAME?"},null,{"$error":"#NAME?"}]
[null,null,null,null,null,null,{"$error":"#NAME?"},null,{"$error":"#NAME?"}]
[null,null,null,null,null,null,{"$error":"#NAME?"},null,{"$error":"#NAME?"}]
[null,null,null,null,null,null,{"$error":"#NAME?"},null,{"$error":"#NAME?"}]
[null,null,null,null,null,null,{"$error":"#NAME?"},null,{"$error":"#NAME?"}]
[null,null,null,null,null,null,{"$error":"#NAME?"},null,{"$error":"#NAME?"}]
[null,null,null,null,null,null,{"$error":"#NAME?"},null,{"$error":"#NAME?"}]
[null,null,null,null,null,null,{"$error":"#NAME?"},null,{"$error":"#NAME?"}]
[null,null,null,null,null,null,{"$error":"#NAME?"},null,{"$error":"#NAME?"}]
[null,null,null,null,null,null,{"$error":"#NAME?"},null,{"$error":"#NAME?"}]
[null,null,null,null,null,null,{"$error":"#NAME?"},null,{"$error":"#NAME?"}]
[null,null,null,null,null,null,{"$error":"#NAME?"},null,{"$error":"#NAME?"}]
[null,null,null,null,null,null,{"$error":"#NAME?"},null,{"$error":"#NAME?"}]
[null,null,null,null,null,null,{"$error":"#NAME?"},null,{"$error":"#NAME?"}]
[null,null,null,null,null,null,{"$f":"_xlfn.IFS(K68=0,\" \",K68>=K67,\" \",K68<K67,\"error\")","v":{"$error":"#NAME?"}},null,{"$error":"#NAME?"}]
[null,null,null,null,null,null,{"$error":"#NAME?"},null,{"$error":"#NAME?"}]
[null,null,null,null,null,null,{"$error":"#NAME?"},null,{"$error":"#NAME?"}]
[null,null,null,null,null,null,{"$error":"#NAME?"},null,{"$error":"#NAME?"}]
[null,null,null,null,null,null,{"$error":"#NAME?"},null,{"$error":"#NAME?"}]
[null,null,null,null,null,null,{"$error":"#NAME?"},null,{"$error":"#NAME?"}]
[null,null,null,null,null,null,{"$error":"#NAME?"},null,{"$f":"_xlfn.IFS(K74=0,\" \",K74>=K73,\" \",K74<K73,\"error\")","v":{"$error":"#NAME?"}}]
[null,null,null,null,null,null,{"$error":"#NAME?"},null,{"$error":"#NAME?"}]
[null,null,null,null,null,null,{"$error":"#NAME?"},null,{"$error":"#NAME?"}]
[null,null,null,null,null,null,{"$error":"#NAME?"},null,{"$error":"#NAME?"}]
[null,null,null,null,null,null,{"$error":"#NAME?"},null,{"$error":"#NAME?"}]
[null,null,null,null,null,null,{"$error":"#NAME?"},null,{"$error":"#NAME?"}]
[null,null,null,null,null,null,{"$error":"#NAME?"},null,{"$error":"#NAME?"}]
[null,null,null,null,null,null,{"$error":"#NAME?"},null,{"$error":"#NAME?"}]
[null,null,null,null,null,null,{"$error":"#NAME?"},null,{"$error":"#NAME?"}]
[null,null,null,null,null,null,{"$error":"#NAME?"},null,{"$error":"#NAME?"}]
[null,null,null,null,null,null,{"$error":"#NAME?"},null,{"$error":"#NAME?"}]
[null,null,null,null,null,null,{"$error":"#NAME?"},null,{"$error":"#NAME?"}]
[null,null,null,null,null,null,{"$error":"#NAME?"},null,{"$error":"#NAME?"}]
[null,null,null,null,null,null,{"$error":"#NAME?"},null,{"$error":"#NAME?"}]
[null,null,null,null,null,null,{"$error":"#NAME?"},null,{"$error":"#NAME?"}]
[null,null,null,null,null,null,{"$error":"#NAME?"},null,{"$error":"#NAME?"}]
[null,null,null,null,null,null,{"$error":"#NAME?"},null,{"$error":"#NAME?"}]
[null,null,null,null,null,null,{"$error":"#NAME?"},null,{"$error":"#NAME?"}]
[null,null,null,null,null,null,{"$error":"#NAME?"},null,{"$error":"#NAME?"}]
[null,null,null,null,null,null,{"$error":"#NAME?"},null,{"$error":"#NAME?"}]
[null,null,null,null,null,null,{"$error":"#NAME?"},null,{"$error":"#NAME?"}]
[null,null,null,null,null,null,{"$error":"#NAME?"},null,{"$error":"#NAME?"}]
[null,null,null,null,null,null,{"$error":"#NAME?"},null,{"$error":"#NAME?"}]
[null,null,null,null,null,null,{"$error":"#NAME?"},null,{"$error":"#NAME?"}]
[null,null,null,null,null,null,{"$error":"#NAME?"},null,{"$error":"#NAME?"}]
[null,null,null,null,null,null,{"$error":"#NAME?"},null,{"$error":"#NAME?"}]
[null,null,null,null,null,null,{"$error":"#NAME?"},null,{"$error":"#NAME?"}]

{"sheet":"يوليو","index":6,"n_rows":100,"n_cols":17,"rows_kept":100,"cut":false,"hidden":false,"merged":[[37,4,37,5],[35,1,35,3],[35,4,35,5],[3,7,3,8],[5,7,5,8],[6,7,6,8],[7,7,7,8],[8,0,8,1],[0,0,0,1],[0,4,0,5],[1,7,1,8],[2,7,2,8],[32,0,32,3],[32,4,32,5],[33,0,33,3]]}
[null,null,null,null,null,null,null,"انشاء فاتورة جديدة",{"$f":"SUM(M2:M100)","v":0},"رقم الفاتورة","تاريخ الفاتورة","اسم الشركة","إجمالي المبيعات",0.14000000000000001,0.01,"الصافى","تاريخ الإستلام"]
[null,null,null,null,null,null,null,"إجمالي المبيعات",null,"-",{"$f":"$F$4","v":"00:00:00"},{"$f":"$B$10","v":""},{"$f":"$E$33","v":0},{"$f":"$F$34","v":0},{"$f":"$F$35","v":0},{"$f":"$E$36","v":0}]
[null,null,null,null,"رقم أمر التوريد",null,{"$f":"_xlfn.IFS(K3=0,\" \",K3>=K2,\" \",K3<K2,\"error\")","v":{"$error":"#NAME?"}},{"$f":"I1+#REF!","v":{"$error":"#REF!"}}]
[null,null,null,null,"التاريخ",null,{"$f":"_xlfn.IFS(K4=0,\" \",K4>=K3,\" \",K4<K3,\"error\")","v":{"$error":"#NAME?"}}]
[null,null,null,null,"رقم الفاتورة",null,{"$error":"#NAME?"}]
[null,null,null,null,"كود العميل",null,{"$error":"#NAME?"},"الضريبة"]
[null,null,null,null,null,null,{"$error":"#NAME?"},{"$f":"SUM(N2:N100)","v":0}]
[null,null,null,null,null,null,{"$error":"#NAME?"}]
["بيانات العميل",null,null,null,null,null,{"$error":"#NAME?"},{"$f":"يونيو!H4+يونيو!H9","v":0},{"$f":"_xlfn.IFS(K9=0,\" \",K9>=K8,\" \",K9<K8,\"error\")","v":{"$error":"#NAME?"}}]
["شـركـة /",{"$f":"IF(F6>0,VLOOKUP(F6,client,2,0),\"\")","v":""},null,null,null,null,{"$error":"#NAME?"},{"$f":"يونيو!H8+يونيو!H10","v":0},{"$f":"_xlfn.IFS(K10=0,\" \",K10>=K9,\" \",K10<K9,\"error\")","v":{"$error":"#NAME?"}}]
["ب .ض /",{"$f":"IF(F6>0,VLOOKUP(F6,client,3,0),\"\")","v":""},null,null,null,null,null,null,{"$error":"#NAME?"}]
["المستلم /",null,null,null,null,null,null,null,{"$error":"#NAME?"}]
[null,null,null,null,null,null,null,null,{"$error":"#NAME?"}]
[null,null,null,null,null,null,null,null,{"$error":"#NAME?"}]
[null,null,null,null,null,null,null,null,{"$error":"#NAME?"}]
["كود المنتج","البيان","الكمية","الوحدة","السعر","الأجمالى",null,null,{"$error":"#NAME?"}]
[null,{"$f":"IF(A17>0,VLOOKUP(A17,product,2,0),\"\")","v":""},null,null,null,{"$f":"C17*E17","v":0},null,null,{"$error":"#NAME?"}]
[null,"",null,null,null,0,null,null,{"$error":"#NAME?"}]
[null,"",null,null,null,0,null,null,{"$error":"#NAME?"}]
[null,"",null,null,null,0,null,null,{"$error":"#NAME?"}]
[null,"",null,null,null,0,null,null,{"$error":"#NAME?"}]
[null,"",null,null,null,0,null,null,{"$error":"#NAME?"}]
[null,"",null,null,null,0,null,null,{"$error":"#NAME?"}]
[null,"",null,null,null,0,null,null,{"$error":"#NAME?"}]
[null,"",null,null,null,0,null,null,{"$error":"#NAME?"}]
[null,"",null,null,null,0,null,null,{"$error":"#NAME?"}]
[null,"",null,null,null,0,null,null,{"$error":"#NAME?"}]
[null,"",null,null,null,0,null,null,{"$error":"#NAME?"}]
[null,"",null,null,null,0,null,null,{"$error":"#NAME?"}]
[null,"",null,null,null,0,null,null,{"$error":"#NAME?"}]
[null,"",null,null,null,0,null,null,{"$error":"#NAME?"}]
[null,"",null,null,null,0,null,null,{"$error":"#NAME?"}]
["الاجمالى",null,null,null,{"$f":"SUM(F17:F32)","v":0},null,null,null,{"$error":"#NAME?"}]
["ضريبة القيمة المضافة",null,null,null,0.14000000000000001,{"$f":"E34*E33","v":0},null,null,{"$error":"#NAME?"}]
[null,null,null,null,null,null,null,null,{"$error":"#NAME?"}]
["فقط وقدره",{"$f":"ConvertNumberToWords2(E36,\"جنيه\",\"قرش\")","v":"صفر"},null,null,{"$f":"E33+F34-F35","v":0},null,null,null,{"$error":"#NAME?"}]
[null,null,null,null,null,null,null,null,{"$error":"#NAME?"}]
[null,"الحسابات",null,null,"الإدارة المالية",null,null,null,{"$error":"#NAME?"}]
[null,null,null,null,null,null,null,null,{"$error":"#NAME?"}]
[null,null,null,null,null,null,null,null,{"$error":"#NAME?"}]
[null,null,null,null,null,null,{"$error":"#NAME?"},null,{"$error":"#NAME?"}]
[null,null,null,null,null,null,{"$error":"#NAME?"},null,{"$error":"#NAME?"}]
[null,null,null,null,null,null,{"$error":"#NAME?"},null,{"$error":"#NAME?"}]
[null,null,null,null,null,null,{"$error":"#NAME?"},null,{"$error":"#NAME?"}]
[null,null,null,null,null,null,{"$error":"#NAME?"},null,{"$error":"#NAME?"}]
[null,null,null,null,null,null,{"$error":"#NAME?"},null,{"$error":"#NAME?"}]
[null,null,null,null,null,null,{"$error":"#NAME?"},null,{"$error":"#NAME?"}]
[null,null,null,null,null,null,{"$error":"#NAME?"},null,{"$error":"#NAME?"}]
[null,null,null,null,null,null,{"$error":"#NAME?"},null,{"$error":"#NAME?"}]
[null,null,null,null,null,null,{"$error":"#NAME?"},null,{"$error":"#NAME?"}]
[null,null,null,null,null,null,{"$error":"#NAME?"},null,{"$error":"#NAME?"}]
[null,null,null,null,null,null,{"$error":"#NAME?"},null,{"$error":"#NAME?"}]
[null,null,null,null,null,null,{"$error":"#NAME?"},null,{"$error":"#NAME?"}]
[null,null,null,null,null,null,{"$error":"#NAME?"},null,{"$error":"#NAME?"}]
[null,null,null,null,null,null,{"$error":"#NAME?"},null,{"$error":"#NAME?"}]
[null,null,null,null,null,null,{"$error":"#NAME?"},null,{"$error":"#NAME?"}]
[null,null,null,null,null,null,{"$error":"#NAME?"},null,{"$error":"#NAME?"}]
[null,null,null,null,null,null,{"$error":"#NAME?"},null,{"$error":"#NAME?"}]
[null,null,null,null,null,null,{"$error":"#NAME?"},null,{"$error":"#NAME?"}]
[null,null,null,null,null,null,{"$error":"#NAME?"},null,{"$error":"#NAME?"}]
[null,null,null,null,null,null,{"$error":"#NAME?"},null,{"$error":"#NAME?"}]
[null,null,null,null,null,null,{"$error":"#NAME?"},null,{"$error":"#NAME?"}]
[null,null,null,null,null,null,{"$error":"#NAME?"},null,{"$error":"#NAME?"}]
[null,null,null,null,null,null,{"$error":"#NAME?"},null,{"$error":"#NAME?"}]
[null,null,null,null,null,null,{"$error":"#NAME?"},null,{"$error":"#NAME?"}]
[null,null,null,null,null,null,{"$error":"#NAME?"},null,{"$error":"#NAME?"}]
[null,null,null,null,null,null,{"$error":"#NAME?"},null,{"$error":"#NAME?"}]
[null,null,null,null,null,null,{"$f":"_xlfn.IFS(K68=0,\" \",K68>=K67,\" \",K68<K67,\"error\")","v":{"$error":"#NAME?"}},null,{"$error":"#NAME?"}]
[null,null,null,null,null,null,{"$error":"#NAME?"},null,{"$error":"#NAME?"}]
[null,null,null,null,null,null,{"$error":"#NAME?"},null,{"$error":"#NAME?"}]
[null,null,null,null,null,null,{"$error":"#NAME?"},null,{"$error":"#NAME?"}]
[null,null,null,null,null,null,{"$error":"#NAME?"},null,{"$error":"#NAME?"}]
[null,null,null,null,null,null,{"$error":"#NAME?"},null,{"$error":"#NAME?"}]
[null,null,null,null,null,null,{"$error":"#NAME?"},null,{"$f":"_xlfn.IFS(K74=0,\" \",K74>=K73,\" \",K74<K73,\"error\")","v":{"$error":"#NAME?"}}]
[null,null,null,null,null,null,{"$error":"#NAME?"},null,{"$error":"#NAME?"}]
[null,null,null,null,null,null,{"$error":"#NAME?"},null,{"$error":"#NAME?"}]
[null,null,null,null,null,null,{"$error":"#NAME?"},null,{"$error":"#NAME?"}]
[null,null,null,null,null,null,{"$error":"#NAME?"},null,{"$error":"#NAME?"}]
[null,null,null,null,null,null,{"$error":"#NAME?"},null,{"$error":"#NAME?"}]
[null,null,null,null,null,null,{"$error":"#NAME?"},null,{"$error":"#NAME?"}]
[null,null,null,null,null,null,{"$error":"#NAME?"},null,{"$error":"#NAME?"}]
[null,null,null,null,null,null,{"$error":"#NAME?"},null,{"$error":"#NAME?"}]
[null,null,null,null,null,null,{"$error":"#NAME?"},null,{"$error":"#NAME?"}]
[null,null,null,null,null,null,{"$error":"#NAME?"},null,{"$error":"#NAME?"}]
[null,null,null,null,null,null,{"$error":"#NAME?"},null,{"$error":"#NAME?"}]
[null,null,null,null,null,null,{"$error":"#NAME?"},null,{"$error":"#NAME?"}]
[null,null,null,null,null,null,{"$error":"#NAME?"},null,{"$error":"#NAME?"}]
[null,null,null,null,null,null,{"$error":"#NAME?"},null,{"$error":"#NAME?"}]
[null,null,null,null,null,null,{"$error":"#NAME?"},null,{"$error":"#NAME?"}]
[null,null,null,null,null,null,{"$error":"#NAME?"},null,{"$error":"#NAME?"}]
[null,null,null,null,null,null,{"$error":"#NAME?"},null,{"$error":"#NAME?"}]
[null,null,null,null,null,null,{"$error":"#NAME?"},null,{"$error":"#NAME?"}]
[null,null,null,null,null,null,{"$error":"#NAME?"},null,{"$error":"#NAME?"}]
[null,null,null,null,null,null,{"$error":"#NAME?"},null,{"$error":"#NAME?"}]
[null,null,null,null,null,null,{"$error":"#NAME?"},null,{"$error":"#NAME?"}]
[null,null,null,null,null,null,{"$error":"#NAME?"},null,{"$error":"#NAME?"}]
[null,null,null,null,null,null,{"$error":"#NAME?"},null,{"$error":"#NAME?"}]
[null,null,null,null,null,null,{"$error":"#NAME?"},null,{"$error":"#NAME?"}]
[null,null,null,null,null,null,{"$error":"#NAME?"},null,{"$error":"#NAME?"}]
[null,null,null,null,null,null,{"$error":"#NAME?"},null,{"$error":"#NAME?"}]

{"sheet":"أغسطس","index":7,"n_rows":100,"n_cols":17,"rows_kept":100,"cut":false,"hidden":false,"merged":[[37,4,37,5],[35,1,35,3],[35,4,35,5],[3,7,3,8],[5,7,5,8],[6,7,6,8],[7,7,7,8],[8,0,8,1],[0,0,0,1],[0,4,0,5],[1,7,1,8],[2,7,2,8],[32,0,32,3],[32,4,32,5],[33,0,33,3]]}
[null,null,null,null,null,null,null,"انشاء فاتورة جديدة",{"$f":"SUM(M2:M100)","v":0},"رقم الفاتورة","تاريخ الفاتورة","اسم الشركة","إجمالي المبيعات",0.14000000000000001,0.01,"الصافى","تاريخ الإستلام"]
[null,null,null,null,null,null,null,"إجمالي المبيعات",null,"-",{"$f":"$F$4","v":"00:00:00"},{"$f":"$B$10","v":""},{"$f":"$E$33","v":0},{"$f":"$F$34","v":0},{"$f":"$F$35","v":0},{"$f":"$E$36","v":0}]
[null,null,null,null,"رقم أمر التوريد",null,{"$f":"_xlfn.IFS(K3=0,\" \",K3>=K2,\" \",K3<K2,\"error\")","v":{"$error":"#NAME?"}},{"$f":"I1+#REF!","v":{"$error":"#REF!"}}]
[null,null,null,null,"التاريخ",null,{"$f":"_xlfn.IFS(K4=0,\" \",K4>=K3,\" \",K4<K3,\"error\")","v":{"$error":"#NAME?"}}]
[null,null,null,null,"رقم الفاتورة",null,{"$error":"#NAME?"}]
[null,null,null,null,"كود العميل",null,{"$error":"#NAME?"},"الضريبة"]
[null,null,null,null,null,null,{"$error":"#NAME?"},{"$f":"SUM(N2:N100)","v":0}]
[null,null,null,null,null,null,{"$error":"#NAME?"}]
["بيانات العميل",null,null,null,null,null,{"$error":"#NAME?"},{"$f":"يوليو!H4+يوليو!H9","v":0},{"$f":"_xlfn.IFS(K9=0,\" \",K9>=K8,\" \",K9<K8,\"error\")","v":{"$error":"#NAME?"}}]
["شـركـة /",{"$f":"IF(F6>0,VLOOKUP(F6,client,2,0),\"\")","v":""},null,null,null,null,{"$error":"#NAME?"},{"$f":"يوليو!H8+يوليو!H10","v":0},{"$f":"_xlfn.IFS(K10=0,\" \",K10>=K9,\" \",K10<K9,\"error\")","v":{"$error":"#NAME?"}}]
["ب .ض /",{"$f":"IF(F6>0,VLOOKUP(F6,client,3,0),\"\")","v":""},null,null,null,null,null,null,{"$error":"#NAME?"}]
["المستلم /",null,null,null,null,null,null,null,{"$error":"#NAME?"}]
[null,null,null,null,null,null,null,null,{"$error":"#NAME?"}]
[null,null,null,null,null,null,null,null,{"$error":"#NAME?"}]
[null,null,null,null,null,null,null,null,{"$error":"#NAME?"}]
["كود المنتج","البيان","الكمية","الوحدة","السعر","الأجمالى",null,null,{"$error":"#NAME?"}]
[null,{"$f":"IF(A17>0,VLOOKUP(A17,product,2,0),\"\")","v":""},null,null,null,{"$f":"C17*E17","v":0},null,null,{"$error":"#NAME?"}]
[null,"",null,null,null,0,null,null,{"$error":"#NAME?"}]
[null,"",null,null,null,0,null,null,{"$error":"#NAME?"}]
[null,"",null,null,null,0,null,null,{"$error":"#NAME?"}]
[null,"",null,null,null,0,null,null,{"$error":"#NAME?"}]
[null,"",null,null,null,0,null,null,{"$error":"#NAME?"}]
[null,"",null,null,null,0,null,null,{"$error":"#NAME?"}]
[null,"",null,null,null,0,null,null,{"$error":"#NAME?"}]
[null,"",null,null,null,0,null,null,{"$error":"#NAME?"}]
[null,"",null,null,null,0,null,null,{"$error":"#NAME?"}]
[null,"",null,null,null,0,null,null,{"$error":"#NAME?"}]
[null,"",null,null,null,0,null,null,{"$error":"#NAME?"}]
[null,"",null,null,null,0,null,null,{"$error":"#NAME?"}]
[null,"",null,null,null,0,null,null,{"$error":"#NAME?"}]
[null,"",null,null,null,0,null,null,{"$error":"#NAME?"}]
[null,"",null,null,null,0,null,null,{"$error":"#NAME?"}]
["الاجمالى",null,null,null,{"$f":"SUM(F17:F32)","v":0},null,null,null,{"$error":"#NAME?"}]
["ضريبة القيمة المضافة",null,null,null,0.14000000000000001,{"$f":"E34*E33","v":0},null,null,{"$error":"#NAME?"}]
[null,null,null,null,null,null,null,null,{"$error":"#NAME?"}]
["فقط وقدره",{"$f":"ConvertNumberToWords2(E36,\"جنيه\",\"قرش\")","v":"صفر"},null,null,{"$f":"E33+F34-F35","v":0},null,null,null,{"$error":"#NAME?"}]
[null,null,null,null,null,null,null,null,{"$error":"#NAME?"}]
[null,"الحسابات",null,null,"الإدارة المالية",null,null,null,{"$error":"#NAME?"}]
[null,null,null,null,null,null,null,null,{"$error":"#NAME?"}]
[null,null,null,null,null,null,null,null,{"$error":"#NAME?"}]
[null,null,null,null,null,null,{"$error":"#NAME?"},null,{"$error":"#NAME?"}]
[null,null,null,null,null,null,{"$error":"#NAME?"},null,{"$error":"#NAME?"}]
[null,null,null,null,null,null,{"$error":"#NAME?"},null,{"$error":"#NAME?"}]
[null,null,null,null,null,null,{"$error":"#NAME?"},null,{"$error":"#NAME?"}]
[null,null,null,null,null,null,{"$error":"#NAME?"},null,{"$error":"#NAME?"}]
[null,null,null,null,null,null,{"$error":"#NAME?"},null,{"$error":"#NAME?"}]
[null,null,null,null,null,null,{"$error":"#NAME?"},null,{"$error":"#NAME?"}]
[null,null,null,null,null,null,{"$error":"#NAME?"},null,{"$error":"#NAME?"}]
[null,null,null,null,null,null,{"$error":"#NAME?"},null,{"$error":"#NAME?"}]
[null,null,null,null,null,null,{"$error":"#NAME?"},null,{"$error":"#NAME?"}]
[null,null,null,null,null,null,{"$error":"#NAME?"},null,{"$error":"#NAME?"}]
[null,null,null,null,null,null,{"$error":"#NAME?"},null,{"$error":"#NAME?"}]
[null,null,null,null,null,null,{"$error":"#NAME?"},null,{"$error":"#NAME?"}]
[null,null,null,null,null,null,{"$error":"#NAME?"},null,{"$error":"#NAME?"}]
[null,null,null,null,null,null,{"$error":"#NAME?"},null,{"$error":"#NAME?"}]
[null,null,null,null,null,null,{"$error":"#NAME?"},null,{"$error":"#NAME?"}]
[null,null,null,null,null,null,{"$error":"#NAME?"},null,{"$error":"#NAME?"}]
[null,null,null,null,null,null,{"$error":"#NAME?"},null,{"$error":"#NAME?"}]
[null,null,null,null,null,null,{"$error":"#NAME?"},null,{"$error":"#NAME?"}]
[null,null,null,null,null,null,{"$error":"#NAME?"},null,{"$error":"#NAME?"}]
[null,null,null,null,null,null,{"$error":"#NAME?"},null,{"$error":"#NAME?"}]
[null,null,null,null,null,null,{"$error":"#NAME?"},null,{"$error":"#NAME?"}]
[null,null,null,null,null,null,{"$error":"#NAME?"},null,{"$error":"#NAME?"}]
[null,null,null,null,null,null,{"$error":"#NAME?"},null,{"$error":"#NAME?"}]
[null,null,null,null,null,null,{"$error":"#NAME?"},null,{"$error":"#NAME?"}]
[null,null,null,null,null,null,{"$error":"#NAME?"},null,{"$error":"#NAME?"}]
[null,null,null,null,null,null,{"$error":"#NAME?"},null,{"$error":"#NAME?"}]
[null,null,null,null,null,null,{"$f":"_xlfn.IFS(K68=0,\" \",K68>=K67,\" \",K68<K67,\"error\")","v":{"$error":"#NAME?"}},null,{"$error":"#NAME?"}]
[null,null,null,null,null,null,{"$error":"#NAME?"},null,{"$error":"#NAME?"}]
[null,null,null,null,null,null,{"$error":"#NAME?"},null,{"$error":"#NAME?"}]
[null,null,null,null,null,null,{"$error":"#NAME?"},null,{"$error":"#NAME?"}]
[null,null,null,null,null,null,{"$error":"#NAME?"},null,{"$error":"#NAME?"}]
[null,null,null,null,null,null,{"$error":"#NAME?"},null,{"$error":"#NAME?"}]
[null,null,null,null,null,null,{"$error":"#NAME?"},null,{"$f":"_xlfn.IFS(K74=0,\" \",K74>=K73,\" \",K74<K73,\"error\")","v":{"$error":"#NAME?"}}]
[null,null,null,null,null,null,{"$error":"#NAME?"},null,{"$error":"#NAME?"}]
[null,null,null,null,null,null,{"$error":"#NAME?"},null,{"$error":"#NAME?"}]
[null,null,null,null,null,null,{"$error":"#NAME?"},null,{"$error":"#NAME?"}]
[null,null,null,null,null,null,{"$error":"#NAME?"},null,{"$error":"#NAME?"}]
[null,null,null,null,null,null,{"$error":"#NAME?"},null,{"$error":"#NAME?"}]
[null,null,null,null,null,null,{"$error":"#NAME?"},null,{"$error":"#NAME?"}]
[null,null,null,null,null,null,{"$error":"#NAME?"},null,{"$error":"#NAME?"}]
[null,null,null,null,null,null,{"$error":"#NAME?"},null,{"$error":"#NAME?"}]
[null,null,null,null,null,null,{"$error":"#NAME?"},null,{"$error":"#NAME?"}]
[null,null,null,null,null,null,{"$error":"#NAME?"},null,{"$error":"#NAME?"}]
[null,null,null,null,null,null,{"$error":"#NAME?"},null,{"$error":"#NAME?"}]
[null,null,null,null,null,null,{"$error":"#NAME?"},null,{"$error":"#NAME?"}]
[null,null,null,null,null,null,{"$error":"#NAME?"},null,{"$error":"#NAME?"}]
[null,null,null,null,null,null,{"$error":"#NAME?"},null,{"$error":"#NAME?"}]
[null,null,null,null,null,null,{"$error":"#NAME?"},null,{"$error":"#NAME?"}]
[null,null,null,null,null,null,{"$error":"#NAME?"},null,{"$error":"#NAME?"}]
[null,null,null,null,null,null,{"$error":"#NAME?"},null,{"$error":"#NAME?"}]
[null,null,null,null,null,null,{"$error":"#NAME?"},null,{"$error":"#NAME?"}]
[null,null,null,null,null,null,{"$error":"#NAME?"},null,{"$error":"#NAME?"}]
[null,null,null,null,null,null,{"$error":"#NAME?"},null,{"$error":"#NAME?"}]
[null,null,null,null,null,null,{"$error":"#NAME?"},null,{"$error":"#NAME?"}]
[null,null,null,null,null,null,{"$error":"#NAME?"},null,{"$error":"#NAME?"}]
[null,null,null,null,null,null,{"$error":"#NAME?"},null,{"$error":"#NAME?"}]
[null,null,null,null,null,null,{"$error":"#NAME?"},null,{"$error":"#NAME?"}]
[null,null,null,null,null,null,{"$error":"#NAME?"},null,{"$error":"#NAME?"}]
[null,null,null,null,null,null,{"$error":"#NAME?"},null,{"$error":"#NAME?"}]

{"sheet":"سبتمبر","index":8,"n_rows":100,"n_cols":17,"rows_kept":100,"cut":false,"hidden":false,"merged":[[37,4,37,5],[35,1,35,3],[35,4,35,5],[3,7,3,8],[5,7,5,8],[6,7,6,8],[7,7,7,8],[8,0,8,1],[0,0,0,1],[0,4,0,5],[1,7,1,8],[2,7,2,8],[32,0,32,3],[32,4,32,5],[33,0,33,3]]}
[null,null,null,null,null,null,null,"انشاء فاتورة جديدة",{"$f":"SUM(M2:M100)","v":0},"رقم الفاتورة","تاريخ الفاتورة","اسم الشركة","إجمالي المبيعات",0.14000000000000001,0.01,"الصافى","تاريخ الإستلام"]
[null,null,null,null,null,null,null,"إجمالي المبيعات",null,"-",{"$f":"$F$4","v":"00:00:00"},{"$f":"$B$10","v":""},{"$f":"$E$33","v":0},{"$f":"$F$34","v":0},{"$f":"$F$35","v":0},{"$f":"$E$36","v":0}]
[null,null,null,null,"رقم أمر التوريد",null,{"$f":"_xlfn.IFS(K3=0,\" \",K3>=K2,\" \",K3<K2,\"error\")","v":{"$error":"#NAME?"}},{"$f":"I1+#REF!","v":{"$error":"#REF!"}}]
[null,null,null,null,"التاريخ",null,{"$f":"_xlfn.IFS(K4=0,\" \",K4>=K3,\" \",K4<K3,\"error\")","v":{"$error":"#NAME?"}}]
[null,null,null,null,"رقم الفاتورة",null,{"$error":"#NAME?"}]
[null,null,null,null,"كود العميل",null,{"$error":"#NAME?"},"الضريبة"]
[null,null,null,null,null,null,{"$error":"#NAME?"},{"$f":"SUM(N2:N100)","v":0}]
[null,null,null,null,null,null,{"$error":"#NAME?"}]
["بيانات العميل",null,null,null,null,null,{"$error":"#NAME?"},{"$f":"أغسطس!H4+أغسطس!H9","v":0},{"$f":"_xlfn.IFS(K9=0,\" \",K9>=K8,\" \",K9<K8,\"error\")","v":{"$error":"#NAME?"}}]
["شـركـة /",{"$f":"IF(F6>0,VLOOKUP(F6,client,2,0),\"\")","v":""},null,null,null,null,{"$error":"#NAME?"},{"$f":"أغسطس!H8+أغسطس!H10","v":0},{"$f":"_xlfn.IFS(K10=0,\" \",K10>=K9,\" \",K10<K9,\"error\")","v":{"$error":"#NAME?"}}]
["ب .ض /",{"$f":"IF(F6>0,VLOOKUP(F6,client,3,0),\"\")","v":""},null,null,null,null,null,null,{"$error":"#NAME?"}]
["المستلم /",null,null,null,null,null,null,null,{"$error":"#NAME?"}]
[null,null,null,null,null,null,null,null,{"$error":"#NAME?"}]
[null,null,null,null,null,null,null,null,{"$error":"#NAME?"}]
[null,null,null,null,null,null,null,null,{"$error":"#NAME?"}]
["كود المنتج","البيان","الكمية","الوحدة","السعر","الأجمالى",null,null,{"$error":"#NAME?"}]
[null,{"$f":"IF(A17>0,VLOOKUP(A17,product,2,0),\"\")","v":""},null,null,null,{"$f":"C17*E17","v":0},null,null,{"$error":"#NAME?"}]
[null,"",null,null,null,0,null,null,{"$error":"#NAME?"}]
[null,"",null,null,null,0,null,null,{"$error":"#NAME?"}]
[null,"",null,null,null,0,null,null,{"$error":"#NAME?"}]
[null,"",null,null,null,0,null,null,{"$error":"#NAME?"}]
[null,"",null,null,null,0,null,null,{"$error":"#NAME?"}]
[null,"",null,null,null,0,null,null,{"$error":"#NAME?"}]
[null,"",null,null,null,0,null,null,{"$error":"#NAME?"}]
[null,"",null,null,null,0,null,null,{"$error":"#NAME?"}]
[null,"",null,null,null,0,null,null,{"$error":"#NAME?"}]
[null,"",null,null,null,0,null,null,{"$error":"#NAME?"}]
[null,"",null,null,null,0,null,null,{"$error":"#NAME?"}]
[null,"",null,null,null,0,null,null,{"$error":"#NAME?"}]
[null,"",null,null,null,0,null,null,{"$error":"#NAME?"}]
[null,"",null,null,null,0,null,null,{"$error":"#NAME?"}]
[null,"",null,null,null,0,null,null,{"$error":"#NAME?"}]
["الاجمالى",null,null,null,{"$f":"SUM(F17:F32)","v":0},null,null,null,{"$error":"#NAME?"}]
["ضريبة القيمة المضافة",null,null,null,0.14000000000000001,{"$f":"E34*E33","v":0},null,null,{"$error":"#NAME?"}]
[null,null,null,null,null,null,null,null,{"$error":"#NAME?"}]
["فقط وقدره",{"$f":"ConvertNumberToWords2(E36,\"جنيه\",\"قرش\")","v":"صفر"},null,null,{"$f":"E33+F34-F35","v":0},null,null,null,{"$error":"#NAME?"}]
[null,null,null,null,null,null,null,null,{"$error":"#NAME?"}]
[null,"الحسابات",null,null,"الإدارة المالية",null,null,null,{"$error":"#NAME?"}]
[null,null,null,null,null,null,null,null,{"$error":"#NAME?"}]
[null,null,null,null,null,null,null,null,{"$error":"#NAME?"}]
[null,null,null,null,null,null,{"$error":"#NAME?"},null,{"$error":"#NAME?"}]
[null,null,null,null,null,null,{"$error":"#NAME?"},null,{"$error":"#NAME?"}]
[null,null,null,null,null,null,{"$error":"#NAME?"},null,{"$error":"#NAME?"}]
[null,null,null,null,null,null,{"$error":"#NAME?"},null,{"$error":"#NAME?"}]
[null,null,null,null,null,null,{"$error":"#NAME?"},null,{"$error":"#NAME?"}]
[null,null,null,null,null,null,{"$error":"#NAME?"},null,{"$error":"#NAME?"}]
[null,null,null,null,null,null,{"$error":"#NAME?"},null,{"$error":"#NAME?"}]
[null,null,null,null,null,null,{"$error":"#NAME?"},null,{"$error":"#NAME?"}]
[null,null,null,null,null,null,{"$error":"#NAME?"},null,{"$error":"#NAME?"}]
[null,null,null,null,null,null,{"$error":"#NAME?"},null,{"$error":"#NAME?"}]
[null,null,null,null,null,null,{"$error":"#NAME?"},null,{"$error":"#NAME?"}]
[null,null,null,null,null,null,{"$error":"#NAME?"},null,{"$error":"#NAME?"}]
[null,null,null,null,null,null,{"$error":"#NAME?"},null,{"$error":"#NAME?"}]
[null,null,null,null,null,null,{"$error":"#NAME?"},null,{"$error":"#NAME?"}]
[null,null,null,null,null,null,{"$error":"#NAME?"},null,{"$error":"#NAME?"}]
[null,null,null,null,null,null,{"$error":"#NAME?"},null,{"$error":"#NAME?"}]
[null,null,null,null,null,null,{"$error":"#NAME?"},null,{"$error":"#NAME?"}]
[null,null,null,null,null,null,{"$error":"#NAME?"},null,{"$error":"#NAME?"}]
[null,null,null,null,null,null,{"$error":"#NAME?"},null,{"$error":"#NAME?"}]
[null,null,null,null,null,null,{"$error":"#NAME?"},null,{"$error":"#NAME?"}]
[null,null,null,null,null,null,{"$error":"#NAME?"},null,{"$error":"#NAME?"}]
[null,null,null,null,null,null,{"$error":"#NAME?"},null,{"$error":"#NAME?"}]
[null,null,null,null,null,null,{"$error":"#NAME?"},null,{"$error":"#NAME?"}]
[null,null,null,null,null,null,{"$error":"#NAME?"},null,{"$error":"#NAME?"}]
[null,null,null,null,null,null,{"$error":"#NAME?"},null,{"$error":"#NAME?"}]
[null,null,null,null,null,null,{"$error":"#NAME?"},null,{"$error":"#NAME?"}]
[null,null,null,null,null,null,{"$error":"#NAME?"},null,{"$error":"#NAME?"}]
[null,null,null,null,null,null,{"$f":"_xlfn.IFS(K68=0,\" \",K68>=K67,\" \",K68<K67,\"error\")","v":{"$error":"#NAME?"}},null,{"$error":"#NAME?"}]
[null,null,null,null,null,null,{"$error":"#NAME?"},null,{"$error":"#NAME?"}]
[null,null,null,null,null,null,{"$error":"#NAME?"},null,{"$error":"#NAME?"}]
[null,null,null,null,null,null,{"$error":"#NAME?"},null,{"$error":"#NAME?"}]
[null,null,null,null,null,null,{"$error":"#NAME?"},null,{"$error":"#NAME?"}]
[null,null,null,null,null,null,{"$error":"#NAME?"},null,{"$error":"#NAME?"}]
[null,null,null,null,null,null,{"$error":"#NAME?"},null,{"$f":"_xlfn.IFS(K74=0,\" \",K74>=K73,\" \",K74<K73,\"error\")","v":{"$error":"#NAME?"}}]
[null,null,null,null,null,null,{"$error":"#NAME?"},null,{"$error":"#NAME?"}]
[null,null,null,null,null,null,{"$error":"#NAME?"},null,{"$error":"#NAME?"}]
[null,null,null,null,null,null,{"$error":"#NAME?"},null,{"$error":"#NAME?"}]
[null,null,null,null,null,null,{"$error":"#NAME?"},null,{"$error":"#NAME?"}]
[null,null,null,null,null,null,{"$error":"#NAME?"},null,{"$error":"#NAME?"}]
[null,null,null,null,null,null,{"$error":"#NAME?"},null,{"$error":"#NAME?"}]
[null,null,null,null,null,null,{"$error":"#NAME?"},null,{"$error":"#NAME?"}]
[null,null,null,null,null,null,{"$error":"#NAME?"},null,{"$error":"#NAME?"}]
[null,null,null,null,null,null,{"$error":"#NAME?"},null,{"$error":"#NAME?"}]
[null,null,null,null,null,null,{"$error":"#NAME?"},null,{"$error":"#NAME?"}]
[null,null,null,null,null,null,{"$error":"#NAME?"},null,{"$error":"#NAME?"}]
[null,null,null,null,null,null,{"$error":"#NAME?"},null,{"$error":"#NAME?"}]
[null,null,null,null,null,null,{"$error":"#NAME?"},null,{"$error":"#NAME?"}]
[null,null,null,null,null,null,{"$error":"#NAME?"},null,{"$error":"#NAME?"}]
[null,null,null,null,null,null,{"$error":"#NAME?"},null,{"$error":"#NAME?"}]
[null,null,null,null,null,null,{"$error":"#NAME?"},null,{"$error":"#NAME?"}]
[null,null,null,null,null,null,{"$error":"#NAME?"},null,{"$error":"#NAME?"}]
[null,null,null,null,null,null,{"$error":"#NAME?"},null,{"$error":"#NAME?"}]
[null,null,null,null,null,null,{"$error":"#NAME?"},null,{"$error":"#NAME?"}]
[null,null,null,null,null,null,{"$error":"#NAME?"},null,{"$error":"#NAME?"}]
[null,null,null,null,null,null,{"$error":"#NAME?"},null,{"$error":"#NAME?"}]
[null,null,null,null,null,null,{"$error":"#NAME?"},null,{"$error":"#NAME?"}]
[null,null,null,null,null,null,{"$error":"#NAME?"},null,{"$error":"#NAME?"}]
[null,null,null,null,null,null,{"$error":"#NAME?"},null,{"$error":"#NAME?"}]
[null,null,null,null,null,null,{"$error":"#NAME?"},null,{"$error":"#NAME?"}]
[null,null,null,null,null,null,{"$error":"#NAME?"},null,{"$error":"#NAME?"}]

{"sheet":"أكتوبر","index":9,"n_rows":100,"n_cols":17,"rows_kept":100,"cut":false,"hidden":false,"merged":[[37,4,37,5],[35,1,35,3],[35,4,35,5],[3,7,3,8],[5,7,5,8],[6,7,6,8],[7,7,7,8],[8,0,8,1],[0,0,0,1],[0,4,0,5],[1,7,1,8],[2,7,2,8],[32,0,32,3],[32,4,32,5],[33,0,33,3]]}
[null,null,null,null,null,null,null,"انشاء فاتورة جديدة",{"$f":"SUM(M2:M100)","v":0},"رقم الفاتورة","تاريخ الفاتورة","اسم الشركة","إجمالي المبيعات",0.14000000000000001,0.01,"الصافى","تاريخ الإستلام"]
[null,null,null,null,null,null,null,"إجمالي المبيعات",null,"-",{"$f":"$F$4","v":"00:00:00"},{"$f":"$B$10","v":""},{"$f":"$E$33","v":0},{"$f":"$F$34","v":0},{"$f":"$F$35","v":0},{"$f":"$E$36","v":0}]
[null,null,null,null,"رقم أمر التوريد",null,{"$f":"_xlfn.IFS(K3=0,\" \",K3>=K2,\" \",K3<K2,\"error\")","v":{"$error":"#NAME?"}},{"$f":"I1+#REF!","v":{"$error":"#REF!"}}]
[null,null,null,null,"التاريخ",null,{"$f":"_xlfn.IFS(K4=0,\" \",K4>=K3,\" \",K4<K3,\"error\")","v":{"$error":"#NAME?"}}]
[null,null,null,null,"رقم الفاتورة",null,{"$error":"#NAME?"}]
[null,null,null,null,"كود العميل",null,{"$error":"#NAME?"},"الضريبة"]
[null,null,null,null,null,null,{"$error":"#NAME?"},{"$f":"SUM(N2:N100)","v":0}]
[null,null,null,null,null,null,{"$error":"#NAME?"}]
["بيانات العميل",null,null,null,null,null,{"$error":"#NAME?"},{"$f":"سبتمبر!H4+سبتمبر!H9","v":0},{"$f":"_xlfn.IFS(K9=0,\" \",K9>=K8,\" \",K9<K8,\"error\")","v":{"$error":"#NAME?"}}]
["شـركـة /",{"$f":"IF(F6>0,VLOOKUP(F6,client,2,0),\"\")","v":""},null,null,null,null,{"$error":"#NAME?"},{"$f":"سبتمبر!H8+سبتمبر!H10","v":0},{"$f":"_xlfn.IFS(K10=0,\" \",K10>=K9,\" \",K10<K9,\"error\")","v":{"$error":"#NAME?"}}]
["ب .ض /",{"$f":"IF(F6>0,VLOOKUP(F6,client,3,0),\"\")","v":""},null,null,null,null,null,null,{"$error":"#NAME?"}]
["المستلم /",null,null,null,null,null,null,null,{"$error":"#NAME?"}]
[null,null,null,null,null,null,null,null,{"$error":"#NAME?"}]
[null,null,null,null,null,null,null,null,{"$error":"#NAME?"}]
[null,null,null,null,null,null,null,null,{"$error":"#NAME?"}]
["كود المنتج","البيان","الكمية","الوحدة","السعر","الأجمالى",null,null,{"$error":"#NAME?"}]
[null,{"$f":"IF(A17>0,VLOOKUP(A17,product,2,0),\"\")","v":""},null,null,null,{"$f":"C17*E17","v":0},null,null,{"$error":"#NAME?"}]
[null,"",null,null,null,0,null,null,{"$error":"#NAME?"}]
[null,"",null,null,null,0,null,null,{"$error":"#NAME?"}]
[null,"",null,null,null,0,null,null,{"$error":"#NAME?"}]
[null,"",null,null,null,0,null,null,{"$error":"#NAME?"}]
[null,"",null,null,null,0,null,null,{"$error":"#NAME?"}]
[null,"",null,null,null,0,null,null,{"$error":"#NAME?"}]
[null,"",null,null,null,0,null,null,{"$error":"#NAME?"}]
[null,"",null,null,null,0,null,null,{"$error":"#NAME?"}]
[null,"",null,null,null,0,null,null,{"$error":"#NAME?"}]
[null,"",null,null,null,0,null,null,{"$error":"#NAME?"}]
[null,"",null,null,null,0,null,null,{"$error":"#NAME?"}]
[null,"",null,null,null,0,null,null,{"$error":"#NAME?"}]
[null,"",null,null,null,0,null,null,{"$error":"#NAME?"}]
[null,"",null,null,null,0,null,null,{"$error":"#NAME?"}]
[null,"",null,null,null,0,null,null,{"$error":"#NAME?"}]
["الاجمالى",null,null,null,{"$f":"SUM(F17:F32)","v":0},null,null,null,{"$error":"#NAME?"}]
["ضريبة القيمة المضافة",null,null,null,0.14000000000000001,{"$f":"E34*E33","v":0},null,null,{"$error":"#NAME?"}]
[null,null,null,null,null,null,null,null,{"$error":"#NAME?"}]
["فقط وقدره",{"$f":"ConvertNumberToWords2(E36,\"جنيه\",\"قرش\")","v":"صفر"},null,null,{"$f":"E33+F34-F35","v":0},null,null,null,{"$error":"#NAME?"}]
[null,null,null,null,null,null,null,null,{"$error":"#NAME?"}]
[null,"الحسابات",null,null,"الإدارة المالية",null,null,null,{"$error":"#NAME?"}]
[null,null,null,null,null,null,null,null,{"$error":"#NAME?"}]
[null,null,null,null,null,null,null,null,{"$error":"#NAME?"}]
[null,null,null,null,null,null,{"$error":"#NAME?"},null,{"$error":"#NAME?"}]
[null,null,null,null,null,null,{"$error":"#NAME?"},null,{"$error":"#NAME?"}]
[null,null,null,null,null,null,{"$error":"#NAME?"},null,{"$error":"#NAME?"}]
[null,null,null,null,null,null,{"$error":"#NAME?"},null,{"$error":"#NAME?"}]
[null,null,null,null,null,null,{"$error":"#NAME?"},null,{"$error":"#NAME?"}]
[null,null,null,null,null,null,{"$error":"#NAME?"},null,{"$error":"#NAME?"}]
[null,null,null,null,null,null,{"$error":"#NAME?"},null,{"$error":"#NAME?"}]
[null,null,null,null,null,null,{"$error":"#NAME?"},null,{"$error":"#NAME?"}]
[null,null,null,null,null,null,{"$error":"#NAME?"},null,{"$error":"#NAME?"}]
[null,null,null,null,null,null,{"$error":"#NAME?"},null,{"$error":"#NAME?"}]
[null,null,null,null,null,null,{"$error":"#NAME?"},null,{"$error":"#NAME?"}]
[null,null,null,null,null,null,{"$error":"#NAME?"},null,{"$error":"#NAME?"}]
[null,null,null,null,null,null,{"$error":"#NAME?"},null,{"$error":"#NAME?"}]
[null,null,null,null,null,null,{"$error":"#NAME?"},null,{"$error":"#NAME?"}]
[null,null,null,null,null,null,{"$error":"#NAME?"},null,{"$error":"#NAME?"}]
[null,null,null,null,null,null,{"$error":"#NAME?"},null,{"$error":"#NAME?"}]
[null,null,null,null,null,null,{"$error":"#NAME?"},null,{"$error":"#NAME?"}]
[null,null,null,null,null,null,{"$error":"#NAME?"},null,{"$error":"#NAME?"}]
[null,null,null,null,null,null,{"$error":"#NAME?"},null,{"$error":"#NAME?"}]
[null,null,null,null,null,null,{"$error":"#NAME?"},null,{"$error":"#NAME?"}]
[null,null,null,null,null,null,{"$error":"#NAME?"},null,{"$error":"#NAME?"}]
[null,null,null,null,null,null,{"$error":"#NAME?"},null,{"$error":"#NAME?"}]
[null,null,null,null,null,null,{"$error":"#NAME?"},null,{"$error":"#NAME?"}]
[null,null,null,null,null,null,{"$error":"#NAME?"},null,{"$error":"#NAME?"}]
[null,null,null,null,null,null,{"$error":"#NAME?"},null,{"$error":"#NAME?"}]
[null,null,null,null,null,null,{"$error":"#NAME?"},null,{"$error":"#NAME?"}]
[null,null,null,null,null,null,{"$error":"#NAME?"},null,{"$error":"#NAME?"}]
[null,null,null,null,null,null,{"$f":"_xlfn.IFS(K68=0,\" \",K68>=K67,\" \",K68<K67,\"error\")","v":{"$error":"#NAME?"}},null,{"$error":"#NAME?"}]
[null,null,null,null,null,null,{"$error":"#NAME?"},null,{"$error":"#NAME?"}]
[null,null,null,null,null,null,{"$error":"#NAME?"},null,{"$error":"#NAME?"}]
[null,null,null,null,null,null,{"$error":"#NAME?"},null,{"$error":"#NAME?"}]
[null,null,null,null,null,null,{"$error":"#NAME?"},null,{"$error":"#NAME?"}]
[null,null,null,null,null,null,{"$error":"#NAME?"},null,{"$error":"#NAME?"}]
[null,null,null,null,null,null,{"$error":"#NAME?"},null,{"$f":"_xlfn.IFS(K74=0,\" \",K74>=K73,\" \",K74<K73,\"error\")","v":{"$error":"#NAME?"}}]
[null,null,null,null,null,null,{"$error":"#NAME?"},null,{"$error":"#NAME?"}]
[null,null,null,null,null,null,{"$error":"#NAME?"},null,{"$error":"#NAME?"}]
[null,null,null,null,null,null,{"$error":"#NAME?"},null,{"$error":"#NAME?"}]
[null,null,null,null,null,null,{"$error":"#NAME?"},null,{"$error":"#NAME?"}]
[null,null,null,null,null,null,{"$error":"#NAME?"},null,{"$error":"#NAME?"}]
[null,null,null,null,null,null,{"$error":"#NAME?"},null,{"$error":"#NAME?"}]
[null,null,null,null,null,null,{"$error":"#NAME?"},null,{"$error":"#NAME?"}]
[null,null,null,null,null,null,{"$error":"#NAME?"},null,{"$error":"#NAME?"}]
[null,null,null,null,null,null,{"$error":"#NAME?"},null,{"$error":"#NAME?"}]
[null,null,null,null,null,null,{"$error":"#NAME?"},null,{"$error":"#NAME?"}]
[null,null,null,null,null,null,{"$error":"#NAME?"},null,{"$error":"#NAME?"}]
[null,null,null,null,null,null,{"$error":"#NAME?"},null,{"$error":"#NAME?"}]
[null,null,null,null,null,null,{"$error":"#NAME?"},null,{"$error":"#NAME?"}]
[null,null,null,null,null,null,{"$error":"#NAME?"},null,{"$error":"#NAME?"}]
[null,null,null,null,null,null,{"$error":"#NAME?"},null,{"$error":"#NAME?"}]
[null,null,null,null,null,null,{"$error":"#NAME?"},null,{"$error":"#NAME?"}]
[null,null,null,null,null,null,{"$error":"#NAME?"},null,{"$error":"#NAME?"}]
[null,null,null,null,null,null,{"$error":"#NAME?"},null,{"$error":"#NAME?"}]
[null,null,null,null,null,null,{"$error":"#NAME?"},null,{"$error":"#NAME?"}]
[null,null,null,null,null,null,{"$error":"#NAME?"},null,{"$error":"#NAME?"}]
[null,null,null,null,null,null,{"$error":"#NAME?"},null,{"$error":"#NAME?"}]
[null,null,null,null,null,null,{"$error":"#NAME?"},null,{"$error":"#NAME?"}]
[null,null,null,null,null,null,{"$error":"#NAME?"},null,{"$error":"#NAME?"}]
[null,null,null,null,null,null,{"$error":"#NAME?"},null,{"$error":"#NAME?"}]
[null,null,null,null,null,null,{"$error":"#NAME?"},null,{"$error":"#NAME?"}]
[null,null,null,null,null,null,{"$error":"#NAME?"},null,{"$error":"#NAME?"}]

{"sheet":"نوفمبر","index":10,"n_rows":100,"n_cols":17,"rows_kept":100,"cut":false,"hidden":false,"merged":[[37,4,37,5],[35,1,35,3],[35,4,35,5],[3,7,3,8],[5,7,5,8],[6,7,6,8],[7,7,7,8],[8,0,8,1],[0,0,0,1],[0,4,0,5],[1,7,1,8],[2,7,2,8],[32,0,32,3],[32,4,32,5],[33,0,33,3]]}
[null,null,null,null,null,null,null,"انشاء فاتورة جديدة",{"$f":"SUM(M2:M100)","v":0},"رقم الفاتورة","تاريخ الفاتورة","اسم الشركة","إجمالي المبيعات",0.14000000000000001,0.01,"الصافى","تاريخ الإستلام"]
[null,null,null,null,null,null,null,"إجمالي المبيعات",null,"-",{"$f":"$F$4","v":"00:00:00"},{"$f":"$B$10","v":""},{"$f":"$E$33","v":0},{"$f":"$F$34","v":0},{"$f":"$F$35","v":0},{"$f":"$E$36","v":0}]
[null,null,null,null,"رقم أمر التوريد",null,{"$f":"_xlfn.IFS(K3=0,\" \",K3>=K2,\" \",K3<K2,\"error\")","v":{"$error":"#NAME?"}},{"$f":"I1+#REF!","v":{"$error":"#REF!"}}]
[null,null,null,null,"التاريخ",null,{"$f":"_xlfn.IFS(K4=0,\" \",K4>=K3,\" \",K4<K3,\"error\")","v":{"$error":"#NAME?"}}]
[null,null,null,null,"رقم الفاتورة",null,{"$error":"#NAME?"}]
[null,null,null,null,"كود العميل",null,{"$error":"#NAME?"},"الضريبة"]
[null,null,null,null,null,null,{"$error":"#NAME?"},{"$f":"SUM(N2:N100)","v":0}]
[null,null,null,null,null,null,{"$error":"#NAME?"}]
["بيانات العميل",null,null,null,null,null,{"$error":"#NAME?"},{"$f":"أكتوبر!H4+أكتوبر!H9","v":0},{"$f":"_xlfn.IFS(K9=0,\" \",K9>=K8,\" \",K9<K8,\"error\")","v":{"$error":"#NAME?"}}]
["شـركـة /",{"$f":"IF(F6>0,VLOOKUP(F6,client,2,0),\"\")","v":""},null,null,null,null,{"$error":"#NAME?"},{"$f":"أكتوبر!H8+أكتوبر!H10","v":0},{"$f":"_xlfn.IFS(K10=0,\" \",K10>=K9,\" \",K10<K9,\"error\")","v":{"$error":"#NAME?"}}]
["ب .ض /",{"$f":"IF(F6>0,VLOOKUP(F6,client,3,0),\"\")","v":""},null,null,null,null,null,null,{"$error":"#NAME?"}]
["المستلم /",null,null,null,null,null,null,null,{"$error":"#NAME?"}]
[null,null,null,null,null,null,null,null,{"$error":"#NAME?"}]
[null,null,null,null,null,null,null,null,{"$error":"#NAME?"}]
[null,null,null,null,null,null,null,null,{"$error":"#NAME?"}]
["كود المنتج","البيان","الكمية","الوحدة","السعر","الأجمالى",null,null,{"$error":"#NAME?"}]
[null,{"$f":"IF(A17>0,VLOOKUP(A17,product,2,0),\"\")","v":""},null,null,null,{"$f":"C17*E17","v":0},null,null,{"$error":"#NAME?"}]
[null,"",null,null,null,0,null,null,{"$error":"#NAME?"}]
[null,"",null,null,null,0,null,null,{"$error":"#NAME?"}]
[null,"",null,null,null,0,null,null,{"$error":"#NAME?"}]
[null,"",null,null,null,0,null,null,{"$error":"#NAME?"}]
[null,"",null,null,null,0,null,null,{"$error":"#NAME?"}]
[null,"",null,null,null,0,null,null,{"$error":"#NAME?"}]
[null,"",null,null,null,0,null,null,{"$error":"#NAME?"}]
[null,"",null,null,null,0,null,null,{"$error":"#NAME?"}]
[null,"",null,null,null,0,null,null,{"$error":"#NAME?"}]
[null,"",null,null,null,0,null,null,{"$error":"#NAME?"}]
[null,"",null,null,null,0,null,null,{"$error":"#NAME?"}]
[null,"",null,null,null,0,null,null,{"$error":"#NAME?"}]
[null,"",null,null,null,0,null,null,{"$error":"#NAME?"}]
[null,"",null,null,null,0,null,null,{"$error":"#NAME?"}]
[null,"",null,null,null,0,null,null,{"$error":"#NAME?"}]
["الاجمالى",null,null,null,{"$f":"SUM(F17:F32)","v":0},null,null,null,{"$error":"#NAME?"}]
["ضريبة القيمة المضافة",null,null,null,0.14000000000000001,{"$f":"E34*E33","v":0},null,null,{"$error":"#NAME?"}]
[null,null,null,null,null,null,null,null,{"$error":"#NAME?"}]
["فقط وقدره",{"$f":"ConvertNumberToWords2(E36,\"جنيه\",\"قرش\")","v":"صفر"},null,null,{"$f":"E33+F34-F35","v":0},null,null,null,{"$error":"#NAME?"}]
[null,null,null,null,null,null,null,null,{"$error":"#NAME?"}]
[null,"الحسابات",null,null,"الإدارة المالية",null,null,null,{"$error":"#NAME?"}]
[null,null,null,null,null,null,null,null,{"$error":"#NAME?"}]
[null,null,null,null,null,null,null,null,{"$error":"#NAME?"}]
[null,null,null,null,null,null,{"$error":"#NAME?"},null,{"$error":"#NAME?"}]
[null,null,null,null,null,null,{"$error":"#NAME?"},null,{"$error":"#NAME?"}]
[null,null,null,null,null,null,{"$error":"#NAME?"},null,{"$error":"#NAME?"}]
[null,null,null,null,null,null,{"$error":"#NAME?"},null,{"$error":"#NAME?"}]
[null,null,null,null,null,null,{"$error":"#NAME?"},null,{"$error":"#NAME?"}]
[null,null,null,null,null,null,{"$error":"#NAME?"},null,{"$error":"#NAME?"}]
[null,null,null,null,null,null,{"$error":"#NAME?"},null,{"$error":"#NAME?"}]
[null,null,null,null,null,null,{"$error":"#NAME?"},null,{"$error":"#NAME?"}]
[null,null,null,null,null,null,{"$error":"#NAME?"},null,{"$error":"#NAME?"}]
[null,null,null,null,null,null,{"$error":"#NAME?"},null,{"$error":"#NAME?"}]
[null,null,null,null,null,null,{"$error":"#NAME?"},null,{"$error":"#NAME?"}]
[null,null,null,null,null,null,{"$error":"#NAME?"},null,{"$error":"#NAME?"}]
[null,null,null,null,null,null,{"$error":"#NAME?"},null,{"$error":"#NAME?"}]
[null,null,null,null,null,null,{"$error":"#NAME?"},null,{"$error":"#NAME?"}]
[null,null,null,null,null,null,{"$error":"#NAME?"},null,{"$error":"#NAME?"}]
[null,null,null,null,null,null,{"$error":"#NAME?"},null,{"$error":"#NAME?"}]
[null,null,null,null,null,null,{"$error":"#NAME?"},null,{"$error":"#NAME?"}]
[null,null,null,null,null,null,{"$error":"#NAME?"},null,{"$error":"#NAME?"}]
[null,null,null,null,null,null,{"$error":"#NAME?"},null,{"$error":"#NAME?"}]
[null,null,null,null,null,null,{"$error":"#NAME?"},null,{"$error":"#NAME?"}]
[null,null,null,null,null,null,{"$error":"#NAME?"},null,{"$error":"#NAME?"}]
[null,null,null,null,null,null,{"$error":"#NAME?"},null,{"$error":"#NAME?"}]
[null,null,null,null,null,null,{"$error":"#NAME?"},null,{"$error":"#NAME?"}]
[null,null,null,null,null,null,{"$error":"#NAME?"},null,{"$error":"#NAME?"}]
[null,null,null,null,null,null,{"$error":"#NAME?"},null,{"$error":"#NAME?"}]
[null,null,null,null,null,null,{"$error":"#NAME?"},null,{"$error":"#NAME?"}]
[null,null,null,null,null,null,{"$error":"#NAME?"},null,{"$error":"#NAME?"}]
[null,null,null,null,null,null,{"$f":"_xlfn.IFS(K68=0,\" \",K68>=K67,\" \",K68<K67,\"error\")","v":{"$error":"#NAME?"}},null,{"$error":"#NAME?"}]
[null,null,null,null,null,null,{"$error":"#NAME?"},null,{"$error":"#NAME?"}]
[null,null,null,null,null,null,{"$error":"#NAME?"},null,{"$error":"#NAME?"}]
[null,null,null,null,null,null,{"$error":"#NAME?"},null,{"$error":"#NAME?"}]
[null,null,null,null,null,null,{"$error":"#NAME?"},null,{"$error":"#NAME?"}]
[null,null,null,null,null,null,{"$error":"#NAME?"},null,{"$error":"#NAME?"}]
[null,null,null,null,null,null,{"$error":"#NAME?"},null,{"$f":"_xlfn.IFS(K74=0,\" \",K74>=K73,\" \",K74<K73,\"error\")","v":{"$error":"#NAME?"}}]
[null,null,null,null,null,null,{"$error":"#NAME?"},null,{"$error":"#NAME?"}]
[null,null,null,null,null,null,{"$error":"#NAME?"},null,{"$error":"#NAME?"}]
[null,null,null,null,null,null,{"$error":"#NAME?"},null,{"$error":"#NAME?"}]
[null,null,null,null,null,null,{"$error":"#NAME?"},null,{"$error":"#NAME?"}]
[null,null,null,null,null,null,{"$error":"#NAME?"},null,{"$error":"#NAME?"}]
[null,null,null,null,null,null,{"$error":"#NAME?"},null,{"$error":"#NAME?"}]
[null,null,null,null,null,null,{"$error":"#NAME?"},null,{"$error":"#NAME?"}]
[null,null,null,null,null,null,{"$error":"#NAME?"},null,{"$error":"#NAME?"}]
[null,null,null,null,null,null,{"$error":"#NAME?"},null,{"$error":"#NAME?"}]
[null,null,null,null,null,null,{"$error":"#NAME?"},null,{"$error":"#NAME?"}]
[null,null,null,null,null,null,{"$error":"#NAME?"},null,{"$error":"#NAME?"}]
[null,null,null,null,null,null,{"$error":"#NAME?"},null,{"$error":"#NAME?"}]
[null,null,null,null,null,null,{"$error":"#NAME?"},null,{"$error":"#NAME?"}]
[null,null,null,null,null,null,{"$error":"#NAME?"},null,{"$error":"#NAME?"}]
[null,null,null,null,null,null,{"$error":"#NAME?"},null,{"$error":"#NAME?"}]
[null,null,null,null,null,null,{"$error":"#NAME?"},null,{"$error":"#NAME?"}]
[null,null,null,null,null,null,{"$error":"#NAME?"},null,{"$error":"#NAME?"}]
[null,null,null,null,null,null,{"$error":"#NAME?"},null,{"$error":"#NAME?"}]
[null,null,null,null,null,null,{"$error":"#NAME?"},null,{"$error":"#NAME?"}]
[null,null,null,null,null,null,{"$error":"#NAME?"},null,{"$error":"#NAME?"}]
[null,null,null,null,null,null,{"$error":"#NAME?"},null,{"$error":"#NAME?"}]
[null,null,null,null,null,null,{"$error":"#NAME?"},null,{"$error":"#NAME?"}]
[null,null,null,null,null,null,{"$error":"#NAME?"},null,{"$error":"#NAME?"}]
[null,null,null,null,null,null,{"$error":"#NAME?"},null,{"$error":"#NAME?"}]
[null,null,null,null,null,null,{"$error":"#NAME?"},null,{"$error":"#NAME?"}]
[null,null,null,null,null,null,{"$error":"#NAME?"},null,{"$error":"#NAME?"}]

{"sheet":"ديسمبر","index":11,"n_rows":100,"n_cols":17,"rows_kept":100,"cut":false,"hidden":false,"merged":[[37,4,37,5],[35,1,35,3],[35,4,35,5],[3,7,3,8],[5,7,5,8],[6,7,6,8],[7,7,7,8],[8,0,8,1],[0,0,0,1],[0,4,0,5],[1,7,1,8],[2,7,2,8],[32,0,32,3],[32,4,32,5],[33,0,33,3]]}
[null,null,null,null,null,null,null,"انشاء فاتورة جديدة",{"$f":"SUM(M2:M100)","v":0},"رقم الفاتورة","تاريخ الفاتورة","اسم الشركة","إجمالي المبيعات",0.14000000000000001,0.01,"الصافى","تاريخ الإستلام"]
[null,null,null,null,null,null,null,"إجمالي المبيعات",null,"-",{"$f":"$F$4","v":"00:00:00"},{"$f":"$B$10","v":""},{"$f":"$E$33","v":0},{"$f":"$F$34","v":0},{"$f":"$F$35","v":0},{"$f":"$E$36","v":0}]
[null,null,null,null,"رقم أمر التوريد",null,{"$f":"_xlfn.IFS(K3=0,\" \",K3>=K2,\" \",K3<K2,\"error\")","v":{"$error":"#NAME?"}},{"$f":"I1+#REF!","v":{"$error":"#REF!"}}]
[null,null,null,null,"التاريخ",null,{"$f":"_xlfn.IFS(K4=0,\" \",K4>=K3,\" \",K4<K3,\"error\")","v":{"$error":"#NAME?"}}]
[null,null,null,null,"رقم الفاتورة",null,{"$error":"#NAME?"}]
[null,null,null,null,"كود العميل",null,{"$error":"#NAME?"},"الضريبة"]
[null,null,null,null,null,null,{"$error":"#NAME?"},{"$f":"SUM(N2:N100)","v":0}]
[null,null,null,null,null,null,{"$error":"#NAME?"}]
["بيانات العميل",null,null,null,null,null,{"$error":"#NAME?"},{"$f":"نوفمبر!H4+نوفمبر!H9","v":0},{"$f":"_xlfn.IFS(K9=0,\" \",K9>=K8,\" \",K9<K8,\"error\")","v":{"$error":"#NAME?"}}]
["شـركـة /",{"$f":"IF(F6>0,VLOOKUP(F6,client,2,0),\"\")","v":""},null,null,null,null,{"$error":"#NAME?"},{"$f":"نوفمبر!H8+نوفمبر!H10","v":0},{"$f":"_xlfn.IFS(K10=0,\" \",K10>=K9,\" \",K10<K9,\"error\")","v":{"$error":"#NAME?"}}]
["ب .ض /",{"$f":"IF(F6>0,VLOOKUP(F6,client,3,0),\"\")","v":""},null,null,null,null,null,null,{"$error":"#NAME?"}]
["المستلم /",null,null,null,null,null,null,null,{"$error":"#NAME?"}]
[null,null,null,null,null,null,null,null,{"$error":"#NAME?"}]
[null,null,null,null,null,null,null,null,{"$error":"#NAME?"}]
[null,null,null,null,null,null,null,null,{"$error":"#NAME?"}]
["كود المنتج","البيان","الكمية","الوحدة","السعر","الأجمالى",null,null,{"$error":"#NAME?"}]
[null,{"$f":"IF(A17>0,VLOOKUP(A17,product,2,0),\"\")","v":""},null,null,null,{"$f":"C17*E17","v":0},null,null,{"$error":"#NAME?"}]
[null,"",null,null,null,0,null,null,{"$error":"#NAME?"}]
[null,"",null,null,null,0,null,null,{"$error":"#NAME?"}]
[null,"",null,null,null,0,null,null,{"$error":"#NAME?"}]
[null,"",null,null,null,0,null,null,{"$error":"#NAME?"}]
[null,"",null,null,null,0,null,null,{"$error":"#NAME?"}]
[null,"",null,null,null,0,null,null,{"$error":"#NAME?"}]
[null,"",null,null,null,0,null,null,{"$error":"#NAME?"}]
[null,"",null,null,null,0,null,null,{"$error":"#NAME?"}]
[null,"",null,null,null,0,null,null,{"$error":"#NAME?"}]
[null,"",null,null,null,0,null,null,{"$error":"#NAME?"}]
[null,"",null,null,null,0,null,null,{"$error":"#NAME?"}]
[null,"",null,null,null,0,null,null,{"$error":"#NAME?"}]
[null,"",null,null,null,0,null,null,{"$error":"#NAME?"}]
[null,"",null,null,null,0,null,null,{"$error":"#NAME?"}]
[null,"",null,null,null,0,null,null,{"$error":"#NAME?"}]
["الاجمالى",null,null,null,{"$f":"SUM(F17:F32)","v":0},null,null,null,{"$error":"#NAME?"}]
["ضريبة القيمة المضافة",null,null,null,0.14000000000000001,{"$f":"E34*E33","v":0},null,null,{"$error":"#NAME?"}]
[null,null,null,null,null,null,null,null,{"$error":"#NAME?"}]
["فقط وقدره",{"$f":"ConvertNumberToWords2(E36,\"جنيه\",\"قرش\")","v":"صفر"},null,null,{"$f":"E33+F34-F35","v":0},null,null,null,{"$error":"#NAME?"}]
[null,null,null,null,null,null,null,null,{"$error":"#NAME?"}]
[null,"الحسابات",null,null,"الإدارة المالية",null,null,null,{"$error":"#NAME?"}]
[null,null,null,null,null,null,null,null,{"$error":"#NAME?"}]
[null,null,null,null,null,null,null,null,{"$error":"#NAME?"}]
[null,null,null,null,null,null,{"$error":"#NAME?"},null,{"$error":"#NAME?"}]
[null,null,null,null,null,null,{"$error":"#NAME?"},null,{"$error":"#NAME?"}]
[null,null,null,null,null,null,{"$error":"#NAME?"},null,{"$error":"#NAME?"}]
[null,null,null,null,null,null,{"$error":"#NAME?"},null,{"$error":"#NAME?"}]
[null,null,null,null,null,null,{"$error":"#NAME?"},null,{"$error":"#NAME?"}]
[null,null,null,null,null,null,{"$error":"#NAME?"},null,{"$error":"#NAME?"}]
[null,null,null,null,null,null,{"$error":"#NAME?"},null,{"$error":"#NAME?"}]
[null,null,null,null,null,null,{"$error":"#NAME?"},null,{"$error":"#NAME?"}]
[null,null,null,null,null,null,{"$error":"#NAME?"},null,{"$error":"#NAME?"}]
[null,null,null,null,null,null,{"$error":"#NAME?"},null,{"$error":"#NAME?"}]
[null,null,null,null,null,null,{"$error":"#NAME?"},null,{"$error":"#NAME?"}]
[null,null,null,null,null,null,{"$error":"#NAME?"},null,{"$error":"#NAME?"}]
[null,null,null,null,null,null,{"$error":"#NAME?"},null,{"$error":"#NAME?"}]
[null,null,null,null,null,null,{"$error":"#NAME?"},null,{"$error":"#NAME?"}]
[null,null,null,null,null,null,{"$error":"#NAME?"},null,{"$error":"#NAME?"}]
[null,null,null,null,null,null,{"$error":"#NAME?"},null,{"$error":"#NAME?"}]
[null,null,null,null,null,null,{"$error":"#NAME?"},null,{"$error":"#NAME?"}]
[null,null,null,null,null,null,{"$error":"#NAME?"},null,{"$error":"#NAME?"}]
[null,null,null,null,null,null,{"$error":"#NAME?"},null,{"$error":"#NAME?"}]
[null,null,null,null,null,null,{"$error":"#NAME?"},null,{"$error":"#NAME?"}]
[null,null,null,null,null,null,{"$error":"#NAME?"},null,{"$error":"#NAME?"}]
[null,null,null,null,null,null,{"$error":"#NAME?"},null,{"$error":"#NAME?"}]
[null,null,null,null,null,null,{"$error":"#NAME?"},null,{"$error":"#NAME?"}]
[null,null,null,null,null,null,{"$error":"#NAME?"},null,{"$error":"#NAME?"}]
[null,null,null,null,null,null,{"$error":"#NAME?"},null,{"$error":"#NAME?"}]
[null,null,null,null,null,null,{"$error":"#NAME?"},null,{"$error":"#NAME?"}]
[null,null,null,null,null,null,{"$error":"#NAME?"},null,{"$error":"#NAME?"}]
[null,null,null,null,null,null,{"$f":"_xlfn.IFS(K68=0,\" \",K68>=K67,\" \",K68<K67,\"error\")","v":{"$error":"#NAME?"}},null,{"$error":"#NAME?"}]
[null,null,null,null,null,null,{"$error":"#NAME?"},null,{"$error":"#NAME?"}]
[null,null,null,null,null,null,{"$error":"#NAME?"},null,{"$error":"#NAME?"}]
[null,null,null,null,null,null,{"$error":"#NAME?"},null,{"$error":"#NAME?"}]
[null,null,null,null,null,null,{"$error":"#NAME?"},null,{"$error":"#NAME?"}]
[null,null,null,null,null,null,{"$error":"#NAME?"},null,{"$error":"#NAME?"}]
[null,null,null,null,null,null,{"$error":"#NAME?"},null,{"$f":"_xlfn.IFS(K74=0,\" \",K74>=K73,\" \",K74<K73,\"error\")","v":{"$error":"#NAME?"}}]
[null,null,null,null,null,null,{"$error":"#NAME?"},null,{"$error":"#NAME?"}]
[null,null,null,null,null,null,{"$error":"#NAME?"},null,{"$error":"#NAME?"}]
[null,null,null,null,null,null,{"$error":"#NAME?"},null,{"$error":"#NAME?"}]
[null,null,null,null,null,null,{"$error":"#NAME?"},null,{"$error":"#NAME?"}]
[null,null,null,null,null,null,{"$error":"#NAME?"},null,{"$error":"#NAME?"}]
[null,null,null,null,null,null,{"$error":"#NAME?"},null,{"$error":"#NAME?"}]
[null,null,null,null,null,null,{"$error":"#NAME?"},null,{"$error":"#NAME?"}]
[null,null,null,null,null,null,{"$error":"#NAME?"},null,{"$error":"#NAME?"}]
[null,null,null,null,null,null,{"$error":"#NAME?"},null,{"$error":"#NAME?"}]
[null,null,null,null,null,null,{"$error":"#NAME?"},null,{"$error":"#NAME?"}]
[null,null,null,null,null,null,{"$error":"#NAME?"},null,{"$error":"#NAME?"}]
[null,null,null,null,null,null,{"$error":"#NAME?"},null,{"$error":"#NAME?"}]
[null,null,null,null,null,null,{"$error":"#NAME?"},null,{"$error":"#NAME?"}]
[null,null,null,null,null,null,{"$error":"#NAME?"},null,{"$error":"#NAME?"}]
[null,null,null,null,null,null,{"$error":"#NAME?"},null,{"$error":"#NAME?"}]
[null,null,null,null,null,null,{"$error":"#NAME?"},null,{"$error":"#NAME?"}]
[null,null,null,null,null,null,{"$error":"#NAME?"},null,{"$error":"#NAME?"}]
[null,null,null,null,null,null,{"$error":"#NAME?"},null,{"$error":"#NAME?"}]
[null,null,null,null,null,null,{"$error":"#NAME?"},null,{"$error":"#NAME?"}]
[null,null,null,null,null,null,{"$error":"#NAME?"},null,{"$error":"#NAME?"}]
[null,null,null,null,null,null,{"$error":"#NAME?"},null,{"$error":"#NAME?"}]
[null,null,null,null,null,null,{"$error":"#NAME?"},null,{"$error":"#NAME?"}]
[null,null,null,null,null,null,{"$error":"#NAME?"},null,{"$error":"#NAME?"}]
[null,null,null,null,null,null,{"$error":"#NAME?"},null,{"$error":"#NAME?"}]
[null,null,null,null,null,null,{"$error":"#NAME?"},null,{"$error":"#NAME?"}]
[null,null,null,null,null,null,{"$error":"#NAME?"},null,{"$error":"#NAME?"}]

{"sheet":"Pattern","index":12,"n_rows":500,"n_cols":23,"rows_kept":500,"cut":false,"hidden":false,"merged":[[0,4,0,5],[8,0,8,1],[37,4,37,5],[35,1,35,3],[0,0,0,1],[32,4,32,5],[35,4,35,5],[33,0,33,3],[32,0,32,3]]}
[null,null,null,null,null,null,null,null,null,null,null,null,null,null,null,"العميل","كود العميل","الإسم الرسمي","التسجيل الضريبى",null,null,"كود المنتج","إسم المنتج"]
[]
[null,null,null,null,"رقم أمر التوريد"]
[null,null,null,null,"التاريخ"]
[null,null,null,null,"رقم الفاتورة",1]
[null,null,null,null,"كود العميل"]
[]
[]
["بيانات العميل"]
["شـركـة /",{"$f":"IF(F6>0,VLOOKUP(F6,client,2,0),\"\")","v":""}]
["ب .ض /",{"$f":"IF(F6>0,VLOOKUP(F6,client,3,0),\"\")","v":""}]
["المستلم /",null,null,null,null,null,null,null,null,null,null,null,null,null,null,null,null,null,null,null,null,{"$f":"[1]أكواد!D12","v":0},{"$f":"[1]أكواد!E12","v":0}]
[null,null,null,null,null,null,null,null,null,null,null,null,null,null,null,null,null,null,null,null,null,{"$f":"[1]أكواد!D13","v":0},{"$f":"[1]أكواد!E13","v":0}]
[null,null,null,null,null,null,null,null,null,null,null,null,null,null,null,null,null,null,null,null,null,{"$f":"[1]أكواد!D14","v":0},{"$f":"[1]أكواد!E14","v":0}]
[null,null,null,null,null,null,null,null,null,null,null,null,null,null,null,null,null,null,null,null,null,{"$f":"[1]أكواد!D15","v":0},{"$f":"[1]أكواد!E15","v":0}]
["كود المنتج","البيان","الكمية","الوحدة","السعر","الأجمالى",null,null,null,null,null,null,null,null,null,null,null,null,null,null,null,{"$f":"[1]أكواد!D16","v":0},{"$f":"[1]أكواد!E16","v":0}]
[null,{"$f":"IF(A17>0,VLOOKUP(A17,product,2,0),\"\")","v":""},null,null,null,{"$f":"C17*E17","v":0},null,null,null,null,null,null,null,null,null,null,null,null,null,null,null,{"$f":"[1]أكواد!D17","v":0},{"$f":"[1]أكواد!E17","v":0}]
[null,"",null,null,null,0,null,null,null,null,null,null,null,null,null,null,null,null,null,null,null,{"$f":"[1]أكواد!D18","v":0},{"$f":"[1]أكواد!E18","v":0}]
[null,"",null,null,null,0,null,null,null,null,null,null,null,null,null,null,null,null,null,null,null,{"$f":"[1]أكواد!D19","v":0},{"$f":"[1]أكواد!E19","v":0}]
[null,"",null,null,null,0,null,null,null,null,null,null,null,null,null,null,null,null,null,null,null,{"$f":"[1]أكواد!D20","v":0},{"$f":"[1]أكواد!E20","v":0}]
[null,"",null,null,null,0,null,null,null,null,null,null,null,null,null,null,null,null,null,null,null,{"$f":"[1]أكواد!D21","v":0},{"$f":"[1]أكواد!E21","v":0}]
[null,"",null,null,null,0,null,null,null,null,null,null,null,null,null,null,null,null,null,null,null,{"$f":"[1]أكواد!D22","v":0},{"$f":"[1]أكواد!E22","v":0}]
[null,"",null,null,null,0,null,null,null,null,null,null,null,null,null,null,null,null,null,null,null,{"$f":"[1]أكواد!D23","v":0},{"$f":"[1]أكواد!E23","v":0}]
[null,"",null,null,null,0,null,null,null,null,null,null,null,null,null,null,null,null,null,null,null,{"$f":"[1]أكواد!D24","v":0},{"$f":"[1]أكواد!E24","v":0}]
[null,"",null,null,null,0,null,null,null,null,null,null,null,null,null,null,null,null,null,null,null,{"$f":"[1]أكواد!D25","v":0},{"$f":"[1]أكواد!E25","v":0}]
[null,"",null,null,null,0,null,null,null,null,null,null,null,null,null,null,null,null,null,null,null,{"$f":"[1]أكواد!D26","v":0},{"$f":"[1]أكواد!E26","v":0}]
[null,"",null,null,null,0,null,null,null,null,null,null,null,null,null,null,null,null,null,null,null,{"$f":"[1]أكواد!D27","v":0},{"$f":"[1]أكواد!E27","v":0}]
[null,"",null,null,null,0,null,null,null,null,null,null,null,null,null,null,null,null,null,null,null,{"$f":"[1]أكواد!D28","v":0},{"$f":"[1]أكواد!E28","v":0}]
[null,"",null,null,null,0,null,null,null,null,null,null,null,null,null,null,null,null,null,null,null,{"$f":"[1]أكواد!D29","v":0},{"$f":"[1]أكواد!E29","v":0}]
[null,"",null,null,null,0,null,null,null,null,null,null,null,null,null,null,null,null,null,null,null,{"$f":"[1]أكواد!D30","v":0},{"$f":"[1]أكواد!E30","v":0}]
[null,"",null,null,null,0,null,null,null,null,null,null,null,null,null,null,null,null,null,null,null,{"$f":"[1]أكواد!D31","v":0},{"$f":"[1]أكواد!E31","v":0}]
[null,"",null,null,null,0,null,null,null,null,null,null,null,null,null,null,null,null,null,null,null,{"$f":"[1]أكواد!D32","v":0},{"$f":"[1]أكواد!E32","v":0}]
["الاجمالى",null,null,null,{"$f":"SUM(F17:F32)","v":0},null,null,null,null,null,null,null,null,null,null,null,null,null,null,null,null,{"$f":"[1]أكواد!D33","v":0},{"$f":"[1]أكواد!E33","v":0}]
["ضريبة القيمة المضافة",null,null,null,0.14000000000000001,{"$f":"E34*E33","v":0},null,null,null,null,null,null,null,null,null,null,null,null,null,null,null,{"$f":"[1]أكواد!D34","v":0},{"$f":"[1]أكواد!E34","v":0}]
[null,null,null,null,null,null,null,null,null,null,null,null,null,null,null,null,null,null,null,null,null,{"$f":"[1]أكواد!D35","v":0},{"$f":"[1]أكواد!E35","v":0}]
["فقط وقدره",{"$f":"ConvertNumberToWords2(E36,\"جنيه\",\"قرش\")","v":"صفر"},null,null,{"$f":"E33+F34-F35","v":0},null,null,null,null,null,null,null,null,null,null,null,null,null,null,null,null,{"$f":"[1]أكواد!D36","v":0},{"$f":"[1]أكواد!E36","v":0}]
[null,null,null,null,null,null,null,null,null,null,null,null,null,null,null,null,null,null,null,null,null,{"$f":"[1]أكواد!D37","v":0},{"$f":"[1]أكواد!E37","v":0}]
[null,"الحسابات",null,null,"الإدارة المالية",null,null,null,null,null,null,null,null,null,null,null,null,null,null,null,null,{"$f":"[1]أكواد!D38","v":0},{"$f":"[1]أكواد!E38","v":0}]
[null,null,null,null,null,null,null,null,null,null,null,null,null,null,null,null,null,null,null,null,null,{"$f":"[1]أكواد!D39","v":0},{"$f":"[1]أكواد!E39","v":0}]
[null,null,null,null,null,null,null,null,null,null,null,null,null,null,null,null,null,null,null,null,null,{"$f":"[1]أكواد!D40","v":0},{"$f":"[1]أكواد!E40","v":0}]
[null,null,null,null,null,null,null,null,null,null,null,null,null,null,null,null,null,null,null,null,null,{"$f":"[1]أكواد!D41","v":0},{"$f":"[1]أكواد!E41","v":0}]
[null,null,null,null,null,null,null,null,null,null,null,null,null,null,null,null,null,null,null,null,null,{"$f":"[1]أكواد!D42","v":0},{"$f":"[1]أكواد!E42","v":0}]
[null,null,null,null,null,null,null,null,null,null,null,null,null,null,null,null,null,null,null,null,null,{"$f":"[1]أكواد!D43","v":0},{"$f":"[1]أكواد!E43","v":0}]
[null,null,null,null,null,null,null,null,null,null,null,null,null,null,null,null,null,null,null,null,null,{"$f":"[1]أكواد!D44","v":0},{"$f":"[1]أكواد!E44","v":0}]
[null,null,null,null,null,null,null,null,null,null,null,null,null,null,null,null,null,null,null,null,null,{"$f":"[1]أكواد!D45","v":0},{"$f":"[1]أكواد!E45","v":0}]
[null,null,null,null,null,null,null,null,null,null,null,null,null,null,null,null,null,null,null,null,null,{"$f":"[1]أكواد!D46","v":0},{"$f":"[1]أكواد!E46","v":0}]
[null,null,null,null,null,null,null,null,null,null,null,null,null,null,null,null,null,null,null,null,null,{"$f":"[1]أكواد!D47","v":0},{"$f":"[1]أكواد!E47","v":0}]
[null,null,null,null,null,null,null,null,null,null,null,null,null,null,null,null,null,null,null,null,null,{"$f":"[1]أكواد!D48","v":0},{"$f":"[1]أكواد!E48","v":0}]
[null,null,null,null,null,null,null,null,null,null,null,null,null,null,null,null,null,null,null,null,null,{"$f":"[1]أكواد!D49","v":0},{"$f":"[1]أكواد!E49","v":0}]
[null,null,null,null,null,null,null,null,null,null,null,null,null,null,null,null,null,null,null,null,null,{"$f":"[1]أكواد!D50","v":0},{"$f":"[1]أكواد!E50","v":0}]
[null,null,null,null,null,null,null,null,null,null,null,null,null,null,null,null,null,null,null,null,null,{"$f":"[1]أكواد!D51","v":0},{"$f":"[1]أكواد!E51","v":0}]
[null,null,null,null,null,null,null,null,null,null,null,null,null,null,null,null,null,null,null,null,null,{"$f":"[1]أكواد!D52","v":0},{"$f":"[1]أكواد!E52","v":0}]
[null,null,null,null,null,null,null,null,null,null,null,null,null,null,null,null,null,null,null,null,null,{"$f":"[1]أكواد!D53","v":0},{"$f":"[1]أكواد!E53","v":0}]
[null,null,null,null,null,null,null,null,null,null,null,null,null,null,null,null,null,null,null,null,null,{"$f":"[1]أكواد!D54","v":0},{"$f":"[1]أكواد!E54","v":0}]
[null,null,null,null,null,null,null,null,null,null,null,null,null,null,null,null,null,null,null,null,null,{"$f":"[1]أكواد!D55","v":0},{"$f":"[1]أكواد!E55","v":0}]
[null,null,null,null,null,null,null,null,null,null,null,null,null,null,null,null,null,null,null,null,null,{"$f":"[1]أكواد!D56","v":0},{"$f":"[1]أكواد!E56","v":0}]
[null,null,null,null,null,null,null,null,null,null,null,null,null,null,null,null,null,null,null,null,null,{"$f":"[1]أكواد!D57","v":0},{"$f":"[1]أكواد!E57","v":0}]
[null,null,null,null,null,null,null,null,null,null,null,null,null,null,null,null,null,null,null,null,null,{"$f":"[1]أكواد!D58","v":0},{"$f":"[1]أكواد!E58","v":0}]
[null,null,null,null,null,null,null,null,null,null,null,null,null,null,null,null,null,null,null,null,null,{"$f":"[1]أكواد!D59","v":0},{"$f":"[1]أكواد!E59","v":0}]
[null,null,null,null,null,null,null,null,null,null,null,null,null,null,null,null,null,null,null,null,null,{"$f":"[1]أكواد!D60","v":0},{"$f":"[1]أكواد!E60","v":0}]
[null,null,null,null,null,null,null,null,null,null,null,null,null,null,null,null,null,null,null,null,null,{"$f":"[1]أكواد!D61","v":0},{"$f":"[1]أكواد!E61","v":0}]
[null,null,null,null,null,null,null,null,null,null,null,null,null,null,null,null,null,null,null,null,null,{"$f":"[1]أكواد!D62","v":0},{"$f":"[1]أكواد!E62","v":0}]
[null,null,null,null,null,null,null,null,null,null,null,null,null,null,null,null,null,null,null,null,null,{"$f":"[1]أكواد!D63","v":0},{"$f":"[1]أكواد!E63","v":0}]
[null,null,null,null,null,null,null,null,null,null,null,null,null,null,null,null,null,null,null,null,null,{"$f":"[1]أكواد!D64","v":0},{"$f":"[1]أكواد!E64","v":0}]
[null,null,null,null,null,null,null,null,null,null,null,null,null,null,null,null,null,null,null,null,null,{"$f":"[1]أكواد!D65","v":0},{"$f":"[1]أكواد!E65","v":0}]
[null,null,null,null,null,null,null,null,null,null,null,null,null,null,null,null,null,null,null,null,null,{"$f":"[1]أكواد!D66","v":0},{"$f":"[1]أكواد!E66","v":0}]
[null,null,null,null,null,null,null,null,null,null,null,null,null,null,null,null,null,null,null,null,null,{"$f":"[1]أكواد!D67","v":0},{"$f":"[1]أكواد!E67","v":0}]
[null,null,null,null,null,null,null,null,null,null,null,null,null,null,null,null,null,null,null,null,null,{"$f":"[1]أكواد!D68","v":0},{"$f":"[1]أكواد!E68","v":0}]
[null,null,null,null,null,null,null,null,null,null,null,null,null,null,null,null,null,null,null,null,null,{"$f":"[1]أكواد!D69","v":0},{"$f":"[1]أكواد!E69","v":0}]
[null,null,null,null,null,null,null,null,null,null,null,null,null,null,null,null,null,null,null,null,null,{"$f":"[1]أكواد!D70","v":0},{"$f":"[1]أكواد!E70","v":0}]
[null,null,null,null,null,null,null,null,null,null,null,null,null,null,null,null,null,null,null,null,null,{"$f":"[1]أكواد!D71","v":0},{"$f":"[1]أكواد!E71","v":0}]
[null,null,null,null,null,null,null,null,null,null,null,null,null,null,null,null,null,null,null,null,null,{"$f":"[1]أكواد!D72","v":0},{"$f":"[1]أكواد!E72","v":0}]
[null,null,null,null,null,null,null,null,null,null,null,null,null,null,null,null,null,null,null,null,null,{"$f":"[1]أكواد!D73","v":0},{"$f":"[1]أكواد!E73","v":0}]
[null,null,null,null,null,null,null,null,null,null,null,null,null,null,null,null,null,null,null,null,null,{"$f":"[1]أكواد!D74","v":0},{"$f":"[1]أكواد!E74","v":0}]
[null,null,null,null,null,null,null,null,null,null,null,null,null,null,null,null,null,null,null,null,null,{"$f":"[1]أكواد!D75","v":0},{"$f":"[1]أكواد!E75","v":0}]
[null,null,null,null,null,null,null,null,null,null,null,null,null,null,null,null,null,null,null,null,null,{"$f":"[1]أكواد!D76","v":0},{"$f":"[1]أكواد!E76","v":0}]
[null,null,null,null,null,null,null,null,null,null,null,null,null,null,null,null,null,null,null,null,null,{"$f":"[1]أكواد!D77","v":0},{"$f":"[1]أكواد!E77","v":0}]
[null,null,null,null,null,null,null,null,null,null,null,null,null,null,null,null,null,null,null,null,null,{"$f":"[1]أكواد!D78","v":0},{"$f":"[1]أكواد!E78","v":0}]
[null,null,null,null,null,null,null,null,null,null,null,null,null,null,null,null,null,null,null,null,null,{"$f":"[1]أكواد!D79","v":0},{"$f":"[1]أكواد!E79","v":0}]
[null,null,null,null,null,null,null,null,null,null,null,null,null,null,null,null,null,null,null,null,null,{"$f":"[1]أكواد!D80","v":0},{"$f":"[1]أكواد!E80","v":0}]
[null,null,null,null,null,null,null,null,null,null,null,null,null,null,null,null,null,null,null,null,null,{"$f":"[1]أكواد!D81","v":0},{"$f":"[1]أكواد!E81","v":0}]
[null,null,null,null,null,null,null,null,null,null,null,null,null,null,null,null,null,null,null,null,null,{"$f":"[1]أكواد!D82","v":0},{"$f":"[1]أكواد!E82","v":0}]
[null,null,null,null,null,null,null,null,null,null,null,null,null,null,null,null,null,null,null,null,null,{"$f":"[1]أكواد!D83","v":0},{"$f":"[1]أكواد!E83","v":0}]
[null,null,null,null,null,null,null,null,null,null,null,null,null,null,null,null,null,null,null,null,null,{"$f":"[1]أكواد!D84","v":0},{"$f":"[1]أكواد!E84","v":0}]
[null,null,null,null,null,null,null,null,null,null,null,null,null,null,null,null,null,null,null,null,null,{"$f":"[1]أكواد!D85","v":0},{"$f":"[1]أكواد!E85","v":0}]
[null,null,null,null,null,null,null,null,null,null,null,null,null,null,null,null,null,null,null,null,null,{"$f":"[1]أكواد!D86","v":0},{"$f":"[1]أكواد!E86","v":0}]
[null,null,null,null,null,null,null,null,null,null,null,null,null,null,null,null,null,null,null,null,null,{"$f":"[1]أكواد!D87","v":0},{"$f":"[1]أكواد!E87","v":0}]
[null,null,null,null,null,null,null,null,null,null,null,null,null,null,null,null,null,null,null,null,null,{"$f":"[1]أكواد!D88","v":0},{"$f":"[1]أكواد!E88","v":0}]
[null,null,null,null,null,null,null,null,null,null,null,null,null,null,null,null,null,null,null,null,null,{"$f":"[1]أكواد!D89","v":0},{"$f":"[1]أكواد!E89","v":0}]
[null,null,null,null,null,null,null,null,null,null,null,null,null,null,null,null,null,null,null,null,null,{"$f":"[1]أكواد!D90","v":0},{"$f":"[1]أكواد!E90","v":0}]
[null,null,null,null,null,null,null,null,null,null,null,null,null,null,null,null,null,null,null,null,null,{"$f":"[1]أكواد!D91","v":0},{"$f":"[1]أكواد!E91","v":0}]
[null,null,null,null,null,null,null,null,null,null,null,null,null,null,null,null,null,null,null,null,null,{"$f":"[1]أكواد!D92","v":0},{"$f":"[1]أكواد!E92","v":0}]
[null,null,null,null,null,null,null,null,null,null,null,null,null,null,null,null,null,null,null,null,null,{"$f":"[1]أكواد!D93","v":0},{"$f":"[1]أكواد!E93","v":0}]
[null,null,null,null,null,null,null,null,null,null,null,null,null,null,null,null,null,null,null,null,null,{"$f":"[1]أكواد!D94","v":0},{"$f":"[1]أكواد!E94","v":0}]
[null,null,null,null,null,null,null,null,null,null,null,null,null,null,null,null,null,null,null,null,null,{"$f":"[1]أكواد!D95","v":0},{"$f":"[1]أكواد!E95","v":0}]
[null,null,null,null,null,null,null,null,null,null,null,null,null,null,null,null,null,null,null,null,null,{"$f":"[1]أكواد!D96","v":0},{"$f":"[1]أكواد!E96","v":0}]
[null,null,null,null,null,null,null,null,null,null,null,null,null,null,null,null,null,null,null,null,null,{"$f":"[1]أكواد!D97","v":0},{"$f":"[1]أكواد!E97","v":0}]
[null,null,null,null,null,null,null,null,null,null,null,null,null,null,null,null,null,null,null,null,null,{"$f":"[1]أكواد!D98","v":0},{"$f":"[1]أكواد!E98","v":0}]
[null,null,null,null,null,null,null,null,null,null,null,null,null,null,null,null,null,null,null,null,null,{"$f":"[1]أكواد!D99","v":0},{"$f":"[1]أكواد!E99","v":0}]
[null,null,null,null,null,null,null,null,null,null,null,null,null,null,null,null,null,null,null,null,null,{"$f":"[1]أكواد!D100","v":0},{"$f":"[1]أكواد!E100","v":0}]
[null,null,null,null,null,null,null,null,null,null,null,null,null,null,null,null,null,null,null,null,null,{"$f":"[1]أكواد!D101","v":0},{"$f":"[1]أكواد!E101","v":0}]
[null,null,null,null,null,null,null,null,null,null,null,null,null,null,null,null,null,null,null,null,null,{"$f":"[1]أكواد!D102","v":0},{"$f":"[1]أكواد!E102","v":0}]
[null,null,null,null,null,null,null,null,null,null,null,null,null,null,null,null,null,null,null,null,null,{"$f":"[1]أكواد!D103","v":0},{"$f":"[1]أكواد!E103","v":0}]
[null,null,null,null,null,null,null,null,null,null,null,null,null,null,null,null,null,null,null,null,null,{"$f":"[1]أكواد!D104","v":0},{"$f":"[1]أكواد!E104","v":0}]
[null,null,null,null,null,null,null,null,null,null,null,null,null,null,null,null,null,null,null,null,null,{"$f":"[1]أكواد!D105","v":0},{"$f":"[1]أكواد!E105","v":0}]
[null,null,null,null,null,null,null,null,null,null,null,null,null,null,null,null,null,null,null,null,null,{"$f":"[1]أكواد!D106","v":0},{"$f":"[1]أكواد!E106","v":0}]
[null,null,null,null,null,null,null,null,null,null,null,null,null,null,null,null,null,null,null,null,null,{"$f":"[1]أكواد!D107","v":0},{"$f":"[1]أكواد!E107","v":0}]
[null,null,null,null,null,null,null,null,null,null,null,null,null,null,null,null,null,null,null,null,null,{"$f":"[1]أكواد!D108","v":0},{"$f":"[1]أكواد!E108","v":0}]
[null,null,null,null,null,null,null,null,null,null,null,null,null,null,null,null,null,null,null,null,null,{"$f":"[1]أكواد!D109","v":0},{"$f":"[1]أكواد!E109","v":0}]
[null,null,null,null,null,null,null,null,null,null,null,null,null,null,null,null,null,null,null,null,null,{"$f":"[1]أكواد!D110","v":0},{"$f":"[1]أكواد!E110","v":0}]
[null,null,null,null,null,null,null,null,null,null,null,null,null,null,null,null,null,null,null,null,null,{"$f":"[1]أكواد!D111","v":0},{"$f":"[1]أكواد!E111","v":0}]
[null,null,null,null,null,null,null,null,null,null,null,null,null,null,null,null,null,null,null,null,null,{"$f":"[1]أكواد!D112","v":0},{"$f":"[1]أكواد!E112","v":0}]
[null,null,null,null,null,null,null,null,null,null,null,null,null,null,null,null,null,null,null,null,null,{"$f":"[1]أكواد!D113","v":0},{"$f":"[1]أكواد!E113","v":0}]
[null,null,null,null,null,null,null,null,null,null,null,null,null,null,null,null,null,null,null,null,null,{"$f":"[1]أكواد!D114","v":0},{"$f":"[1]أكواد!E114","v":0}]
[null,null,null,null,null,null,null,null,null,null,null,null,null,null,null,null,null,null,null,null,null,{"$f":"[1]أكواد!D115","v":0},{"$f":"[1]أكواد!E115","v":0}]
[null,null,null,null,null,null,null,null,null,null,null,null,null,null,null,null,null,null,null,null,null,{"$f":"[1]أكواد!D116","v":0},{"$f":"[1]أكواد!E116","v":0}]
[null,null,null,null,null,null,null,null,null,null,null,null,null,null,null,null,null,null,null,null,null,{"$f":"[1]أكواد!D117","v":0},{"$f":"[1]أكواد!E117","v":0}]
[null,null,null,null,null,null,null,null,null,null,null,null,null,null,null,null,null,null,null,null,null,{"$f":"[1]أكواد!D118","v":0},{"$f":"[1]أكواد!E118","v":0}]
[null,null,null,null,null,null,null,null,null,null,null,null,null,null,null,null,null,null,null,null,null,{"$f":"[1]أكواد!D119","v":0},{"$f":"[1]أكواد!E119","v":0}]
[null,null,null,null,null,null,null,null,null,null,null,null,null,null,null,null,null,null,null,null,null,{"$f":"[1]أكواد!D120","v":0},{"$f":"[1]أكواد!E120","v":0}]
[null,null,null,null,null,null,null,null,null,null,null,null,null,null,null,null,null,null,null,null,null,{"$f":"[1]أكواد!D121","v":0},{"$f":"[1]أكواد!E121","v":0}]
[null,null,null,null,null,null,null,null,null,null,null,null,null,null,null,null,null,null,null,null,null,{"$f":"[1]أكواد!D122","v":0},{"$f":"[1]أكواد!E122","v":0}]
[null,null,null,null,null,null,null,null,null,null,null,null,null,null,null,null,null,null,null,null,null,{"$f":"[1]أكواد!D123","v":0},{"$f":"[1]أكواد!E123","v":0}]
[null,null,null,null,null,null,null,null,null,null,null,null,null,null,null,null,null,null,null,null,null,{"$f":"[1]أكواد!D124","v":0},{"$f":"[1]أكواد!E124","v":0}]
[null,null,null,null,null,null,null,null,null,null,null,null,null,null,null,null,null,null,null,null,null,{"$f":"[1]أكواد!D125","v":0},{"$f":"[1]أكواد!E125","v":0}]
[null,null,null,null,null,null,null,null,null,null,null,null,null,null,null,null,null,null,null,null,null,{"$f":"[1]أكواد!D126","v":0},{"$f":"[1]أكواد!E126","v":0}]
[null,null,null,null,null,null,null,null,null,null,null,null,null,null,null,null,null,null,null,null,null,{"$f":"[1]أكواد!D127","v":0},{"$f":"[1]أكواد!E127","v":0}]
[null,null,null,null,null,null,null,null,null,null,null,null,null,null,null,null,null,null,null,null,null,{"$f":"[1]أكواد!D128","v":0},{"$f":"[1]أكواد!E128","v":0}]
[null,null,null,null,null,null,null,null,null,null,null,null,null,null,null,null,null,null,null,null,null,{"$f":"[1]أكواد!D129","v":0},{"$f":"[1]أكواد!E129","v":0}]
[null,null,null,null,null,null,null,null,null,null,null,null,null,null,null,null,null,null,null,null,null,{"$f":"[1]أكواد!D130","v":1001},{"$f":"[1]أكواد!E130","v":"طوب مصمت6×12×25خشن رمادى"}]
[null,null,null,null,null,null,null,null,null,null,null,null,null,null,null,null,null,null,null,null,null,{"$f":"[1]أكواد!D131","v":1002},{"$f":"[1]أكواد!E131","v":"طوب مصمت6×10×20خشن رمادى"}]
[null,null,null,null,null,null,null,null,null,null,null,null,null,null,null,null,null,null,null,null,null,{"$f":"[1]أكواد!D132","v":2001},{"$f":"[1]أكواد!E132","v":"بلوك عتب20سم أحمر ناعم"}]
[null,null,null,null,null,null,null,null,null,null,null,null,null,null,null,null,null,null,null,null,null,{"$f":"[1]أكواد!D133","v":2002},{"$f":"[1]أكواد!E133","v":"بلوك عتب20سم أحمر ناعم"}]
[null,null,null,null,null,null,null,null,null,null,null,null,null,null,null,null,null,null,null,null,null,{"$f":"[1]أكواد!D134","v":2003},{"$f":"[1]أكواد!E134","v":"بلوك عتب20سم رمادى ناعم"}]
[null,null,null,null,null,null,null,null,null,null,null,null,null,null,null,null,null,null,null,null,null,{"$f":"[1]أكواد!D135","v":2004},{"$f":"[1]أكواد!E135","v":"بلوك عتب20سم رمادى ناعم"}]
[null,null,null,null,null,null,null,null,null,null,null,null,null,null,null,null,null,null,null,null,null,{"$f":"[1]أكواد!D136","v":2005},{"$f":"[1]أكواد!E136","v":"بلوك مفرغ12سم رمادى خشن"}]
[null,null,null,null,null,null,null,null,null,null,null,null,null,null,null,null,null,null,null,null,null,{"$f":"[1]أكواد!D137","v":2006},{"$f":"[1]أكواد!E137","v":"بلوك مفرغ12سم رمادى خشن"}]
[null,null,null,null,null,null,null,null,null,null,null,null,null,null,null,null,null,null,null,null,null,{"$f":"[1]أكواد!D138","v":2007},{"$f":"[1]أكواد!E138","v":"بلوك مفرغ12سم أحمر ناعم"}]
[null,null,null,null,null,null,null,null,null,null,null,null,null,null,null,null,null,null,null,null,null,{"$f":"[1]أكواد!D139","v":2008},{"$f":"[1]أكواد!E139","v":"بلوك مفرغ12سم أحمر ناعم"}]
[null,null,null,null,null,null,null,null,null,null,null,null,null,null,null,null,null,null,null,null,null,{"$f":"[1]أكواد!D140","v":2009},{"$f":"[1]أكواد!E140","v":"بلوك مفرغ12سم رمادى ناعم"}]
[null,null,null,null,null,null,null,null,null,null,null,null,null,null,null,null,null,null,null,null,null,{"$f":"[1]أكواد!D141","v":2010},{"$f":"[1]أكواد!E141","v":"بلوك مفرغ12سم رمادى ناعم"}]
[null,null,null,null,null,null,null,null,null,null,null,null,null,null,null,null,null,null,null,null,null,{"$f":"[1]أكواد!D142","v":2011},{"$f":"[1]أكواد!E142","v":"بلوك مفرغ20سم رمادى خشن"}]
[null,null,null,null,null,null,null,null,null,null,null,null,null,null,null,null,null,null,null,null,null,{"$f":"[1]أكواد!D143","v":2012},{"$f":"[1]أكواد!E143","v":"بلوك مفرغ20سم أحمر ناعم"}]
[null,null,null,null,null,null,null,null,null,null,null,null,null,null,null,null,null,null,null,null,null,{"$f":"[1]أكواد!D144","v":2013},{"$f":"[1]أكواد!E144","v":"بلوك مفرغ20سم أحمر ناعم"}]
[null,null,null,null,null,null,null,null,null,null,null,null,null,null,null,null,null,null,null,null,null,{"$f":"[1]أكواد!D145","v":2014},{"$f":"[1]أكواد!E145","v":"بلوك مفرغ20سم رمادى ناعم"}]
[null,null,null,null,null,null,null,null,null,null,null,null,null,null,null,null,null,null,null,null,null,{"$f":"[1]أكواد!D146","v":2015},{"$f":"[1]أكواد!E146","v":"بلوك مفرغ20سم رمادى ناعم"}]
[null,null,null,null,null,null,null,null,null,null,null,null,null,null,null,null,null,null,null,null,null,{"$f":"[1]أكواد!D147","v":2016},{"$f":"[1]أكواد!E147","v":"بلوك مفرغ25سم رمادى خشن"}]
[null,null,null,null,null,null,null,null,null,null,null,null,null,null,null,null,null,null,null,null,null,{"$f":"[1]أكواد!D148","v":2017},{"$f":"[1]أكواد!E148","v":"بلوك مفرغ20سم أحمر ناعم"}]
[null,null,null,null,null,null,null,null,null,null,null,null,null,null,null,null,null,null,null,null,null,{"$f":"[1]أكواد!D149","v":2018},{"$f":"[1]أكواد!E149","v":"بلوك مفرغ20سم رمادى ناعم"}]
[null,null,null,null,null,null,null,null,null,null,null,null,null,null,null,null,null,null,null,null,null,{"$f":"[1]أكواد!D150","v":2019},{"$f":"[1]أكواد!E150","v":"بلوك مفرغ25سم رمادى ناعم"}]
[null,null,null,null,null,null,null,null,null,null,null,null,null,null,null,null,null,null,null,null,null,{"$f":"[1]أكواد!D151","v":2020},{"$f":"[1]أكواد!E151","v":"بلوك مصمت10سم رمادى خشن"}]
[null,null,null,null,null,null,null,null,null,null,null,null,null,null,null,null,null,null,null,null,null,{"$f":"[1]أكواد!D152","v":2021},{"$f":"[1]أكواد!E152","v":"بلوك سد25سم رمادى خشن"}]
[null,null,null,null,null,null,null,null,null,null,null,null,null,null,null,null,null,null,null,null,null,{"$f":"[1]أكواد!D153","v":2022},{"$f":"[1]أكواد!E153","v":"بلوك كى ستون20سم رمادى ناعم"}]
[null,null,null,null,null,null,null,null,null,null,null,null,null,null,null,null,null,null,null,null,null,{"$f":"[1]أكواد!D154","v":2023},{"$f":"[1]أكواد!E154","v":"بلوك مفرغ20سم بيج ناعم"}]
[null,null,null,null,null,null,null,null,null,null,null,null,null,null,null,null,null,null,null,null,null,{"$f":"[1]أكواد!D155","v":2024},{"$f":"[1]أكواد!E155","v":"بلوك مفرغ12سم رمادى ناعم"}]
[null,null,null,null,null,null,null,null,null,null,null,null,null,null,null,null,null,null,null,null,null,{"$f":"[1]أكواد!D156","v":2025},{"$f":"[1]أكواد!E156","v":"بلوك مفرغ25سم رمادى ناعم"}]
[null,null,null,null,null,null,null,null,null,null,null,null,null,null,null,null,null,null,null,null,null,{"$f":"[1]أكواد!D157","v":2026},{"$f":"[1]أكواد!E157","v":"بلوك مفرغ10سم رمادى ناعم"}]
[null,null,null,null,null,null,null,null,null,null,null,null,null,null,null,null,null,null,null,null,null,{"$f":"[1]أكواد!D158","v":2027},{"$f":"[1]أكواد!E158","v":"بلوك مصمت20سم رمادى خشن"}]
[null,null,null,null,null,null,null,null,null,null,null,null,null,null,null,null,null,null,null,null,null,{"$f":"[1]أكواد!D159","v":2028},{"$f":"[1]أكواد!E159","v":"بلوك مصمت20سم رمادى ناعم"}]
[null,null,null,null,null,null,null,null,null,null,null,null,null,null,null,null,null,null,null,null,null,{"$f":"[1]أكواد!D160","v":2029},{"$f":"[1]أكواد!E160","v":"بلوك مصمت10سم أحمر ناعم"}]
[null,null,null,null,null,null,null,null,null,null,null,null,null,null,null,null,null,null,null,null,null,{"$f":"[1]أكواد!D161","v":2030},{"$f":"[1]أكواد!E161","v":"بلوك مفرغ10سم رمادى خشن"}]
[null,null,null,null,null,null,null,null,null,null,null,null,null,null,null,null,null,null,null,null,null,{"$f":"[1]أكواد!D162","v":3001},{"$f":"[1]أكواد!E162","v":"بردورة حدائق رمادى كامل"}]
[null,null,null,null,null,null,null,null,null,null,null,null,null,null,null,null,null,null,null,null,null,{"$f":"[1]أكواد!D163","v":3002},{"$f":"[1]أكواد!E163","v":"بردورة حدائق أحمركامل"}]
[null,null,null,null,null,null,null,null,null,null,null,null,null,null,null,null,null,null,null,null,null,{"$f":"[1]أكواد!D164","v":3003},{"$f":"[1]أكواد!E164","v":"بردورة حدائق رمادى كامل-10سم"}]
[null,null,null,null,null,null,null,null,null,null,null,null,null,null,null,null,null,null,null,null,null,{"$f":"[1]أكواد!D165","v":3004},{"$f":"[1]أكواد!E165","v":"بردورة متوسطة متداخلة بيج كامل"}]
[null,null,null,null,null,null,null,null,null,null,null,null,null,null,null,null,null,null,null,null,null,{"$f":"[1]أكواد!D166","v":3005},{"$f":"[1]أكواد!E166","v":"بردورة متوسطة متداخلة رمادى كامل"}]
[null,null,null,null,null,null,null,null,null,null,null,null,null,null,null,null,null,null,null,null,null,{"$f":"[1]أكواد!D167","v":3006},{"$f":"[1]أكواد!E167","v":"بردورة حدائق بيج فيس"}]
[null,null,null,null,null,null,null,null,null,null,null,null,null,null,null,null,null,null,null,null,null,{"$f":"[1]أكواد!D168","v":3007},{"$f":"[1]أكواد!E168","v":"بردورة حدائق بيج كامل"}]
[null,null,null,null,null,null,null,null,null,null,null,null,null,null,null,null,null,null,null,null,null,{"$f":"[1]أكواد!D169","v":3008},{"$f":"[1]أكواد!E169","v":"بردروة متوسطة مسح رمادى كامل"}]
[null,null,null,null,null,null,null,null,null,null,null,null,null,null,null,null,null,null,null,null,null,{"$f":"[1]أكواد!D170","v":3009},{"$f":"[1]أكواد!E170","v":"بردورة متوسطة مسح1متر رمادى كامل"}]
[null,null,null,null,null,null,null,null,null,null,null,null,null,null,null,null,null,null,null,null,null,{"$f":"[1]أكواد!D171","v":3010},{"$f":"[1]أكواد!E171","v":"بردورة متوسطة متداخلة بيج فيس"}]
[null,null,null,null,null,null,null,null,null,null,null,null,null,null,null,null,null,null,null,null,null,{"$f":"[1]أكواد!D172","v":3011},{"$f":"[1]أكواد!E172","v":"بردورة متوسطة مسح رمادى كامل"}]
[null,null,null,null,null,null,null,null,null,null,null,null,null,null,null,null,null,null,null,null,null,{"$f":"[1]أكواد!D173","v":3012},{"$f":"[1]أكواد!E173","v":"بردورة متوسطة متداخلة رمادى كامل"}]
[null,null,null,null,null,null,null,null,null,null,null,null,null,null,null,null,null,null,null,null,null,{"$f":"[1]أكواد!D174","v":3013},{"$f":"[1]أكواد!E174","v":"بردورة حدائق أحمر كامل-10سم "}]
[null,null,null,null,null,null,null,null,null,null,null,null,null,null,null,null,null,null,null,null,null,{"$f":"[1]أكواد!D175","v":3014},{"$f":"[1]أكواد!E175","v":"بردروة متوسطة مسح رمادى كامل"}]
[null,null,null,null,null,null,null,null,null,null,null,null,null,null,null,null,null,null,null,null,null,{"$f":"[1]أكواد!D176","v":3015},{"$f":"[1]أكواد!E176","v":"بردورة حدائق رمادى كامل"}]
[null,null,null,null,null,null,null,null,null,null,null,null,null,null,null,null,null,null,null,null,null,{"$f":"[1]أكواد!D177","v":3016},{"$f":"[1]أكواد!E177","v":"بردروة متوسطة مسح أصفر فيس"}]
[null,null,null,null,null,null,null,null,null,null,null,null,null,null,null,null,null,null,null,null,null,{"$f":"[1]أكواد!D178","v":3017},{"$f":"[1]أكواد!E178","v":"بردروة متوسطة مسح رمادى غامق فيس"}]
[null,null,null,null,null,null,null,null,null,null,null,null,null,null,null,null,null,null,null,null,null,{"$f":"[1]أكواد!D179","v":3018},{"$f":"[1]أكواد!E179","v":"بردورة حدائق رمادى كامل"}]
[null,null,null,null,null,null,null,null,null,null,null,null,null,null,null,null,null,null,null,null,null,{"$f":"[1]أكواد!D180","v":4001},{"$f":"[1]أكواد!E180","v":"انترلوك بيهاتون6سم أحمر كامل"}]
[null,null,null,null,null,null,null,null,null,null,null,null,null,null,null,null,null,null,null,null,null,{"$f":"[1]أكواد!D181","v":4002},{"$f":"[1]أكواد!E181","v":"انترلوك بيهاتون6سم أحمر كامل"}]
[null,null,null,null,null,null,null,null,null,null,null,null,null,null,null,null,null,null,null,null,null,{"$f":"[1]أكواد!D182","v":4003},{"$f":"[1]أكواد!E182","v":"انترلوك بيهاتون6سم رمادى غامق كامل"}]
[null,null,null,null,null,null,null,null,null,null,null,null,null,null,null,null,null,null,null,null,null,{"$f":"[1]أكواد!D183","v":4004},{"$f":"[1]أكواد!E183","v":"انترلوك بيهاتون6سم رمادى غامق كامل"}]
[null,null,null,null,null,null,null,null,null,null,null,null,null,null,null,null,null,null,null,null,null,{"$f":"[1]أكواد!D184","v":4005},{"$f":"[1]أكواد!E184","v":"انترلوك بيهاتون6سم رمادى كامل"}]
[null,null,null,null,null,null,null,null,null,null,null,null,null,null,null,null,null,null,null,null,null,{"$f":"[1]أكواد!D185","v":4006},{"$f":"[1]أكواد!E185","v":"انترلوك بيهاتون6سم رمادى كامل"}]
[null,null,null,null,null,null,null,null,null,null,null,null,null,null,null,null,null,null,null,null,null,{"$f":"[1]أكواد!D186","v":4007},{"$f":"[1]أكواد!E186","v":"انترلوك بيهاتون8سم أحمر كامل"}]
[null,null,null,null,null,null,null,null,null,null,null,null,null,null,null,null,null,null,null,null,null,{"$f":"[1]أكواد!D187","v":4008},{"$f":"[1]أكواد!E187","v":"انترلوك بيهاتون8سم أحمر كامل"}]
[null,null,null,null,null,null,null,null,null,null,null,null,null,null,null,null,null,null,null,null,null,{"$f":"[1]أكواد!D188","v":4009},{"$f":"[1]أكواد!E188","v":"انترلوك بيهاتون8سم أحمر كامل"}]
[null,null,null,null,null,null,null,null,null,null,null,null,null,null,null,null,null,null,null,null,null,{"$f":"[1]أكواد!D189","v":4010},{"$f":"[1]أكواد!E189","v":"انترلوك بيهاتون8سم رمادى كامل"}]
[null,null,null,null,null,null,null,null,null,null,null,null,null,null,null,null,null,null,null,null,null,{"$f":"[1]أكواد!D190","v":4011},{"$f":"[1]أكواد!E190","v":"انترلوك بيهاتون8سم رمادى كامل"}]
[null,null,null,null,null,null,null,null,null,null,null,null,null,null,null,null,null,null,null,null,null,{"$f":"[1]أكواد!D191","v":4012},{"$f":"[1]أكواد!E191","v":"انترلوك بيهاتون8سم رمادى كامل"}]
[null,null,null,null,null,null,null,null,null,null,null,null,null,null,null,null,null,null,null,null,null,{"$f":"[1]أكواد!D192","v":4013},{"$f":"[1]أكواد!E192","v":"انترلوك مستطيل6سم بيج كامل"}]
[null,null,null,null,null,null,null,null,null,null,null,null,null,null,null,null,null,null,null,null,null,{"$f":"[1]أكواد!D193","v":4014},{"$f":"[1]أكواد!E193","v":"انترلوك مستطيل6سم أحمر فيس"}]
[null,null,null,null,null,null,null,null,null,null,null,null,null,null,null,null,null,null,null,null,null,{"$f":"[1]أكواد!D194","v":4015},{"$f":"[1]أكواد!E194","v":"انترلوك مستطيل6سم أحمر فيس"}]
[null,null,null,null,null,null,null,null,null,null,null,null,null,null,null,null,null,null,null,null,null,{"$f":"[1]أكواد!D195","v":4016},{"$f":"[1]أكواد!E195","v":"انترلوك مستطيل6سم أحمر كامل"}]
[null,null,null,null,null,null,null,null,null,null,null,null,null,null,null,null,null,null,null,null,null,{"$f":"[1]أكواد!D196","v":4017},{"$f":"[1]أكواد!E196","v":"انترلوك مستطيل6سم رمادى غامق كامل"}]
[null,null,null,null,null,null,null,null,null,null,null,null,null,null,null,null,null,null,null,null,null,{"$f":"[1]أكواد!D197","v":4018},{"$f":"[1]أكواد!E197","v":"انترلوك مستطيل6سم أصفر فيس"}]
[null,null,null,null,null,null,null,null,null,null,null,null,null,null,null,null,null,null,null,null,null,{"$f":"[1]أكواد!D198","v":4019},{"$f":"[1]أكواد!E198","v":"انترلوك مستطيل6سم أصفر كامل"}]
[null,null,null,null,null,null,null,null,null,null,null,null,null,null,null,null,null,null,null,null,null,{"$f":"[1]أكواد!D199","v":4020},{"$f":"[1]أكواد!E199","v":"انترلوك مستطيل6سم رمادى كامل"}]
[null,null,null,null,null,null,null,null,null,null,null,null,null,null,null,null,null,null,null,null,null,{"$f":"[1]أكواد!D200","v":4021},{"$f":"[1]أكواد!E200","v":"انترلوك مستطيل6سم رمادى غامق فيس"}]
[null,null,null,null,null,null,null,null,null,null,null,null,null,null,null,null,null,null,null,null,null,{"$f":"[1]أكواد!D201","v":4022},{"$f":"[1]أكواد!E201","v":"انترلوك مستطيل8سم أحمر كامل"}]
[null,null,null,null,null,null,null,null,null,null,null,null,null,null,null,null,null,null,null,null,null,{"$f":"[1]أكواد!D202","v":4023},{"$f":"[1]أكواد!E202","v":"انترلوك مستطيل8سم رمادى غامق كامل"}]
[null,null,null,null,null,null,null,null,null,null,null,null,null,null,null,null,null,null,null,null,null,{"$f":"[1]أكواد!D203","v":4024},{"$f":"[1]أكواد!E203","v":"انترلوك مستطيل8سم رمادى كامل"}]
[null,null,null,null,null,null,null,null,null,null,null,null,null,null,null,null,null,null,null,null,null,{"$f":"[1]أكواد!D204","v":4025},{"$f":"[1]أكواد!E204","v":"انترلوك مستطيل8سم رمادى كامل"}]
[null,null,null,null,null,null,null,null,null,null,null,null,null,null,null,null,null,null,null,null,null,{"$f":"[1]أكواد!D205","v":4026},{"$f":"[1]أكواد!E205","v":"انترلوك مستطيل8سم رمادى كامل"}]
[null,null,null,null,null,null,null,null,null,null,null,null,null,null,null,null,null,null,null,null,null,{"$f":"[1]أكواد!D206","v":4027},{"$f":"[1]أكواد!E206","v":"انترلوك مستطيل6سم رمادى كامل"}]
[null,null,null,null,null,null,null,null,null,null,null,null,null,null,null,null,null,null,null,null,null,{"$f":"[1]أكواد!D207","v":4028},{"$f":"[1]أكواد!E207","v":"انترلوك سداسى6سم أحمر كامل"}]
[null,null,null,null,null,null,null,null,null,null,null,null,null,null,null,null,null,null,null,null,null,{"$f":"[1]أكواد!D208","v":4029},{"$f":"[1]أكواد!E208","v":"انترلوك سداسى6سم أحمر كامل"}]
[null,null,null,null,null,null,null,null,null,null,null,null,null,null,null,null,null,null,null,null,null,{"$f":"[1]أكواد!D209","v":4030},{"$f":"[1]أكواد!E209","v":"انترلوك سداسى6سم رمادى غامق كامل"}]
[null,null,null,null,null,null,null,null,null,null,null,null,null,null,null,null,null,null,null,null,null,{"$f":"[1]أكواد!D210","v":4031},{"$f":"[1]أكواد!E210","v":"انترلوك سداسى6سم رمادى غامق كامل"}]
[null,null,null,null,null,null,null,null,null,null,null,null,null,null,null,null,null,null,null,null,null,{"$f":"[1]أكواد!D211","v":4032},{"$f":"[1]أكواد!E211","v":"انترلوك سداسى6سم رمادى كامل"}]
[null,null,null,null,null,null,null,null,null,null,null,null,null,null,null,null,null,null,null,null,null,{"$f":"[1]أكواد!D212","v":4033},{"$f":"[1]أكواد!E212","v":"انترلوك سداسى6سم رمادى كامل"}]
[null,null,null,null,null,null,null,null,null,null,null,null,null,null,null,null,null,null,null,null,null,{"$f":"[1]أكواد!D213","v":4034},{"$f":"[1]أكواد!E213","v":"انترلوك سداسى8سم أحمر كامل"}]
[null,null,null,null,null,null,null,null,null,null,null,null,null,null,null,null,null,null,null,null,null,{"$f":"[1]أكواد!D214","v":4035},{"$f":"[1]أكواد!E214","v":"انترلوك سداسى8سم رمادى كامل"}]
[null,null,null,null,null,null,null,null,null,null,null,null,null,null,null,null,null,null,null,null,null,{"$f":"[1]أكواد!D215","v":4036},{"$f":"[1]أكواد!E215","v":"انترلوك سداسى8سم رمادى كامل"}]
[null,null,null,null,null,null,null,null,null,null,null,null,null,null,null,null,null,null,null,null,null,{"$f":"[1]أكواد!D216","v":4037},{"$f":"[1]أكواد!E216","v":"انترلوك سداسى8سم رمادى كامل"}]
[null,null,null,null,null,null,null,null,null,null,null,null,null,null,null,null,null,null,null,null,null,{"$f":"[1]أكواد!D217","v":4038},{"$f":"[1]أكواد!E217","v":"انترلوك سداسى8سم أحمر كامل"}]
[null,null,null,null,null,null,null,null,null,null,null,null,null,null,null,null,null,null,null,null,null,{"$f":"[1]أكواد!D218","v":4039},{"$f":"[1]أكواد!E218","v":"انترلوك مستطيل8سم أورنج كامل"}]
[null,null,null,null,null,null,null,null,null,null,null,null,null,null,null,null,null,null,null,null,null,{"$f":"[1]أكواد!D219","v":4040},{"$f":"[1]أكواد!E219","v":"انترلوك مستطيل8سم كافيه كامل"}]
[null,null,null,null,null,null,null,null,null,null,null,null,null,null,null,null,null,null,null,null,null,{"$f":"[1]أكواد!D220","v":4041},{"$f":"[1]أكواد!E220","v":"انترلوك مستطيل8سم أحمر كامل"}]
[null,null,null,null,null,null,null,null,null,null,null,null,null,null,null,null,null,null,null,null,null,{"$f":"[1]أكواد!D221","v":4042},{"$f":"[1]أكواد!E221","v":"انترلوك مستطيل8سم رمادى غامق كامل"}]
[null,null,null,null,null,null,null,null,null,null,null,null,null,null,null,null,null,null,null,null,null,{"$f":"[1]أكواد!D222","v":4043},{"$f":"[1]أكواد!E222","v":"انترلوك مربع6سم رمادى كامل"}]
[null,null,null,null,null,null,null,null,null,null,null,null,null,null,null,null,null,null,null,null,null,{"$f":"[1]أكواد!D223","v":4044},{"$f":"[1]أكواد!E223","v":"انترلوك مربع6سم رمادى كامل"}]
[null,null,null,null,null,null,null,null,null,null,null,null,null,null,null,null,null,null,null,null,null,{"$f":"[1]أكواد!D224","v":4045},{"$f":"[1]أكواد!E224","v":"انترلوك مربع6سم أحمر كامل"}]
[null,null,null,null,null,null,null,null,null,null,null,null,null,null,null,null,null,null,null,null,null,{"$f":"[1]أكواد!D225","v":4046},{"$f":"[1]أكواد!E225","v":"انترلوك سداسى8سم أحمر كامل"}]
[null,null,null,null,null,null,null,null,null,null,null,null,null,null,null,null,null,null,null,null,null,{"$f":"[1]أكواد!D226","v":4047},{"$f":"[1]أكواد!E226","v":"انترلوك بيهاتون8سم رمادى كامل"}]
[null,null,null,null,null,null,null,null,null,null,null,null,null,null,null,null,null,null,null,null,null,{"$f":"[1]أكواد!D227","v":4048},{"$f":"[1]أكواد!E227","v":"انترلوك مربع6سم رمادى غامق كامل"}]
[null,null,null,null,null,null,null,null,null,null,null,null,null,null,null,null,null,null,null,null,null,{"$f":"[1]أكواد!D228","v":4049},{"$f":"[1]أكواد!E228","v":"انترلوك مربع6سم رمادى غامق كامل"}]
[null,null,null,null,null,null,null,null,null,null,null,null,null,null,null,null,null,null,null,null,null,{"$f":"[1]أكواد!D229","v":4050},{"$f":"[1]أكواد!E229","v":"انترلوك مربع6سم أصفر فيس"}]
[null,null,null,null,null,null,null,null,null,null,null,null,null,null,null,null,null,null,null,null,null,{"$f":"[1]أكواد!D230","v":4051},{"$f":"[1]أكواد!E230","v":"انترلوك مربع6سم أحمر كامل"}]
[null,null,null,null,null,null,null,null,null,null,null,null,null,null,null,null,null,null,null,null,null,{"$f":"[1]أكواد!D231","v":4052},{"$f":"[1]أكواد!E231","v":"انترلوك مستطيل6سم رمادى غامق كامل"}]
[null,null,null,null,null,null,null,null,null,null,null,null,null,null,null,null,null,null,null,null,null,{"$f":"[1]أكواد!D232","v":4053},{"$f":"[1]أكواد!E232","v":"انترلوك مستطيل6سم رمادى كامل"}]
[null,null,null,null,null,null,null,null,null,null,null,null,null,null,null,null,null,null,null,null,null,{"$f":"[1]أكواد!D233","v":4054},{"$f":"[1]أكواد!E233","v":"انترلوك سداسى8سم رمادى كامل"}]
[null,null,null,null,null,null,null,null,null,null,null,null,null,null,null,null,null,null,null,null,null,{"$f":"[1]أكواد!D234","v":4055},{"$f":"[1]أكواد!E234","v":"انترلوك سداسى8سم أحمر كامل"}]
[null,null,null,null,null,null,null,null,null,null,null,null,null,null,null,null,null,null,null,null,null,{"$f":"[1]أكواد!D235","v":4056},{"$f":"[1]أكواد!E235","v":"انترلوك بيهاتون6سم أحمر كامل"}]
[null,null,null,null,null,null,null,null,null,null,null,null,null,null,null,null,null,null,null,null,null,{"$f":"[1]أكواد!D236","v":4057},{"$f":"[1]أكواد!E236","v":"انترلوك مستطيل6سم بيج كامل"}]
[null,null,null,null,null,null,null,null,null,null,null,null,null,null,null,null,null,null,null,null,null,{"$f":"[1]أكواد!D237","v":4058},{"$f":"[1]أكواد!E237","v":"انترلوك مستطيل6سم بيج فيس"}]
[null,null,null,null,null,null,null,null,null,null,null,null,null,null,null,null,null,null,null,null,null,{"$f":"[1]أكواد!D238","v":4059},{"$f":"[1]أكواد!E238","v":"انترلوك بيهاتون6سم رمادى كامل"}]
[null,null,null,null,null,null,null,null,null,null,null,null,null,null,null,null,null,null,null,null,null,{"$f":"[1]أكواد!D239","v":4060},{"$f":"[1]أكواد!E239","v":"انترلوك مستطيل6سم بيج فيس"}]
[null,null,null,null,null,null,null,null,null,null,null,null,null,null,null,null,null,null,null,null,null,{"$f":"[1]أكواد!D240","v":4061},{"$f":"[1]أكواد!E240","v":"انترلوك مستطيل6سم أصفر فيس"}]
[null,null,null,null,null,null,null,null,null,null,null,null,null,null,null,null,null,null,null,null,null,{"$f":"[1]أكواد!D241","v":4062},{"$f":"[1]أكواد!E241","v":"انترلوك مربع6سم بيج فيس"}]
[null,null,null,null,null,null,null,null,null,null,null,null,null,null,null,null,null,null,null,null,null,{"$f":"[1]أكواد!D242","v":4063},{"$f":"[1]أكواد!E242","v":"انترلوك مربع6سم بيج كامل"}]
[null,null,null,null,null,null,null,null,null,null,null,null,null,null,null,null,null,null,null,null,null,{"$f":"[1]أكواد!D243","v":4064},{"$f":"[1]أكواد!E243","v":"انترلوك بيهاتون8سم رمادى كامل"}]
[null,null,null,null,null,null,null,null,null,null,null,null,null,null,null,null,null,null,null,null,null,{"$f":"[1]أكواد!D244","v":4065},{"$f":"[1]أكواد!E244","v":"انترلوك بيهاتون8سم أحمر كامل"}]
[null,null,null,null,null,null,null,null,null,null,null,null,null,null,null,null,null,null,null,null,null,{"$f":"[1]أكواد!D245","v":4066},{"$f":"[1]أكواد!E245","v":"انترلوك مستطيل8سم بيج فيس"}]
[null,null,null,null,null,null,null,null,null,null,null,null,null,null,null,null,null,null,null,null,null,{"$f":"[1]أكواد!D246","v":4067},{"$f":"[1]أكواد!E246","v":"انترلوك مستطيل8سم أصفر فيس"}]
[null,null,null,null,null,null,null,null,null,null,null,null,null,null,null,null,null,null,null,null,null,{"$f":"[1]أكواد!D247","v":4068},{"$f":"[1]أكواد!E247","v":"انترلوك مستطيل6سم رمادى غامق كامل"}]
[null,null,null,null,null,null,null,null,null,null,null,null,null,null,null,null,null,null,null,null,null,{"$f":"[1]أكواد!D248","v":4069},{"$f":"[1]أكواد!E248","v":"انترلوك مستطيل6سم أحمر كامل"}]
[null,null,null,null,null,null,null,null,null,null,null,null,null,null,null,null,null,null,null,null,null,{"$f":"[1]أكواد!D249","v":4070},{"$f":"[1]أكواد!E249","v":"انترلوك مستطيل6سم رمادى كامل"}]
[null,null,null,null,null,null,null,null,null,null,null,null,null,null,null,null,null,null,null,null,null,{"$f":"[1]أكواد!D250","v":4071},{"$f":"[1]أكواد!E250","v":"انترلوك مستطيل6سم أحمر فيس"}]
[null,null,null,null,null,null,null,null,null,null,null,null,null,null,null,null,null,null,null,null,null,{"$f":"[1]أكواد!D251","v":4072},{"$f":"[1]أكواد!E251","v":"انترلوك بيهاتون8سم رمادى غامق كامل"}]
[null,null,null,null,null,null,null,null,null,null,null,null,null,null,null,null,null,null,null,null,null,{"$f":"[1]أكواد!D252","v":4073},{"$f":"[1]أكواد!E252","v":"انترلوك مربع8سم بيج فيس"}]
[null,null,null,null,null,null,null,null,null,null,null,null,null,null,null,null,null,null,null,null,null,{"$f":"[1]أكواد!D253","v":4074},{"$f":"[1]أكواد!E253","v":"انترلوك مربع8سم×20بيج فيس"}]
[null,null,null,null,null,null,null,null,null,null,null,null,null,null,null,null,null,null,null,null,null,{"$f":"[1]أكواد!D254","v":4075},{"$f":"[1]أكواد!E254","v":"انترلوك مربع8سم بيج كامل"}]
[null,null,null,null,null,null,null,null,null,null,null,null,null,null,null,null,null,null,null,null,null,{"$f":"[1]أكواد!D255","v":4076},{"$f":"[1]أكواد!E255","v":"انترلوك مربع8سم×20بيج كامل"}]
[null,null,null,null,null,null,null,null,null,null,null,null,null,null,null,null,null,null,null,null,null,{"$f":"[1]أكواد!D256","v":4077},{"$f":"[1]أكواد!E256","v":"انترلوك مربع8سم×20أحمر كامل"}]
[null,null,null,null,null,null,null,null,null,null,null,null,null,null,null,null,null,null,null,null,null,{"$f":"[1]أكواد!D257","v":4078},{"$f":"[1]أكواد!E257","v":"انترلوك مربع8سم×20رمادى كامل"}]
[null,null,null,null,null,null,null,null,null,null,null,null,null,null,null,null,null,null,null,null,null,{"$f":"[1]أكواد!D258","v":4079},{"$f":"[1]أكواد!E258","v":"انترلوك مربع8سم رمادى غامق كامل"}]
[null,null,null,null,null,null,null,null,null,null,null,null,null,null,null,null,null,null,null,null,null,{"$f":"[1]أكواد!D259","v":4080},{"$f":"[1]أكواد!E259","v":"انترلوك مربع8سم أحمر كامل"}]
[null,null,null,null,null,null,null,null,null,null,null,null,null,null,null,null,null,null,null,null,null,{"$f":"[1]أكواد!D260","v":4081},{"$f":"[1]أكواد!E260","v":"انترلوك مربع8سم رمادى كامل"}]
[null,null,null,null,null,null,null,null,null,null,null,null,null,null,null,null,null,null,null,null,null,{"$f":"[1]أكواد!D261","v":4082},{"$f":"[1]أكواد!E261","v":"انترلوك مربع8سم أصفر فيس"}]
[null,null,null,null,null,null,null,null,null,null,null,null,null,null,null,null,null,null,null,null,null,{"$f":"[1]أكواد!D262","v":4083},{"$f":"[1]أكواد!E262","v":"انترلوك مربع6سم أصفر فيس"}]
[null,null,null,null,null,null,null,null,null,null,null,null,null,null,null,null,null,null,null,null,null,{"$f":"[1]أكواد!D263","v":4084},{"$f":"[1]أكواد!E263","v":"انترلوك مربع8سم×60رمادى غامق كامل"}]
[null,null,null,null,null,null,null,null,null,null,null,null,null,null,null,null,null,null,null,null,null,{"$f":"[1]أكواد!D264","v":4085},{"$f":"[1]أكواد!E264","v":"انترلوك مربع8سم×60رمادى كامل"}]
[null,null,null,null,null,null,null,null,null,null,null,null,null,null,null,null,null,null,null,null,null,{"$f":"[1]أكواد!D265","v":4086},{"$f":"[1]أكواد!E265","v":"انترلوك مستطيل6سم بيج كامل"}]
[null,null,null,null,null,null,null,null,null,null,null,null,null,null,null,null,null,null,null,null,null,{"$f":"[1]أكواد!D266","v":4087},{"$f":"[1]أكواد!E266","v":"انترلوك مستطيل8سم بيج كامل"}]
[null,null,null,null,null,null,null,null,null,null,null,null,null,null,null,null,null,null,null,null,null,{"$f":"[1]أكواد!D267","v":4088},{"$f":"[1]أكواد!E267","v":"انترلوك مستطيل8سم30×60رمادى غامق كامل"}]
[null,null,null,null,null,null,null,null,null,null,null,null,null,null,null,null,null,null,null,null,null,{"$f":"[1]أكواد!D268","v":4089},{"$f":"[1]أكواد!E268","v":"انترلوك مستطيل8سم30×60رمادى كامل"}]
[null,null,null,null,null,null,null,null,null,null,null,null,null,null,null,null,null,null,null,null,null,{"$f":"[1]أكواد!D269","v":4090},{"$f":"[1]أكواد!E269","v":"انترلوك مستطيل6سم أحمر كامل"}]
[null,null,null,null,null,null,null,null,null,null,null,null,null,null,null,null,null,null,null,null,null,{"$f":"[1]أكواد!D270","v":4091},{"$f":"[1]أكواد!E270","v":"انترلوك سداسى6سم رمادى كامل"}]
[null,null,null,null,null,null,null,null,null,null,null,null,null,null,null,null,null,null,null,null,null,{"$f":"[1]أكواد!D271","v":4092},{"$f":"[1]أكواد!E271","v":"انترلوك مربع8سم×30رمادى غامق كامل"}]
[null,null,null,null,null,null,null,null,null,null,null,null,null,null,null,null,null,null,null,null,null,{"$f":"[1]أكواد!D272","v":4093},{"$f":"[1]أكواد!E272","v":"انترلوك مربع8سم×30رمادى غامق فيس"}]
[null,null,null,null,null,null,null,null,null,null,null,null,null,null,null,null,null,null,null,null,null,{"$f":"[1]أكواد!D273","v":4094},{"$f":"[1]أكواد!E273","v":"انترلوك مربع8سم×30رمادى كامل"}]
[null,null,null,null,null,null,null,null,null,null,null,null,null,null,null,null,null,null,null,null,null,{"$f":"[1]أكواد!D274","v":4095},{"$f":"[1]أكواد!E274","v":"انترلوك مستطيل8سم رمادى غامق كامل"}]
[null,null,null,null,null,null,null,null,null,null,null,null,null,null,null,null,null,null,null,null,null,{"$f":"[1]أكواد!D275","v":4096},{"$f":"[1]أكواد!E275","v":"انترلوك مستطيل8سم أحمر كامل"}]
[null,null,null,null,null,null,null,null,null,null,null,null,null,null,null,null,null,null,null,null,null,{"$f":"[1]أكواد!D276","v":4097},{"$f":"[1]أكواد!E276","v":"انترلوك مستطيل6سم أصفر كامل"}]
[null,null,null,null,null,null,null,null,null,null,null,null,null,null,null,null,null,null,null,null,null,{"$f":"[1]أكواد!D277","v":4098},{"$f":"[1]أكواد!E277","v":"انترلوك مربع8سم×20أصفر كامل"}]
[null,null,null,null,null,null,null,null,null,null,null,null,null,null,null,null,null,null,null,null,null,{"$f":"[1]أكواد!D278","v":4099},{"$f":"[1]أكواد!E278","v":"انترلوك مستطيل8سم بنى كامل"}]
[null,null,null,null,null,null,null,null,null,null,null,null,null,null,null,null,null,null,null,null,null,{"$f":"[1]أكواد!D279","v":4100},{"$f":"[1]أكواد!E279","v":"انترلوك مستطيل6سم رمادى غامق كامل"}]
[null,null,null,null,null,null,null,null,null,null,null,null,null,null,null,null,null,null,null,null,null,{"$f":"[1]أكواد!D280","v":4101},{"$f":"[1]أكواد!E280","v":"انترلوك مربع8سم×60رمادى كامل"}]
[null,null,null,null,null,null,null,null,null,null,null,null,null,null,null,null,null,null,null,null,null,{"$f":"[1]أكواد!D281","v":4102},{"$f":"[1]أكواد!E281","v":"انترلوك مربع8سم×20رمادى غامق كامل"}]
[null,null,null,null,null,null,null,null,null,null,null,null,null,null,null,null,null,null,null,null,null,{"$f":"[1]أكواد!D282","v":4103},{"$f":"[1]أكواد!E282","v":"انترلوك مستطيل8سم20×40رمادى كامل"}]
[null,null,null,null,null,null,null,null,null,null,null,null,null,null,null,null,null,null,null,null,null,{"$f":"[1]أكواد!D283","v":4104},{"$f":"[1]أكواد!E283","v":"انترلوك مستطيل8سم رمادى غامق كامل"}]
[null,null,null,null,null,null,null,null,null,null,null,null,null,null,null,null,null,null,null,null,null,{"$f":"[1]أكواد!D284","v":4105},{"$f":"[1]أكواد!E284","v":"انترلوك مستطيل8سم30×60رمادى غامق كامل"}]
[null,null,null,null,null,null,null,null,null,null,null,null,null,null,null,null,null,null,null,null,null,{"$f":"[1]أكواد!D285","v":4106},{"$f":"[1]أكواد!E285","v":"انترلوك مربع8سم×60رمادى غامق كامل"}]
[null,null,null,null,null,null,null,null,null,null,null,null,null,null,null,null,null,null,null,null,null,{"$f":"[1]أكواد!D286","v":4107},{"$f":"[1]أكواد!E286","v":"انترلوك مستطيل8سم30×60رمادى كامل"}]
[null,null,null,null,null,null,null,null,null,null,null,null,null,null,null,null,null,null,null,null,null,{"$f":"[1]أكواد!D287","v":4108},{"$f":"[1]أكواد!E287","v":"انترلوك مستطيل8سم20×40رمادى كامل"}]
[null,null,null,null,null,null,null,null,null,null,null,null,null,null,null,null,null,null,null,null,null,{"$f":"[1]أكواد!D288","v":4109},{"$f":"[1]أكواد!E288","v":"انترلوك مربع8سم×30رمادى غامق فيس"}]
[null,null,null,null,null,null,null,null,null,null,null,null,null,null,null,null,null,null,null,null,null,{"$f":"[1]أكواد!D289","v":4110},{"$f":"[1]أكواد!E289","v":"انترلوك مربع8سم×30أحمر فيس"}]
[null,null,null,null,null,null,null,null,null,null,null,null,null,null,null,null,null,null,null,null,null,{"$f":"[1]أكواد!D290","v":4111},{"$f":"[1]أكواد!E290","v":"انترلوك مربع8سم×20رمادى كامل"}]
[null,null,null,null,null,null,null,null,null,null,null,null,null,null,null,null,null,null,null,null,null,{"$f":"[1]أكواد!D291","v":4112},{"$f":"[1]أكواد!E291","v":"انترلوك مستطيل8سم رمادى كامل"}]
[null,null,null,null,null,null,null,null,null,null,null,null,null,null,null,null,null,null,null,null,null,{"$f":"[1]أكواد!D292","v":4113},{"$f":"[1]أكواد!E292","v":"انترلوك مربع8سم×20رمادى فاتح فيس"}]
[null,null,null,null,null,null,null,null,null,null,null,null,null,null,null,null,null,null,null,null,null,{"$f":"[1]أكواد!D293","v":4114},{"$f":"[1]أكواد!E293","v":"انترلوك مربع8سم×30رمادى غامق كامل"}]
[null,null,null,null,null,null,null,null,null,null,null,null,null,null,null,null,null,null,null,null,null,{"$f":"[1]أكواد!D294","v":4115},{"$f":"[1]أكواد!E294","v":"انترلوك بيهاتون6سم رمادى فاتح فيس"}]
[null,null,null,null,null,null,null,null,null,null,null,null,null,null,null,null,null,null,null,null,null,{"$f":"[1]أكواد!D295","v":4116},{"$f":"[1]أكواد!E295","v":"انترلوك مستطيل6سم أصفر فيس"}]
[null,null,null,null,null,null,null,null,null,null,null,null,null,null,null,null,null,null,null,null,null,{"$f":"[1]أكواد!D296","v":4117},{"$f":"[1]أكواد!E296","v":"انترلوك بيهاتون6سم أحمر كامل"}]
[null,null,null,null,null,null,null,null,null,null,null,null,null,null,null,null,null,null,null,null,null,{"$f":"[1]أكواد!D297","v":4118},{"$f":"[1]أكواد!E297","v":"انترلوك مستطيل6سم أحمر كامل"}]
[null,null,null,null,null,null,null,null,null,null,null,null,null,null,null,null,null,null,null,null,null,{"$f":"[1]أكواد!D298","v":4119},{"$f":"[1]أكواد!E298","v":"انترلوك سداسى8سم رمادى كامل"}]
[null,null,null,null,null,null,null,null,null,null,null,null,null,null,null,null,null,null,null,null,null,{"$f":"[1]أكواد!D299","v":4120},{"$f":"[1]أكواد!E299","v":"انترلوك مستطيل8سم رمادى غامق كامل"}]
[null,null,null,null,null,null,null,null,null,null,null,null,null,null,null,null,null,null,null,null,null,{"$f":"[1]أكواد!D300","v":4121},{"$f":"[1]أكواد!E300","v":"انترلوك مستطيل6سم رمادى فاتح فيس"}]
[null,null,null,null,null,null,null,null,null,null,null,null,null,null,null,null,null,null,null,null,null,{"$f":"[1]أكواد!D301","v":4122},{"$f":"[1]أكواد!E301","v":"انترلوك بيهاتون8سم رمادى فاتح فيس"}]
[null,null,null,null,null,null,null,null,null,null,null,null,null,null,null,null,null,null,null,null,null,{"$f":"[1]أكواد!D302","v":4123},{"$f":"[1]أكواد!E302","v":"انترلوك سداسى6سم رمادى كامل"}]
[null,null,null,null,null,null,null,null,null,null,null,null,null,null,null,null,null,null,null,null,null,{"$f":"[1]أكواد!D303","v":4124},{"$f":"[1]أكواد!E303","v":"انترلوك مستطيل8سم20×40رمادى غامق كامل"}]
[null,null,null,null,null,null,null,null,null,null,null,null,null,null,null,null,null,null,null,null,null,{"$f":"[1]أكواد!D304","v":4125},{"$f":"[1]أكواد!E304","v":"انترلوك مربع8سم رمادى كامل"}]
[null,null,null,null,null,null,null,null,null,null,null,null,null,null,null,null,null,null,null,null,null,{"$f":"[1]أكواد!D305","v":4126},{"$f":"[1]أكواد!E305","v":"انترلوك مستطيل6سم أصفر فيس"}]
[null,null,null,null,null,null,null,null,null,null,null,null,null,null,null,null,null,null,null,null,null,{"$f":"[1]أكواد!D306","v":4127},{"$f":"[1]أكواد!E306","v":"انترلوك مستطيل8سم رمادى فاتح فيس"}]
[null,null,null,null,null,null,null,null,null,null,null,null,null,null,null,null,null,null,null,null,null,{"$f":"[1]أكواد!D307","v":4128},{"$f":"[1]أكواد!E307","v":"انترلوك مستطيل8سم أحمر كامل"}]
[null,null,null,null,null,null,null,null,null,null,null,null,null,null,null,null,null,null,null,null,null,{"$f":"[1]أكواد!D308","v":4129},{"$f":"[1]أكواد!E308","v":"انترلوك مربع8سم×20أحمركامل"}]
[null,null,null,null,null,null,null,null,null,null,null,null,null,null,null,null,null,null,null,null,null,{"$f":"[1]أكواد!D309","v":4130},{"$f":"[1]أكواد!E309","v":"انترلوك مربع8سم رمادى كامل"}]
[null,null,null,null,null,null,null,null,null,null,null,null,null,null,null,null,null,null,null,null,null,{"$f":"[1]أكواد!D310","v":4131},{"$f":"[1]أكواد!E310","v":"انترلوك مستطيل8سم رمادى كامل"}]
[null,null,null,null,null,null,null,null,null,null,null,null,null,null,null,null,null,null,null,null,null,{"$f":"[1]أكواد!D311","v":4132},{"$f":"[1]أكواد!E311","v":"انترلوك مستطيل8سم رمادى غامق كامل"}]
[null,null,null,null,null,null,null,null,null,null,null,null,null,null,null,null,null,null,null,null,null,{"$f":"[1]أكواد!D312","v":4133},{"$f":"[1]أكواد!E312","v":"انترلوك مربع8سم أصفر كامل"}]
[null,null,null,null,null,null,null,null,null,null,null,null,null,null,null,null,null,null,null,null,null,{"$f":"[1]أكواد!D313","v":4134},{"$f":"[1]أكواد!E313","v":"انترلوك فير فيس8سم20×40أحمر"}]
[null,null,null,null,null,null,null,null,null,null,null,null,null,null,null,null,null,null,null,null,null,{"$f":"[1]أكواد!D314","v":4135},{"$f":"[1]أكواد!E314","v":"انترلوك فير فيس8سم20×40رمادى"}]
[null,null,null,null,null,null,null,null,null,null,null,null,null,null,null,null,null,null,null,null,null,{"$f":"[1]أكواد!D315","v":4136},{"$f":"[1]أكواد!E315","v":"انترلوك مستطيل6سم بيج كامل"}]
[null,null,null,null,null,null,null,null,null,null,null,null,null,null,null,null,null,null,null,null,null,{"$f":"[1]أكواد!D316","v":4137},{"$f":"[1]أكواد!E316","v":"انترلوك مربع8سم بيج فيس"}]
[null,null,null,null,null,null,null,null,null,null,null,null,null,null,null,null,null,null,null,null,null,{"$f":"[1]أكواد!D317","v":4138},{"$f":"[1]أكواد!E317","v":"انترلوك مستطيل8سم20×40رمادى غامق كامل"}]
[null,null,null,null,null,null,null,null,null,null,null,null,null,null,null,null,null,null,null,null,null,{"$f":"[1]أكواد!D318","v":4139},{"$f":"[1]أكواد!E318","v":"انترلوك بيهاتون6سم رمادى فاتح فيس"}]
[null,null,null,null,null,null,null,null,null,null,null,null,null,null,null,null,null,null,null,null,null,{"$f":"[1]أكواد!D319","v":4140},{"$f":"[1]أكواد!E319","v":"انترلوك مستطيل8سم رمادى فاتح فيس"}]
[null,null,null,null,null,null,null,null,null,null,null,null,null,null,null,null,null,null,null,null,null,{"$f":"[1]أكواد!D320","v":4141},{"$f":"[1]أكواد!E320","v":"انترلوك مربع6سم رمادى غامق كامل"}]
[null,null,null,null,null,null,null,null,null,null,null,null,null,null,null,null,null,null,null,null,null,{"$f":"[1]أكواد!D321","v":4142},{"$f":"[1]أكواد!E321","v":"انترلوك مربع8سم×20رمادى غامق كامل"}]
[null,null,null,null,null,null,null,null,null,null,null,null,null,null,null,null,null,null,null,null,null,{"$f":"[1]أكواد!D322","v":4143},{"$f":"[1]أكواد!E322","v":"انترلوك بيهاتون8سم رمادى غامق كامل"}]
[null,null,null,null,null,null,null,null,null,null,null,null,null,null,null,null,null,null,null,null,null,{"$f":"[1]أكواد!D323","v":4144},{"$f":"[1]أكواد!E323","v":"انترلوك بيهاتون8سم رمادى غامق فيس"}]
[null,null,null,null,null,null,null,null,null,null,null,null,null,null,null,null,null,null,null,null,null,{"$f":"[1]أكواد!D324","v":4145},{"$f":"[1]أكواد!E324","v":"انترلوك بيهاتون8سم أحمر فيس"}]
[null,null,null,null,null,null,null,null,null,null,null,null,null,null,null,null,null,null,null,null,null,{"$f":"[1]أكواد!D325","v":4146},{"$f":"[1]أكواد!E325","v":"انترلوك مستطيل8سم20×40رمادى غامق فيس"}]
[null,null,null,null,null,null,null,null,null,null,null,null,null,null,null,null,null,null,null,null,null,{"$f":"[1]أكواد!D326","v":4147},{"$f":"[1]أكواد!E326","v":"انترلوك مربع8سم رمادى غامق كامل"}]
[null,null,null,null,null,null,null,null,null,null,null,null,null,null,null,null,null,null,null,null,null,{"$f":"[1]أكواد!D327","v":93008},{"$f":"[1]أكواد!E327","v":"بردروة متوسطة مسح رمادى كامل فرز"}]
[null,null,null,null,null,null,null,null,null,null,null,null,null,null,null,null,null,null,null,null,null,{"$f":"[1]أكواد!D328","v":4148},{"$f":"[1]أكواد!E328","v":"انترلوك بيهاتون8سم أحمر فيس"}]
[null,null,null,null,null,null,null,null,null,null,null,null,null,null,null,null,null,null,null,null,null,{"$f":"[1]أكواد!D329","v":4149},{"$f":"[1]أكواد!E329","v":"انترلوك بيهاتون8سم أحمر فيس"}]
[null,null,null,null,null,null,null,null,null,null,null,null,null,null,null,null,null,null,null,null,null,{"$f":"[1]أكواد!D330","v":2031},{"$f":"[1]أكواد!E330","v":"بلوك مفرغ12سم أحمر ناعم"}]
[null,null,null,null,null,null,null,null,null,null,null,null,null,null,null,null,null,null,null,null,null,{"$f":"[1]أكواد!D331","v":2032},{"$f":"[1]أكواد!E331","v":"بلوك مفرغ25سم أحمر ناعم"}]
[null,null,null,null,null,null,null,null,null,null,null,null,null,null,null,null,null,null,null,null,null,{"$f":"[1]أكواد!D332","v":93005},{"$f":"[1]أكواد!E332","v":"متوسطة متداخلة رمادى كامل فرز"}]
[null,null,null,null,null,null,null,null,null,null,null,null,null,null,null,null,null,null,null,null,null,{"$f":"[1]أكواد!D333","v":4150},{"$f":"[1]أكواد!E333","v":"انترلوك مستطيل8سم بيج كامل"}]
[null,null,null,null,null,null,null,null,null,null,null,null,null,null,null,null,null,null,null,null,null,{"$f":"[1]أكواد!D334","v":4151},{"$f":"[1]أكواد!E334","v":"انترلوك مستطيل8سم أصفر كامل"}]
[null,null,null,null,null,null,null,null,null,null,null,null,null,null,null,null,null,null,null,null,null,{"$f":"[1]أكواد!D335","v":4152},{"$f":"[1]أكواد!E335","v":"انترلوك مستطيل8سم رمادى فاتح فيس"}]
[null,null,null,null,null,null,null,null,null,null,null,null,null,null,null,null,null,null,null,null,null,{"$f":"[1]أكواد!D336","v":4153},{"$f":"[1]أكواد!E336","v":"انترلوك مربع6سم رمادى فاتح كامل"}]
[null,null,null,null,null,null,null,null,null,null,null,null,null,null,null,null,null,null,null,null,null,{"$f":"[1]أكواد!D337","v":4154},{"$f":"[1]أكواد!E337","v":"انترلوك مستطيل8سم أصفر كامل"}]
[null,null,null,null,null,null,null,null,null,null,null,null,null,null,null,null,null,null,null,null,null,{"$f":"[1]أكواد!D338","v":4155},{"$f":"[1]أكواد!E338","v":"انترلوك مستطيل8سم كافيه كامل"}]
[null,null,null,null,null,null,null,null,null,null,null,null,null,null,null,null,null,null,null,null,null,{"$f":"[1]أكواد!D339","v":4156},{"$f":"[1]أكواد!E339","v":"انترلوك مستطيل8سم بنى كامل"}]
[null,null,null,null,null,null,null,null,null,null,null,null,null,null,null,null,null,null,null,null,null,{"$f":"[1]أكواد!D340","v":4157},{"$f":"[1]أكواد!E340","v":"انترلوك بيهاتون8سم أحمر فيس"}]
[null,null,null,null,null,null,null,null,null,null,null,null,null,null,null,null,null,null,null,null,null,{"$f":"[1]أكواد!D341","v":4158},{"$f":"[1]أكواد!E341","v":"انترلوك مربع8سم×20بيج كامل"}]
[null,null,null,null,null,null,null,null,null,null,null,null,null,null,null,null,null,null,null,null,null,{"$f":"[1]أكواد!D342","v":3019},{"$f":"[1]أكواد!E342","v":"بردورة حدائق بيج كامل"}]
[null,null,null,null,null,null,null,null,null,null,null,null,null,null,null,null,null,null,null,null,null,{"$f":"[1]أكواد!D343","v":94006},{"$f":"[1]أكواد!E343","v":"انترلوك بيهاتون6سم رمادى كامل فرز"}]
[null,null,null,null,null,null,null,null,null,null,null,null,null,null,null,null,null,null,null,null,null,{"$f":"[1]أكواد!D344","v":94002},{"$f":"[1]أكواد!E344","v":"انترلوك بيهاتون6سم أحمر كامل فرز"}]
[null,null,null,null,null,null,null,null,null,null,null,null,null,null,null,null,null,null,null,null,null,{"$f":"[1]أكواد!D345","v":4159},{"$f":"[1]أكواد!E345","v":"انترلوك مستطيل6سم رمادى غامق فيس"}]
[null,null,null,null,null,null,null,null,null,null,null,null,null,null,null,null,null,null,null,null,null,{"$f":"[1]أكواد!D346","v":4160},{"$f":"[1]أكواد!E346","v":"انترلوك بيهاتون6سم أصفر فيس"}]
[null,null,null,null,null,null,null,null,null,null,null,null,null,null,null,null,null,null,null,null,null,{"$f":"[1]أكواد!D347","v":4161},{"$f":"[1]أكواد!E347","v":"انترلوك بيهاتون8سم أحمر كامل"}]
[null,null,null,null,null,null,null,null,null,null,null,null,null,null,null,null,null,null,null,null,null,{"$f":"[1]أكواد!D348","v":4162},{"$f":"[1]أكواد!E348","v":"انترلوك مستطيل8سم رمادى كامل"}]
[null,null,null,null,null,null,null,null,null,null,null,null,null,null,null,null,null,null,null,null,null,{"$f":"[1]أكواد!D349","v":4163},{"$f":"[1]أكواد!E349","v":"انترلوك مستطيل8سم رمادى فاتح كامل"}]
[null,null,null,null,null,null,null,null,null,null,null,null,null,null,null,null,null,null,null,null,null,{"$f":"[1]أكواد!D350","v":4164},{"$f":"[1]أكواد!E350","v":"انترلوك مستطيل8سم أحمر كامل"}]
[null,null,null,null,null,null,null,null,null,null,null,null,null,null,null,null,null,null,null,null,null,{"$f":"[1]أكواد!D351","v":4165},{"$f":"[1]أكواد!E351","v":"انترلوك مستطيل8سم أصفر كامل"}]
[null,null,null,null,null,null,null,null,null,null,null,null,null,null,null,null,null,null,null,null,null,{"$f":"[1]أكواد!D352","v":4166},{"$f":"[1]أكواد!E352","v":"انترلوك مستطيل8سم بيج كامل"}]
[null,null,null,null,null,null,null,null,null,null,null,null,null,null,null,null,null,null,null,null,null,{"$f":"[1]أكواد!D353","v":94022},{"$f":"[1]أكواد!E353","v":"انترلوك مستطيل8سم أحمر كامل500فرز"}]
[null,null,null,null,null,null,null,null,null,null,null,null,null,null,null,null,null,null,null,null,null,{"$f":"[1]أكواد!D354","v":94023},{"$f":"[1]أكواد!E354","v":"انترلوك مستطيل8سم رمادى غامق كامل فرز"}]
[null,null,null,null,null,null,null,null,null,null,null,null,null,null,null,null,null,null,null,null,null,{"$f":"[1]أكواد!D355","v":94026},{"$f":"[1]أكواد!E355","v":"انترلوك مستطيل8سم رمادى كامل فرز"}]
[null,null,null,null,null,null,null,null,null,null,null,null,null,null,null,null,null,null,null,null,null,{"$f":"[1]أكواد!D356","v":4167},{"$f":"[1]أكواد!E356","v":"انترلوك مربع6سم×40بيج فيس"}]
[null,null,null,null,null,null,null,null,null,null,null,null,null,null,null,null,null,null,null,null,null,{"$f":"[1]أكواد!D357","v":4168},{"$f":"[1]أكواد!E357","v":"انترلوك مربع6سم×40رمادى كامل"}]
[null,null,null,null,null,null,null,null,null,null,null,null,null,null,null,null,null,null,null,null,null,{"$f":"[1]أكواد!D358","v":93001},{"$f":"[1]أكواد!E358","v":"بردورة حدائق رمادى كامل فرز"}]
[null,null,null,null,null,null,null,null,null,null,null,null,null,null,null,null,null,null,null,null,null,{"$f":"[1]أكواد!D359","v":94027},{"$f":"[1]أكواد!E359","v":"انترلوك مستطيل6سم رمادى كامل فرز"}]
[null,null,null,null,null,null,null,null,null,null,null,null,null,null,null,null,null,null,null,null,null,{"$f":"[1]أكواد!D360","v":92018},{"$f":"[1]أكواد!E360","v":"بلوك مفرغ20سم رمادى ناعم فرز"}]
[null,null,null,null,null,null,null,null,null,null,null,null,null,null,null,null,null,null,null,null,null,{"$f":"[1]أكواد!D361","v":4169},{"$f":"[1]أكواد!E361","v":"انترلوك مستطيل6سم أزرق غامق كامل"}]
[null,null,null,null,null,null,null,null,null,null,null,null,null,null,null,null,null,null,null,null,null,{"$f":"[1]أكواد!D362","v":4170},{"$f":"[1]أكواد!E362","v":"انترلوك مستطيل6سم أزرق فاتح كامل"}]
[null,null,null,null,null,null,null,null,null,null,null,null,null,null,null,null,null,null,null,null,null,{"$f":"[1]أكواد!D363","v":93009},{"$f":"[1]أكواد!E363","v":"بردورة متوسطة مسح1متر رمادى كامل فرز"}]
[null,null,null,null,null,null,null,null,null,null,null,null,null,null,null,null,null,null,null,null,null,{"$f":"[1]أكواد!D364","v":1003},{"$f":"[1]أكواد!E364","v":"طوب مصمت6×9.5×20خشن رمادى"}]
[null,null,null,null,null,null,null,null,null,null,null,null,null,null,null,null,null,null,null,null,null,{"$f":"[1]أكواد!D365","v":4171},{"$f":"[1]أكواد!E365","v":"انترلوك مربع8سم×20رمادى غامق فيس"}]
[null,null,null,null,null,null,null,null,null,null,null,null,null,null,null,null,null,null,null,null,null,{"$f":"[1]أكواد!D366","v":4172},{"$f":"[1]أكواد!E366","v":"انترلوك مستطيل6سم أحمر كامل"}]
[null,null,null,null,null,null,null,null,null,null,null,null,null,null,null,null,null,null,null,null,null,{"$f":"[1]أكواد!D367","v":94029},{"$f":"[1]أكواد!E367","v":"انترلوك سداسى6سم أحمر كامل فرز"}]
[null,null,null,null,null,null,null,null,null,null,null,null,null,null,null,null,null,null,null,null,null,{"$f":"[1]أكواد!D368","v":2033},{"$f":"[1]أكواد!E368","v":"بلوك مفرغ25سم رمادى ناعم"}]
[null,null,null,null,null,null,null,null,null,null,null,null,null,null,null,null,null,null,null,null,null,{"$f":"[1]أكواد!D369","v":2034},{"$f":"[1]أكواد!E369","v":"بلوك مفرغ25سم رمادى خشن"}]
[null,null,null,null,null,null,null,null,null,null,null,null,null,null,null,null,null,null,null,null,null,{"$f":"[1]أكواد!D370","v":4173},{"$f":"[1]أكواد!E370","v":"انترلوك مستطيل6سم رمادى فاتح كامل"}]
[null,null,null,null,null,null,null,null,null,null,null,null,null,null,null,null,null,null,null,null,null,{"$f":"[1]أكواد!D371","v":0},{"$f":"[1]أكواد!E371","v":0}]
[null,null,null,null,null,null,null,null,null,null,null,null,null,null,null,null,null,null,null,null,null,{"$f":"[1]أكواد!D372","v":0},{"$f":"[1]أكواد!E372","v":0}]
[null,null,null,null,null,null,null,null,null,null,null,null,null,null,null,null,null,null,null,null,null,{"$f":"[1]أكواد!D373","v":0},{"$f":"[1]أكواد!E373","v":0}]
[null,null,null,null,null,null,null,null,null,null,null,null,null,null,null,null,null,null,null,null,null,{"$f":"[1]أكواد!D374","v":0},{"$f":"[1]أكواد!E374","v":0}]
[null,null,null,null,null,null,null,null,null,null,null,null,null,null,null,null,null,null,null,null,null,{"$f":"[1]أكواد!D375","v":0},{"$f":"[1]أكواد!E375","v":0}]
[null,null,null,null,null,null,null,null,null,null,null,null,null,null,null,null,null,null,null,null,null,{"$f":"[1]أكواد!D376","v":0},{"$f":"[1]أكواد!E376","v":0}]
[null,null,null,null,null,null,null,null,null,null,null,null,null,null,null,null,null,null,null,null,null,{"$f":"[1]أكواد!D377","v":0},{"$f":"[1]أكواد!E377","v":0}]
[null,null,null,null,null,null,null,null,null,null,null,null,null,null,null,null,null,null,null,null,null,{"$f":"[1]أكواد!D378","v":0},{"$f":"[1]أكواد!E378","v":0}]
[null,null,null,null,null,null,null,null,null,null,null,null,null,null,null,null,null,null,null,null,null,{"$f":"[1]أكواد!D379","v":0},{"$f":"[1]أكواد!E379","v":0}]
[null,null,null,null,null,null,null,null,null,null,null,null,null,null,null,null,null,null,null,null,null,{"$f":"[1]أكواد!D380","v":0},{"$f":"[1]أكواد!E380","v":0}]
[null,null,null,null,null,null,null,null,null,null,null,null,null,null,null,null,null,null,null,null,null,{"$f":"[1]أكواد!D381","v":0},{"$f":"[1]أكواد!E381","v":0}]
[null,null,null,null,null,null,null,null,null,null,null,null,null,null,null,null,null,null,null,null,null,{"$f":"[1]أكواد!D382","v":0},{"$f":"[1]أكواد!E382","v":0}]
[null,null,null,null,null,null,null,null,null,null,null,null,null,null,null,null,null,null,null,null,null,{"$f":"[1]أكواد!D383","v":0},{"$f":"[1]أكواد!E383","v":0}]
[null,null,null,null,null,null,null,null,null,null,null,null,null,null,null,null,null,null,null,null,null,{"$f":"[1]أكواد!D384","v":0},{"$f":"[1]أكواد!E384","v":0}]
[null,null,null,null,null,null,null,null,null,null,null,null,null,null,null,null,null,null,null,null,null,{"$f":"[1]أكواد!D385","v":0},{"$f":"[1]أكواد!E385","v":0}]
[null,null,null,null,null,null,null,null,null,null,null,null,null,null,null,null,null,null,null,null,null,{"$f":"[1]أكواد!D386","v":0},{"$f":"[1]أكواد!E386","v":0}]
[null,null,null,null,null,null,null,null,null,null,null,null,null,null,null,null,null,null,null,null,null,{"$f":"[1]أكواد!D387","v":0},{"$f":"[1]أكواد!E387","v":0}]
[null,null,null,null,null,null,null,null,null,null,null,null,null,null,null,null,null,null,null,null,null,{"$f":"[1]أكواد!D388","v":0},{"$f":"[1]أكواد!E388","v":0}]
[null,null,null,null,null,null,null,null,null,null,null,null,null,null,null,null,null,null,null,null,null,{"$f":"[1]أكواد!D389","v":0},{"$f":"[1]أكواد!E389","v":0}]
[null,null,null,null,null,null,null,null,null,null,null,null,null,null,null,null,null,null,null,null,null,{"$f":"[1]أكواد!D390","v":0},{"$f":"[1]أكواد!E390","v":0}]
[null,null,null,null,null,null,null,null,null,null,null,null,null,null,null,null,null,null,null,null,null,{"$f":"[1]أكواد!D391","v":0},{"$f":"[1]أكواد!E391","v":0}]
[null,null,null,null,null,null,null,null,null,null,null,null,null,null,null,null,null,null,null,null,null,{"$f":"[1]أكواد!D392","v":0},{"$f":"[1]أكواد!E392","v":0}]
[null,null,null,null,null,null,null,null,null,null,null,null,null,null,null,null,null,null,null,null,null,{"$f":"[1]أكواد!D393","v":0},{"$f":"[1]أكواد!E393","v":0}]
[null,null,null,null,null,null,null,null,null,null,null,null,null,null,null,null,null,null,null,null,null,{"$f":"[1]أكواد!D394","v":0},{"$f":"[1]أكواد!E394","v":0}]
[null,null,null,null,null,null,null,null,null,null,null,null,null,null,null,null,null,null,null,null,null,{"$f":"[1]أكواد!D395","v":0},{"$f":"[1]أكواد!E395","v":0}]
[null,null,null,null,null,null,null,null,null,null,null,null,null,null,null,null,null,null,null,null,null,{"$f":"[1]أكواد!D396","v":0},{"$f":"[1]أكواد!E396","v":0}]
[null,null,null,null,null,null,null,null,null,null,null,null,null,null,null,null,null,null,null,null,null,{"$f":"[1]أكواد!D397","v":0},{"$f":"[1]أكواد!E397","v":0}]
[null,null,null,null,null,null,null,null,null,null,null,null,null,null,null,null,null,null,null,null,null,{"$f":"[1]أكواد!D398","v":0},{"$f":"[1]أكواد!E398","v":0}]
[null,null,null,null,null,null,null,null,null,null,null,null,null,null,null,null,null,null,null,null,null,{"$f":"[1]أكواد!D399","v":0},{"$f":"[1]أكواد!E399","v":0}]
[null,null,null,null,null,null,null,null,null,null,null,null,null,null,null,null,null,null,null,null,null,{"$f":"[1]أكواد!D400","v":0},{"$f":"[1]أكواد!E400","v":0}]
[null,null,null,null,null,null,null,null,null,null,null,null,null,null,null,null,null,null,null,null,null,{"$f":"[1]أكواد!D401","v":0},{"$f":"[1]أكواد!E401","v":0}]
[null,null,null,null,null,null,null,null,null,null,null,null,null,null,null,null,null,null,null,null,null,{"$f":"[1]أكواد!D402","v":0},{"$f":"[1]أكواد!E402","v":0}]
[null,null,null,null,null,null,null,null,null,null,null,null,null,null,null,null,null,null,null,null,null,{"$f":"[1]أكواد!D403","v":0},{"$f":"[1]أكواد!E403","v":0}]
[null,null,null,null,null,null,null,null,null,null,null,null,null,null,null,null,null,null,null,null,null,{"$f":"[1]أكواد!D404","v":0},{"$f":"[1]أكواد!E404","v":0}]
[null,null,null,null,null,null,null,null,null,null,null,null,null,null,null,null,null,null,null,null,null,{"$f":"[1]أكواد!D405","v":0},{"$f":"[1]أكواد!E405","v":0}]
[null,null,null,null,null,null,null,null,null,null,null,null,null,null,null,null,null,null,null,null,null,{"$f":"[1]أكواد!D406","v":0},{"$f":"[1]أكواد!E406","v":0}]
[null,null,null,null,null,null,null,null,null,null,null,null,null,null,null,null,null,null,null,null,null,{"$f":"[1]أكواد!D407","v":0},{"$f":"[1]أكواد!E407","v":0}]
[null,null,null,null,null,null,null,null,null,null,null,null,null,null,null,null,null,null,null,null,null,{"$f":"[1]أكواد!D408","v":0},{"$f":"[1]أكواد!E408","v":0}]
[null,null,null,null,null,null,null,null,null,null,null,null,null,null,null,null,null,null,null,null,null,{"$f":"[1]أكواد!D409","v":0},{"$f":"[1]أكواد!E409","v":0}]
[null,null,null,null,null,null,null,null,null,null,null,null,null,null,null,null,null,null,null,null,null,{"$f":"[1]أكواد!D410","v":0},{"$f":"[1]أكواد!E410","v":0}]
[null,null,null,null,null,null,null,null,null,null,null,null,null,null,null,null,null,null,null,null,null,{"$f":"[1]أكواد!D411","v":0},{"$f":"[1]أكواد!E411","v":0}]
[null,null,null,null,null,null,null,null,null,null,null,null,null,null,null,null,null,null,null,null,null,{"$f":"[1]أكواد!D412","v":0},{"$f":"[1]أكواد!E412","v":0}]
[null,null,null,null,null,null,null,null,null,null,null,null,null,null,null,null,null,null,null,null,null,{"$f":"[1]أكواد!D413","v":0},{"$f":"[1]أكواد!E413","v":0}]
[null,null,null,null,null,null,null,null,null,null,null,null,null,null,null,null,null,null,null,null,null,{"$f":"[1]أكواد!D414","v":0},{"$f":"[1]أكواد!E414","v":0}]
[null,null,null,null,null,null,null,null,null,null,null,null,null,null,null,null,null,null,null,null,null,{"$f":"[1]أكواد!D415","v":0},{"$f":"[1]أكواد!E415","v":0}]
[null,null,null,null,null,null,null,null,null,null,null,null,null,null,null,null,null,null,null,null,null,{"$f":"[1]أكواد!D416","v":0},{"$f":"[1]أكواد!E416","v":0}]
[null,null,null,null,null,null,null,null,null,null,null,null,null,null,null,null,null,null,null,null,null,{"$f":"[1]أكواد!D417","v":0},{"$f":"[1]أكواد!E417","v":0}]
[null,null,null,null,null,null,null,null,null,null,null,null,null,null,null,null,null,null,null,null,null,{"$f":"[1]أكواد!D418","v":0},{"$f":"[1]أكواد!E418","v":0}]
[null,null,null,null,null,null,null,null,null,null,null,null,null,null,null,null,null,null,null,null,null,{"$f":"[1]أكواد!D419","v":0},{"$f":"[1]أكواد!E419","v":0}]
[null,null,null,null,null,null,null,null,null,null,null,null,null,null,null,null,null,null,null,null,null,{"$f":"[1]أكواد!D420","v":0},{"$f":"[1]أكواد!E420","v":0}]
[null,null,null,null,null,null,null,null,null,null,null,null,null,null,null,null,null,null,null,null,null,{"$f":"[1]أكواد!D421","v":0},{"$f":"[1]أكواد!E421","v":0}]
[null,null,null,null,null,null,null,null,null,null,null,null,null,null,null,null,null,null,null,null,null,{"$f":"[1]أكواد!D422","v":0},{"$f":"[1]أكواد!E422","v":0}]
[null,null,null,null,null,null,null,null,null,null,null,null,null,null,null,null,null,null,null,null,null,{"$f":"[1]أكواد!D423","v":0},{"$f":"[1]أكواد!E423","v":0}]
[null,null,null,null,null,null,null,null,null,null,null,null,null,null,null,null,null,null,null,null,null,{"$f":"[1]أكواد!D424","v":0},{"$f":"[1]أكواد!E424","v":0}]
[null,null,null,null,null,null,null,null,null,null,null,null,null,null,null,null,null,null,null,null,null,{"$f":"[1]أكواد!D425","v":0},{"$f":"[1]أكواد!E425","v":0}]
[null,null,null,null,null,null,null,null,null,null,null,null,null,null,null,null,null,null,null,null,null,{"$f":"[1]أكواد!D426","v":0},{"$f":"[1]أكواد!E426","v":0}]
[null,null,null,null,null,null,null,null,null,null,null,null,null,null,null,null,null,null,null,null,null,{"$f":"[1]أكواد!D427","v":0},{"$f":"[1]أكواد!E427","v":0}]
[null,null,null,null,null,null,null,null,null,null,null,null,null,null,null,null,null,null,null,null,null,{"$f":"[1]أكواد!D428","v":0},{"$f":"[1]أكواد!E428","v":0}]
[null,null,null,null,null,null,null,null,null,null,null,null,null,null,null,null,null,null,null,null,null,{"$f":"[1]أكواد!D429","v":0},{"$f":"[1]أكواد!E429","v":0}]
[null,null,null,null,null,null,null,null,null,null,null,null,null,null,null,null,null,null,null,null,null,{"$f":"[1]أكواد!D430","v":0},{"$f":"[1]أكواد!E430","v":0}]
[null,null,null,null,null,null,null,null,null,null,null,null,null,null,null,null,null,null,null,null,null,{"$f":"[1]أكواد!D431","v":0},{"$f":"[1]أكواد!E431","v":0}]
[null,null,null,null,null,null,null,null,null,null,null,null,null,null,null,null,null,null,null,null,null,{"$f":"[1]أكواد!D432","v":0},{"$f":"[1]أكواد!E432","v":0}]
[null,null,null,null,null,null,null,null,null,null,null,null,null,null,null,null,null,null,null,null,null,{"$f":"[1]أكواد!D433","v":0},{"$f":"[1]أكواد!E433","v":0}]
[null,null,null,null,null,null,null,null,null,null,null,null,null,null,null,null,null,null,null,null,null,{"$f":"[1]أكواد!D434","v":0},{"$f":"[1]أكواد!E434","v":0}]
[null,null,null,null,null,null,null,null,null,null,null,null,null,null,null,null,null,null,null,null,null,{"$f":"[1]أكواد!D435","v":0},{"$f":"[1]أكواد!E435","v":0}]
[null,null,null,null,null,null,null,null,null,null,null,null,null,null,null,null,null,null,null,null,null,{"$f":"[1]أكواد!D436","v":0},{"$f":"[1]أكواد!E436","v":0}]
[null,null,null,null,null,null,null,null,null,null,null,null,null,null,null,null,null,null,null,null,null,{"$f":"[1]أكواد!D437","v":0},{"$f":"[1]أكواد!E437","v":0}]
[null,null,null,null,null,null,null,null,null,null,null,null,null,null,null,null,null,null,null,null,null,{"$f":"[1]أكواد!D438","v":0},{"$f":"[1]أكواد!E438","v":0}]
[null,null,null,null,null,null,null,null,null,null,null,null,null,null,null,null,null,null,null,null,null,{"$f":"[1]أكواد!D439","v":0},{"$f":"[1]أكواد!E439","v":0}]
[null,null,null,null,null,null,null,null,null,null,null,null,null,null,null,null,null,null,null,null,null,{"$f":"[1]أكواد!D440","v":0},{"$f":"[1]أكواد!E440","v":0}]
[null,null,null,null,null,null,null,null,null,null,null,null,null,null,null,null,null,null,null,null,null,{"$f":"[1]أكواد!D441","v":0},{"$f":"[1]أكواد!E441","v":0}]
[null,null,null,null,null,null,null,null,null,null,null,null,null,null,null,null,null,null,null,null,null,{"$f":"[1]أكواد!D442","v":0},{"$f":"[1]أكواد!E442","v":0}]
[null,null,null,null,null,null,null,null,null,null,null,null,null,null,null,null,null,null,null,null,null,{"$f":"[1]أكواد!D443","v":0},{"$f":"[1]أكواد!E443","v":0}]
[null,null,null,null,null,null,null,null,null,null,null,null,null,null,null,null,null,null,null,null,null,{"$f":"[1]أكواد!D444","v":0},{"$f":"[1]أكواد!E444","v":0}]
[null,null,null,null,null,null,null,null,null,null,null,null,null,null,null,null,null,null,null,null,null,{"$f":"[1]أكواد!D445","v":0},{"$f":"[1]أكواد!E445","v":0}]
[null,null,null,null,null,null,null,null,null,null,null,null,null,null,null,null,null,null,null,null,null,{"$f":"[1]أكواد!D446","v":0},{"$f":"[1]أكواد!E446","v":0}]
[null,null,null,null,null,null,null,null,null,null,null,null,null,null,null,null,null,null,null,null,null,{"$f":"[1]أكواد!D447","v":0},{"$f":"[1]أكواد!E447","v":0}]
[null,null,null,null,null,null,null,null,null,null,null,null,null,null,null,null,null,null,null,null,null,{"$f":"[1]أكواد!D448","v":0},{"$f":"[1]أكواد!E448","v":0}]
[null,null,null,null,null,null,null,null,null,null,null,null,null,null,null,null,null,null,null,null,null,{"$f":"[1]أكواد!D449","v":0},{"$f":"[1]أكواد!E449","v":0}]
[null,null,null,null,null,null,null,null,null,null,null,null,null,null,null,null,null,null,null,null,null,{"$f":"[1]أكواد!D450","v":0},{"$f":"[1]أكواد!E450","v":0}]
[null,null,null,null,null,null,null,null,null,null,null,null,null,null,null,null,null,null,null,null,null,{"$f":"[1]أكواد!D451","v":0},{"$f":"[1]أكواد!E451","v":0}]
[null,null,null,null,null,null,null,null,null,null,null,null,null,null,null,null,null,null,null,null,null,{"$f":"[1]أكواد!D452","v":0},{"$f":"[1]أكواد!E452","v":0}]
[null,null,null,null,null,null,null,null,null,null,null,null,null,null,null,null,null,null,null,null,null,{"$f":"[1]أكواد!D453","v":0},{"$f":"[1]أكواد!E453","v":0}]
[null,null,null,null,null,null,null,null,null,null,null,null,null,null,null,null,null,null,null,null,null,{"$f":"[1]أكواد!D454","v":0},{"$f":"[1]أكواد!E454","v":0}]
[null,null,null,null,null,null,null,null,null,null,null,null,null,null,null,null,null,null,null,null,null,{"$f":"[1]أكواد!D455","v":0},{"$f":"[1]أكواد!E455","v":0}]
[null,null,null,null,null,null,null,null,null,null,null,null,null,null,null,null,null,null,null,null,null,{"$f":"[1]أكواد!D456","v":0},{"$f":"[1]أكواد!E456","v":0}]
[null,null,null,null,null,null,null,null,null,null,null,null,null,null,null,null,null,null,null,null,null,{"$f":"[1]أكواد!D457","v":0},{"$f":"[1]أكواد!E457","v":0}]
[null,null,null,null,null,null,null,null,null,null,null,null,null,null,null,null,null,null,null,null,null,{"$f":"[1]أكواد!D458","v":0},{"$f":"[1]أكواد!E458","v":0}]
[null,null,null,null,null,null,null,null,null,null,null,null,null,null,null,null,null,null,null,null,null,{"$f":"[1]أكواد!D459","v":0},{"$f":"[1]أكواد!E459","v":0}]
[null,null,null,null,null,null,null,null,null,null,null,null,null,null,null,null,null,null,null,null,null,{"$f":"[1]أكواد!D460","v":0},{"$f":"[1]أكواد!E460","v":0}]
[null,null,null,null,null,null,null,null,null,null,null,null,null,null,null,null,null,null,null,null,null,{"$f":"[1]أكواد!D461","v":0},{"$f":"[1]أكواد!E461","v":0}]
[null,null,null,null,null,null,null,null,null,null,null,null,null,null,null,null,null,null,null,null,null,{"$f":"[1]أكواد!D462","v":0},{"$f":"[1]أكواد!E462","v":0}]
[null,null,null,null,null,null,null,null,null,null,null,null,null,null,null,null,null,null,null,null,null,{"$f":"[1]أكواد!D463","v":0},{"$f":"[1]أكواد!E463","v":0}]
[null,null,null,null,null,null,null,null,null,null,null,null,null,null,null,null,null,null,null,null,null,{"$f":"[1]أكواد!D464","v":0},{"$f":"[1]أكواد!E464","v":0}]
[null,null,null,null,null,null,null,null,null,null,null,null,null,null,null,null,null,null,null,null,null,{"$f":"[1]أكواد!D465","v":0},{"$f":"[1]أكواد!E465","v":0}]
[null,null,null,null,null,null,null,null,null,null,null,null,null,null,null,null,null,null,null,null,null,{"$f":"[1]أكواد!D466","v":0},{"$f":"[1]أكواد!E466","v":0}]
[null,null,null,null,null,null,null,null,null,null,null,null,null,null,null,null,null,null,null,null,null,{"$f":"[1]أكواد!D467","v":0},{"$f":"[1]أكواد!E467","v":0}]
[null,null,null,null,null,null,null,null,null,null,null,null,null,null,null,null,null,null,null,null,null,{"$f":"[1]أكواد!D468","v":0},{"$f":"[1]أكواد!E468","v":0}]
[null,null,null,null,null,null,null,null,null,null,null,null,null,null,null,null,null,null,null,null,null,{"$f":"[1]أكواد!D469","v":0},{"$f":"[1]أكواد!E469","v":0}]
[null,null,null,null,null,null,null,null,null,null,null,null,null,null,null,null,null,null,null,null,null,{"$f":"[1]أكواد!D470","v":0},{"$f":"[1]أكواد!E470","v":0}]
[null,null,null,null,null,null,null,null,null,null,null,null,null,null,null,null,null,null,null,null,null,{"$f":"[1]أكواد!D471","v":0},{"$f":"[1]أكواد!E471","v":0}]
[null,null,null,null,null,null,null,null,null,null,null,null,null,null,null,null,null,null,null,null,null,{"$f":"[1]أكواد!D472","v":0},{"$f":"[1]أكواد!E472","v":0}]
[null,null,null,null,null,null,null,null,null,null,null,null,null,null,null,null,null,null,null,null,null,{"$f":"[1]أكواد!D473","v":0},{"$f":"[1]أكواد!E473","v":0}]
[null,null,null,null,null,null,null,null,null,null,null,null,null,null,null,null,null,null,null,null,null,{"$f":"[1]أكواد!D474","v":0},{"$f":"[1]أكواد!E474","v":0}]
[null,null,null,null,null,null,null,null,null,null,null,null,null,null,null,null,null,null,null,null,null,{"$f":"[1]أكواد!D475","v":0},{"$f":"[1]أكواد!E475","v":0}]
[null,null,null,null,null,null,null,null,null,null,null,null,null,null,null,null,null,null,null,null,null,{"$f":"[1]أكواد!D476","v":0},{"$f":"[1]أكواد!E476","v":0}]
[null,null,null,null,null,null,null,null,null,null,null,null,null,null,null,null,null,null,null,null,null,{"$f":"[1]أكواد!D477","v":0},{"$f":"[1]أكواد!E477","v":0}]
[null,null,null,null,null,null,null,null,null,null,null,null,null,null,null,null,null,null,null,null,null,{"$f":"[1]أكواد!D478","v":0},{"$f":"[1]أكواد!E478","v":0}]
[null,null,null,null,null,null,null,null,null,null,null,null,null,null,null,null,null,null,null,null,null,{"$f":"[1]أكواد!D479","v":0},{"$f":"[1]أكواد!E479","v":0}]
[null,null,null,null,null,null,null,null,null,null,null,null,null,null,null,null,null,null,null,null,null,{"$f":"[1]أكواد!D480","v":0},{"$f":"[1]أكواد!E480","v":0}]
[null,null,null,null,null,null,null,null,null,null,null,null,null,null,null,null,null,null,null,null,null,{"$f":"[1]أكواد!D481","v":0},{"$f":"[1]أكواد!E481","v":0}]
[null,null,null,null,null,null,null,null,null,null,null,null,null,null,null,null,null,null,null,null,null,{"$f":"[1]أكواد!D482","v":0},{"$f":"[1]أكواد!E482","v":0}]
[null,null,null,null,null,null,null,null,null,null,null,null,null,null,null,null,null,null,null,null,null,{"$f":"[1]أكواد!D483","v":0},{"$f":"[1]أكواد!E483","v":0}]
[null,null,null,null,null,null,null,null,null,null,null,null,null,null,null,null,null,null,null,null,null,{"$f":"[1]أكواد!D484","v":0},{"$f":"[1]أكواد!E484","v":0}]
[null,null,null,null,null,null,null,null,null,null,null,null,null,null,null,null,null,null,null,null,null,{"$f":"[1]أكواد!D485","v":0},{"$f":"[1]أكواد!E485","v":0}]
[null,null,null,null,null,null,null,null,null,null,null,null,null,null,null,null,null,null,null,null,null,{"$f":"[1]أكواد!D486","v":0},{"$f":"[1]أكواد!E486","v":0}]
[null,null,null,null,null,null,null,null,null,null,null,null,null,null,null,null,null,null,null,null,null,{"$f":"[1]أكواد!D487","v":0},{"$f":"[1]أكواد!E487","v":0}]
[null,null,null,null,null,null,null,null,null,null,null,null,null,null,null,null,null,null,null,null,null,{"$f":"[1]أكواد!D488","v":0},{"$f":"[1]أكواد!E488","v":0}]
[null,null,null,null,null,null,null,null,null,null,null,null,null,null,null,null,null,null,null,null,null,{"$f":"[1]أكواد!D489","v":0},{"$f":"[1]أكواد!E489","v":0}]
[null,null,null,null,null,null,null,null,null,null,null,null,null,null,null,null,null,null,null,null,null,{"$f":"[1]أكواد!D490","v":0},{"$f":"[1]أكواد!E490","v":0}]
[null,null,null,null,null,null,null,null,null,null,null,null,null,null,null,null,null,null,null,null,null,{"$f":"[1]أكواد!D491","v":0},{"$f":"[1]أكواد!E491","v":0}]
[null,null,null,null,null,null,null,null,null,null,null,null,null,null,null,null,null,null,null,null,null,{"$f":"[1]أكواد!D492","v":0},{"$f":"[1]أكواد!E492","v":0}]
[null,null,null,null,null,null,null,null,null,null,null,null,null,null,null,null,null,null,null,null,null,{"$f":"[1]أكواد!D493","v":0},{"$f":"[1]أكواد!E493","v":0}]
[null,null,null,null,null,null,null,null,null,null,null,null,null,null,null,null,null,null,null,null,null,{"$f":"[1]أكواد!D494","v":0},{"$f":"[1]أكواد!E494","v":0}]
[null,null,null,null,null,null,null,null,null,null,null,null,null,null,null,null,null,null,null,null,null,{"$f":"[1]أكواد!D495","v":0},{"$f":"[1]أكواد!E495","v":0}]
[null,null,null,null,null,null,null,null,null,null,null,null,null,null,null,null,null,null,null,null,null,{"$f":"[1]أكواد!D496","v":0},{"$f":"[1]أكواد!E496","v":0}]
[null,null,null,null,null,null,null,null,null,null,null,null,null,null,null,null,null,null,null,null,null,{"$f":"[1]أكواد!D497","v":0},{"$f":"[1]أكواد!E497","v":0}]
[null,null,null,null,null,null,null,null,null,null,null,null,null,null,null,null,null,null,null,null,null,{"$f":"[1]أكواد!D498","v":0},{"$f":"[1]أكواد!E498","v":0}]
[null,null,null,null,null,null,null,null,null,null,null,null,null,null,null,null,null,null,null,null,null,{"$f":"[1]أكواد!D499","v":0},{"$f":"[1]أكواد!E499","v":0}]
[null,null,null,null,null,null,null,null,null,null,null,null,null,null,null,null,null,null,null,null,null,{"$f":"[1]أكواد!D500","v":0},{"$f":"[1]أكواد!E500","v":0}]